Council Name,Date,TransNo,Amount � (Excl VAT),Supplier name,Supplier Category,Expense Area,Expense Type,Expense Code
London Borough of Sutton,14/08/2023,20055957,555.67,REDACTED - PERSONAL DATA,SUNDRY SUPPLIER - ENV SERVICES,Environment Housing and Neighbourhoods,Planning - Pre Application Fees,A92158
London Borough of Sutton,03/08/2023,50384306,500.00,REDACTED - PERSONAL DATA,GRANTS & EX GRATIA PAYMENTS,Environment Housing and Neighbourhoods,"Grants, Contributions & Donations",A47005
London Borough of Sutton,28/07/2023,50387936,479.91,A R G Europe Limited,CONSTRUCTION INDUSTRY,HRA,Payments to Contractors,C14000
London Borough of Sutton,14/08/2023,50387938,959.76,A R G Europe Limited,CONSTRUCTION INDUSTRY,HRA,Payments to Contractors,C14000
London Borough of Sutton,16/08/2023,50389466,"9,776.16",A Step Beyond Ltd,SOCIAL SERVICES - OTHER,People's Services,Supported Living,A56088
London Borough of Sutton,16/08/2023,50389466,"3,666.06",A Step Beyond Ltd,SOCIAL SERVICES - OTHER,People's Services,Supported Living,A56088
London Borough of Sutton,16/08/2023,50389466,643.30,A Step Beyond Ltd,SOCIAL SERVICES - OTHER,People's Services,Supported Living,A56088
London Borough of Sutton,16/08/2023,50389466,960.16,A Step Beyond Ltd,SOCIAL SERVICES - OTHER,People's Services,Supported Living,A56088
London Borough of Sutton,03/07/2023,50385313,"30,070.00",A Wilderness Way Ltd,CHILDREN'S SERVICES - FOSTERING & ADOPTION SERVICES,People's Services,Residential Care-Children,A56115
London Borough of Sutton,04/08/2023,50385559,"3,848.24",Abbey Care Centre,SOCIAL SERVICES RESIDENTIAL,People's Services,Nursing Care Short Term,A56026
London Borough of Sutton,04/08/2023,50385559,-750.40,Abbey Care Centre,SOCIAL SERVICES RESIDENTIAL,People's Services,Nursing Care - 3rd party top up payment,A56023
London Borough of Sutton,04/08/2023,50385654,"4,096.12",Abbey Care Centre,SOCIAL SERVICES RESIDENTIAL,People's Services,Nursing Care - Ext Provider,A56025
London Borough of Sutton,04/08/2023,50385654,-878.84,Abbey Care Centre,SOCIAL SERVICES RESIDENTIAL,People's Services,Nursing Care - 3rd party top up payment,A56023
London Borough of Sutton,04/08/2023,50385684,"3,848.24",Abbey Care Centre,SOCIAL SERVICES RESIDENTIAL,People's Services,Nursing Care Short Term,A56026
London Borough of Sutton,04/08/2023,50385684,-750.40,Abbey Care Centre,SOCIAL SERVICES RESIDENTIAL,People's Services,Nursing Care - 3rd party top up payment,A56023
London Borough of Sutton,04/08/2023,50385684,"-1,492.80",Abbey Care Centre,SOCIAL SERVICES RESIDENTIAL,People's Services,Nursing Care - 3rd party top up payment,A56023
London Borough of Sutton,04/08/2023,50385879,"4,096.12",Abbey Care Centre,SOCIAL SERVICES RESIDENTIAL,People's Services,Nursing Care - Ext Provider,A56025
London Borough of Sutton,04/08/2023,50385879,-878.84,Abbey Care Centre,SOCIAL SERVICES RESIDENTIAL,People's Services,Nursing Care - 3rd party top up payment,A56023
London Borough of Sutton,01/08/2023,20055206,"1,875.00",REDACTED - PERSONAL DATA,LEGAL & PROFESSIONAL SERVICES,Health and Wellbeing,Professional Fees,A44066
London Borough of Sutton,24/07/2023,20054753,"5,715.81",Absolute Care Services Ltd,SOCIAL SERVICES DAY CARE,People's Services,Homecare Core Services,A56020
London Borough of Sutton,17/07/2023,20054755,"5,926.51",Absolute Care Services Ltd,SOCIAL SERVICES DAY CARE,People's Services,Homecare Core Services,A56020
London Borough of Sutton,31/07/2023,20054943,"6,794.87",Absolute Care Services Ltd,SOCIAL SERVICES DAY CARE,People's Services,Homecare Core Services,A56020
London Borough of Sutton,31/07/2023,20054944,"5,926.51",Absolute Care Services Ltd,SOCIAL SERVICES DAY CARE,People's Services,Homecare Core Services,A56020
London Borough of Sutton,31/07/2023,20054949,"5,715.81",Absolute Care Services Ltd,SOCIAL SERVICES DAY CARE,People's Services,Homecare Core Services,A56020
London Borough of Sutton,07/08/2023,20055454,"5,715.81",Absolute Care Services Ltd,SOCIAL SERVICES DAY CARE,People's Services,Homecare Core Services,A56020
London Borough of Sutton,07/08/2023,20055455,"5,926.51",Absolute Care Services Ltd,SOCIAL SERVICES DAY CARE,People's Services,Homecare Core Services,A56020
London Borough of Sutton,07/08/2023,20055456,"6,794.87",Absolute Care Services Ltd,SOCIAL SERVICES DAY CARE,People's Services,Homecare Core Services,A56020
London Borough of Sutton,14/08/2023,20055825,"6,794.87",Absolute Care Services Ltd,SOCIAL SERVICES DAY CARE,People's Services,Homecare Core Services,A56020
London Borough of Sutton,14/08/2023,20055827,"5,715.81",Absolute Care Services Ltd,SOCIAL SERVICES DAY CARE,People's Services,Homecare Core Services,A56020
London Borough of Sutton,21/08/2023,20056350,"5,926.51",Absolute Care Services Ltd,SOCIAL SERVICES DAY CARE,People's Services,Homecare Core Services,A56020
London Borough of Sutton,23/07/2023,50384041,105.61,Absolute Care Services Ltd,SOCIAL SERVICES DAY CARE,People's Services,Home Care Services,A56019
London Borough of Sutton,23/07/2023,50384041,457.19,Absolute Care Services Ltd,SOCIAL SERVICES DAY CARE,People's Services,Home Care Services,A56019
London Borough of Sutton,23/07/2023,50384044,620.62,Absolute Care Services Ltd,SOCIAL SERVICES DAY CARE,People's Services,Home Care Services,A56019
London Borough of Sutton,23/07/2023,50384060,45.01,Absolute Care Services Ltd,SOCIAL SERVICES DAY CARE,People's Services,Home Care Services,A56019
London Borough of Sutton,23/07/2023,50384060,772.61,Absolute Care Services Ltd,SOCIAL SERVICES DAY CARE,People's Services,Home Care Services,A56019
London Borough of Sutton,23/07/2023,50384072,689.50,Absolute Care Services Ltd,SOCIAL SERVICES DAY CARE,People's Services,Home Care Services,A56019
London Borough of Sutton,23/07/2023,50384122,163.03,Absolute Care Services Ltd,SOCIAL SERVICES DAY CARE,People's Services,Home Care Services,A56019
London Borough of Sutton,23/07/2023,50384122,427.97,Absolute Care Services Ltd,SOCIAL SERVICES DAY CARE,People's Services,Home Care Services,A56019
London Borough of Sutton,23/07/2023,50384127,530.64,Absolute Care Services Ltd,SOCIAL SERVICES DAY CARE,People's Services,Home Care Services,A56019
London Borough of Sutton,23/07/2023,50384153,506.52,Absolute Care Services Ltd,SOCIAL SERVICES DAY CARE,People's Services,Home Care Services,A56019
London Borough of Sutton,23/07/2023,50384153,16.08,Absolute Care Services Ltd,SOCIAL SERVICES DAY CARE,People's Services,Home Care Services,A56019
London Borough of Sutton,23/07/2023,50384189,16.08,Absolute Care Services Ltd,SOCIAL SERVICES DAY CARE,People's Services,Home Care Services,A56019
London Borough of Sutton,23/07/2023,50384189,506.52,Absolute Care Services Ltd,SOCIAL SERVICES DAY CARE,People's Services,Home Care Services,A56019
London Borough of Sutton,30/07/2023,50384697,105.61,Absolute Care Services Ltd,SOCIAL SERVICES DAY CARE,People's Services,Home Care Services,A56019
London Borough of Sutton,30/07/2023,50384697,457.19,Absolute Care Services Ltd,SOCIAL SERVICES DAY CARE,People's Services,Home Care Services,A56019
London Borough of Sutton,30/07/2023,50384758,163.03,Absolute Care Services Ltd,SOCIAL SERVICES DAY CARE,People's Services,Home Care Services,A56019
London Borough of Sutton,30/07/2023,50384758,427.97,Absolute Care Services Ltd,SOCIAL SERVICES DAY CARE,People's Services,Home Care Services,A56019
London Borough of Sutton,30/07/2023,50384761,530.64,Absolute Care Services Ltd,SOCIAL SERVICES DAY CARE,People's Services,Home Care Services,A56019
London Borough of Sutton,30/07/2023,50384784,620.62,Absolute Care Services Ltd,SOCIAL SERVICES DAY CARE,People's Services,Home Care Services,A56019
London Borough of Sutton,30/07/2023,50384786,506.52,Absolute Care Services Ltd,SOCIAL SERVICES DAY CARE,People's Services,Home Care Services,A56019
London Borough of Sutton,30/07/2023,50384786,16.08,Absolute Care Services Ltd,SOCIAL SERVICES DAY CARE,People's Services,Home Care Services,A56019
London Borough of Sutton,30/07/2023,50384802,45.01,Absolute Care Services Ltd,SOCIAL SERVICES DAY CARE,People's Services,Home Care Services,A56019
London Borough of Sutton,30/07/2023,50384802,772.61,Absolute Care Services Ltd,SOCIAL SERVICES DAY CARE,People's Services,Home Care Services,A56019
London Borough of Sutton,30/07/2023,50384808,689.50,Absolute Care Services Ltd,SOCIAL SERVICES DAY CARE,People's Services,Home Care Services,A56019
London Borough of Sutton,30/07/2023,50384809,16.08,Absolute Care Services Ltd,SOCIAL SERVICES DAY CARE,People's Services,Home Care Services,A56019
London Borough of Sutton,30/07/2023,50384809,506.52,Absolute Care Services Ltd,SOCIAL SERVICES DAY CARE,People's Services,Home Care Services,A56019
London Borough of Sutton,06/08/2023,50388148,620.62,Absolute Care Services Ltd,SOCIAL SERVICES DAY CARE,People's Services,Home Care Services,A56019
London Borough of Sutton,06/08/2023,50388168,59.10,Absolute Care Services Ltd,SOCIAL SERVICES DAY CARE,People's Services,Home Care Services,A56019
London Borough of Sutton,06/08/2023,50388168,758.52,Absolute Care Services Ltd,SOCIAL SERVICES DAY CARE,People's Services,Home Care Services,A56019
London Borough of Sutton,06/08/2023,50388176,689.50,Absolute Care Services Ltd,SOCIAL SERVICES DAY CARE,People's Services,Home Care Services,A56019
London Borough of Sutton,06/08/2023,50388525,105.61,Absolute Care Services Ltd,SOCIAL SERVICES DAY CARE,People's Services,Home Care Services,A56019
London Borough of Sutton,06/08/2023,50388525,457.19,Absolute Care Services Ltd,SOCIAL SERVICES DAY CARE,People's Services,Home Care Services,A56019
London Borough of Sutton,06/08/2023,50388688,506.52,Absolute Care Services Ltd,SOCIAL SERVICES DAY CARE,People's Services,Home Care Services,A56019
London Borough of Sutton,06/08/2023,50388688,16.08,Absolute Care Services Ltd,SOCIAL SERVICES DAY CARE,People's Services,Home Care Services,A56019
London Borough of Sutton,06/08/2023,50388745,530.64,Absolute Care Services Ltd,SOCIAL SERVICES DAY CARE,People's Services,Home Care Services,A56019
London Borough of Sutton,06/08/2023,50388750,16.08,Absolute Care Services Ltd,SOCIAL SERVICES DAY CARE,People's Services,Home Care Services,A56019
London Borough of Sutton,06/08/2023,50388750,506.52,Absolute Care Services Ltd,SOCIAL SERVICES DAY CARE,People's Services,Home Care Services,A56019
London Borough of Sutton,13/08/2023,50390372,689.50,Absolute Care Services Ltd,SOCIAL SERVICES DAY CARE,People's Services,Home Care Services,A56019
London Borough of Sutton,13/08/2023,50390395,620.62,Absolute Care Services Ltd,SOCIAL SERVICES DAY CARE,People's Services,Home Care Services,A56019
London Borough of Sutton,13/08/2023,50390410,59.10,Absolute Care Services Ltd,SOCIAL SERVICES DAY CARE,People's Services,Home Care Services,A56019
London Borough of Sutton,13/08/2023,50390410,758.52,Absolute Care Services Ltd,SOCIAL SERVICES DAY CARE,People's Services,Home Care Services,A56019
London Borough of Sutton,13/08/2023,50390502,105.61,Absolute Care Services Ltd,SOCIAL SERVICES DAY CARE,People's Services,Home Care Services,A56019
London Borough of Sutton,13/08/2023,50390502,457.19,Absolute Care Services Ltd,SOCIAL SERVICES DAY CARE,People's Services,Home Care Services,A56019
London Borough of Sutton,13/08/2023,50390507,506.52,Absolute Care Services Ltd,SOCIAL SERVICES DAY CARE,People's Services,Home Care Services,A56019
London Borough of Sutton,13/08/2023,50390507,16.08,Absolute Care Services Ltd,SOCIAL SERVICES DAY CARE,People's Services,Home Care Services,A56019
London Borough of Sutton,13/08/2023,50390515,530.64,Absolute Care Services Ltd,SOCIAL SERVICES DAY CARE,People's Services,Home Care Services,A56019
London Borough of Sutton,13/08/2023,50390539,16.08,Absolute Care Services Ltd,SOCIAL SERVICES DAY CARE,People's Services,Home Care Services,A56019
London Borough of Sutton,13/08/2023,50390539,506.52,Absolute Care Services Ltd,SOCIAL SERVICES DAY CARE,People's Services,Home Care Services,A56019
London Borough of Sutton,20/08/2023,50393474,689.50,Absolute Care Services Ltd,SOCIAL SERVICES DAY CARE,People's Services,Home Care Services,A56019
London Borough of Sutton,20/08/2023,50393602,620.62,Absolute Care Services Ltd,SOCIAL SERVICES DAY CARE,People's Services,Home Care Services,A56019
London Borough of Sutton,20/08/2023,50393655,59.10,Absolute Care Services Ltd,SOCIAL SERVICES DAY CARE,People's Services,Home Care Services,A56019
London Borough of Sutton,20/08/2023,50393655,758.52,Absolute Care Services Ltd,SOCIAL SERVICES DAY CARE,People's Services,Home Care Services,A56019
London Borough of Sutton,20/08/2023,50393680,16.08,Absolute Care Services Ltd,SOCIAL SERVICES DAY CARE,People's Services,Home Care Services,A56019
London Borough of Sutton,20/08/2023,50393680,506.52,Absolute Care Services Ltd,SOCIAL SERVICES DAY CARE,People's Services,Home Care Services,A56019
London Borough of Sutton,20/08/2023,50393708,530.64,Absolute Care Services Ltd,SOCIAL SERVICES DAY CARE,People's Services,Home Care Services,A56019
London Borough of Sutton,20/08/2023,50393720,105.61,Absolute Care Services Ltd,SOCIAL SERVICES DAY CARE,People's Services,Home Care Services,A56019
London Borough of Sutton,20/08/2023,50393720,457.19,Absolute Care Services Ltd,SOCIAL SERVICES DAY CARE,People's Services,Home Care Services,A56019
London Borough of Sutton,20/08/2023,50393724,506.52,Absolute Care Services Ltd,SOCIAL SERVICES DAY CARE,People's Services,Home Care Services,A56019
London Borough of Sutton,20/08/2023,50393724,16.08,Absolute Care Services Ltd,SOCIAL SERVICES DAY CARE,People's Services,Home Care Services,A56019
London Borough of Sutton,02/08/2023,20055182,"84,218.26",Access UK Limited,TAXI AND COACH HIRE,People's Services,Childrens Social Care Transport,A32009
London Borough of Sutton,09/08/2023,20055617,"26,940.36",Access UK Limited,TAXI AND COACH HIRE,People's Services,Childrens Social Care Transport,A32009
London Borough of Sutton,16/08/2023,20056046,525.00,Access UK Limited,TAXI AND COACH HIRE,People's Services,Childrens Social Care Transport,A32009
London Borough of Sutton,23/08/2023,20056547,"1,664.50",Access UK Limited,TAXI AND COACH HIRE,People's Services,Childrens Social Care Transport,A32009
London Borough of Sutton,02/08/2023,50385963,"5,410.61",Accomplish Group Ltd,SOCIAL SERVICES RESIDENTIAL,People's Services,Supported Living,A56088
London Borough of Sutton,17/08/2023,50393459,"3,080.00",Accomplish Group Ltd,SOCIAL SERVICES RESIDENTIAL,People's Services,Supported Living,A56088
London Borough of Sutton,17/08/2023,50393646,"4,671.40",Accomplish Group Ltd,SOCIAL SERVICES RESIDENTIAL,People's Services,Supported Living,A56088
London Borough of Sutton,22/08/2023,50393648,801.17,Accomplish Group Ltd,SOCIAL SERVICES RESIDENTIAL,People's Services,Supported Living,A56088
London Borough of Sutton,04/08/2023,50385355,"8,103.64",Achieve Together Limited,SOCIAL SERVICES RESIDENTIAL,People's Services,Residential Care - Ext Provider,A56114
London Borough of Sutton,04/08/2023,50385355,-402.80,Achieve Together Limited,SOCIAL SERVICES RESIDENTIAL,People's Services,Residential Care - Client Cont ( Net Paymt ),A56113
London Borough of Sutton,04/08/2023,50385375,-438.80,Achieve Together Limited,SOCIAL SERVICES RESIDENTIAL,People's Services,Residential Care - Client Cont ( Net Paymt ),A56113
London Borough of Sutton,04/08/2023,50385375,"6,845.04",Achieve Together Limited,SOCIAL SERVICES RESIDENTIAL,People's Services,Residential Care - Ext Provider,A56114
London Borough of Sutton,04/08/2023,50385436,"5,100.00",Achieve Together Limited,SOCIAL SERVICES RESIDENTIAL,People's Services,Residential Care - Ext Provider,A56114
London Borough of Sutton,04/08/2023,50385482,-511.80,Achieve Together Limited,SOCIAL SERVICES RESIDENTIAL,People's Services,Residential Care - Client Cont ( Net Paymt ),A56113
London Borough of Sutton,04/08/2023,50385482,"4,682.44",Achieve Together Limited,SOCIAL SERVICES RESIDENTIAL,People's Services,Residential Care - Ext Provider,A56114
London Borough of Sutton,04/08/2023,50385607,-549.00,Achieve Together Limited,SOCIAL SERVICES RESIDENTIAL,People's Services,Residential Care - Client Cont ( Net Paymt ),A56113
London Borough of Sutton,04/08/2023,50385607,390.00,Achieve Together Limited,SOCIAL SERVICES RESIDENTIAL,People's Services,One to One Care,A56108
London Borough of Sutton,04/08/2023,50385607,"4,375.48",Achieve Together Limited,SOCIAL SERVICES RESIDENTIAL,People's Services,Residential Care - Ext Provider,A56114
London Borough of Sutton,04/08/2023,50385666,"5,810.56",Achieve Together Limited,SOCIAL SERVICES RESIDENTIAL,People's Services,Residential Care - Ext Provider,A56114
London Borough of Sutton,04/08/2023,50385833,"7,303.88",Achieve Together Limited,SOCIAL SERVICES RESIDENTIAL,People's Services,Residential Care - Ext Provider,A56114
London Borough of Sutton,04/08/2023,50385377,-483.20,ACHIEVE TOGETHER LTD,SOCIAL SERVICES RESIDENTIAL,People's Services,Residential Care - Client Cont ( Net Paymt ),A56113
London Borough of Sutton,04/08/2023,50385377,"5,620.60",ACHIEVE TOGETHER LTD,SOCIAL SERVICES RESIDENTIAL,People's Services,Residential Care - Ext Provider,A56114
London Borough of Sutton,04/08/2023,50385504,"11,047.88",ACHIEVE TOGETHER LTD,SOCIAL SERVICES RESIDENTIAL,People's Services,Residential Care - Ext Provider,A56114
London Borough of Sutton,04/08/2023,50385508,"4,653.76",ACHIEVE TOGETHER LTD,SOCIAL SERVICES RESIDENTIAL,People's Services,Residential Care - Ext Provider,A56114
London Borough of Sutton,16/08/2023,50389426,"1,061.44",ACHIEVE TOGETHER LTD,SOCIAL SERVICES RESIDENTIAL,People's Services,Supported Living,A56088
London Borough of Sutton,16/08/2023,50389426,"1,061.44",ACHIEVE TOGETHER LTD,SOCIAL SERVICES RESIDENTIAL,People's Services,Supported Living,A56088
London Borough of Sutton,16/08/2023,50389426,888.10,ACHIEVE TOGETHER LTD,SOCIAL SERVICES RESIDENTIAL,People's Services,Supported Living,A56088
London Borough of Sutton,16/08/2023,50389427,"2,653.60",ACHIEVE TOGETHER LTD,SOCIAL SERVICES RESIDENTIAL,People's Services,Supported Living,A56088
London Borough of Sutton,16/08/2023,50389479,"2,388.24",ACHIEVE TOGETHER LTD,SOCIAL SERVICES RESIDENTIAL,People's Services,Supported Living,A56088
London Borough of Sutton,16/08/2023,50389479,619.43,ACHIEVE TOGETHER LTD,SOCIAL SERVICES RESIDENTIAL,People's Services,Supported Living,A56088
London Borough of Sutton,16/08/2023,50389479,641.53,ACHIEVE TOGETHER LTD,SOCIAL SERVICES RESIDENTIAL,People's Services,Supported Living,A56088
London Borough of Sutton,16/08/2023,50389501,"2,940.18",ACHIEVE TOGETHER LTD,SOCIAL SERVICES RESIDENTIAL,People's Services,Supported Living,A56088
London Borough of Sutton,16/08/2023,50389501,"3,184.32",ACHIEVE TOGETHER LTD,SOCIAL SERVICES RESIDENTIAL,People's Services,Supported Living,A56088
London Borough of Sutton,04/07/2023,50385282,"16,784.33",Acorn Homes UK Ltd,CHILDREN'S SERVICES - FOSTERING & ADOPTION SERVICES,People's Services,Residential Care-Children,A56115
London Borough of Sutton,04/08/2023,50385466,"4,231.40",Acorn Lodge,SOCIAL SERVICES RESIDENTIAL,People's Services,Residential Care - Ext Provider,A56114
London Borough of Sutton,04/08/2023,50385456,"5,844.00",Acorn Residential Home,SOCIAL SERVICES RESIDENTIAL,People's Services,Residential Care - Ext Provider,A56114
London Borough of Sutton,04/08/2023,50385479,"8,918.80",Active Prospects,SOCIAL SERVICES DAY CARE,People's Services,Residential Care - Ext Provider,A56114
London Borough of Sutton,04/08/2023,50385479,-438.80,Active Prospects,SOCIAL SERVICES DAY CARE,People's Services,Residential Care - Client Cont ( Net Paymt ),A56113
London Borough of Sutton,04/08/2023,50385496,"6,441.84",Active Prospects,SOCIAL SERVICES DAY CARE,People's Services,Residential Care - Ext Provider,A56114
London Borough of Sutton,04/08/2023,50385441,"6,000.00",Admiral Healthcare Ltd.,SOCIAL SERVICES RESIDENTIAL,People's Services,Residential Care - Ext Provider,A56114
London Borough of Sutton,04/08/2023,50385480,"1,458.00",Admiral Healthcare Ltd.,SOCIAL SERVICES RESIDENTIAL,People's Services,Residential Care - Ext Provider,A56114
London Borough of Sutton,31/10/2022,20052489,682.56,Advocacy For All,LEGAL & PROFESSIONAL SERVICES,People's Services,Provider Contract Payments,A44290
London Borough of Sutton,26/07/2023,50385229,"3,715.35",Affinity Fostering Services Ltd,CHILDREN'S SERVICES - FOSTERING & ADOPTION SERVICES,People's Services,Foster Parents Support,A44110
London Borough of Sutton,26/07/2023,50385230,"3,527.49",Affinity Fostering Services Ltd,CHILDREN'S SERVICES - FOSTERING & ADOPTION SERVICES,People's Services,Foster Parents Support,A44110
London Borough of Sutton,26/07/2023,50385231,"3,494.01",Affinity Fostering Services Ltd,CHILDREN'S SERVICES - FOSTERING & ADOPTION SERVICES,People's Services,Foster Parents Support,A44110
London Borough of Sutton,26/07/2023,50385294,"3,317.31",Affinity Fostering Services Ltd,CHILDREN'S SERVICES - FOSTERING & ADOPTION SERVICES,People's Services,Foster Parents Support,A44110
London Borough of Sutton,16/08/2023,50389493,"2,024.21",Agincare Enable Limited,SOCIAL SERVICES RESIDENTIAL,People's Services,One to One Care,A56108
London Borough of Sutton,16/08/2023,50389493,"2,024.21",Agincare Enable Limited,SOCIAL SERVICES RESIDENTIAL,People's Services,Supported Living,A56088
London Borough of Sutton,16/08/2023,50389493,455.70,Agincare Enable Limited,SOCIAL SERVICES RESIDENTIAL,People's Services,Supported Living,A56088
London Borough of Sutton,04/08/2023,50385435,"7,793.40",Leighton House Ltd,SOCIAL SERVICES RESIDENTIAL,People's Services,Residential Care - Ext Provider,A56114
London Borough of Sutton,04/08/2023,50385356,"8,716.00",Aitch Care Homes,SOCIAL SERVICES RESIDENTIAL,People's Services,Residential Care - Ext Provider,A56114
London Borough of Sutton,31/07/2023,20055027,"4,889.51",Albany Housing YP Ltd,CARE LEAVERS,People's Services,Approved Lodgings,A61000
London Borough of Sutton,31/07/2023,20055375,504.01,Albus Environmental Ltd,FM SERVICES,Resources,Equipment And Materials Purchase,A40000
London Borough of Sutton,31/07/2023,20055002,"1,350.00",Alderton Associates Ltd,TEMP STAFF & CONSULTANCY,HRA,Payments to Contractors,C14000
London Borough of Sutton,21/04/2023,20055338,"3,480.00",Alderton Associates Ltd,TEMP STAFF & CONSULTANCY,HRA,Payments to Contractors,C14000
London Borough of Sutton,08/08/2023,50386502,"168,131.48",All Saints Benhilton C Of E,GRANTS & EX GRATIA PAYMENTS,People's Services,Payments to Schools,A51013
London Borough of Sutton,04/08/2023,50385373,"5,466.80",Allied Care (Mhs) Ltd,SOCIAL SERVICES - OTHER,People's Services,Residential Care - Ext Provider,A56114
London Borough of Sutton,31/07/2023,20055066,790.18,Allied Publicity Services (Manchester) Ltd,REPROGRAPHICS & PHOTOGRAPHY,Health and Wellbeing,Mobility Scheme for the Disabled,A61015
London Borough of Sutton,24/07/2023,20054651,"2,890.00",Alljos Services Ltd,PREMISES - CLEANING & LAUNDRY,Environment Housing and Neighbourhoods,Grants Given For Capital Purposes,C20004
London Borough of Sutton,17/07/2023,20056010,895.00,Alljos Services Ltd,PREMISES - CLEANING & LAUNDRY,People's Services,Client Care/Assistance,A61011
London Borough of Sutton,30/06/2023,20056059,"6,600.38",Allocate Software Limited,BUSINESS & COMPUTER SYSTEMS,Health and Wellbeing,Registration & Licence Fees Payable,A44267
London Borough of Sutton,30/06/2023,20054337,357.03,Allpay Ltd,OFFICE SERVICES,People's Services,Client Activities,A56028
London Borough of Sutton,30/06/2023,20054337,371.33,Allpay Ltd,OFFICE SERVICES,People's Services,Client Activities,A56028
London Borough of Sutton,30/06/2023,20054337,66.80,Allpay Ltd,OFFICE SERVICES,People's Services,Client Activities,A56028
London Borough of Sutton,31/03/2023,20054338,320.22,Allpay Ltd,OFFICE SERVICES,People's Services,Client Activities,A56028
London Borough of Sutton,31/03/2023,20054338,323.00,Allpay Ltd,OFFICE SERVICES,People's Services,Client Activities,A56028
London Borough of Sutton,31/03/2023,20054338,73.22,Allpay Ltd,OFFICE SERVICES,People's Services,Client Activities,A56028
London Borough of Sutton,30/04/2023,20054339,319.28,Allpay Ltd,OFFICE SERVICES,People's Services,Client Activities,A56028
London Borough of Sutton,30/04/2023,20054339,332.87,Allpay Ltd,OFFICE SERVICES,People's Services,Client Activities,A56028
London Borough of Sutton,30/04/2023,20054339,69.09,Allpay Ltd,OFFICE SERVICES,People's Services,Client Activities,A56028
London Borough of Sutton,31/05/2023,20054340,364.23,Allpay Ltd,OFFICE SERVICES,People's Services,Client Activities,A56028
London Borough of Sutton,31/05/2023,20054340,427.35,Allpay Ltd,OFFICE SERVICES,People's Services,Client Activities,A56028
London Borough of Sutton,31/05/2023,20054340,80.90,Allpay Ltd,OFFICE SERVICES,People's Services,Client Activities,A56028
London Borough of Sutton,01/08/2023,20055166,"1,644.48",Allstar Business Solutions,FUEL AND VEHICLE SUPPLIES,Environment Housing and Neighbourhoods,Vehicles -  Fuel,A30015
London Borough of Sutton,04/08/2023,50385460,"5,397.60",Allswell Care Services Ltd,SOCIAL SERVICES RESIDENTIAL,People's Services,Residential Care - Ext Provider,A56114
London Borough of Sutton,04/08/2023,50385467,"6,609.52",Allswell Care Services Ltd,SOCIAL SERVICES RESIDENTIAL,People's Services,Residential Care - Ext Provider,A56114
London Borough of Sutton,04/08/2023,50385470,"5,397.60",Allswell Care Services Ltd,SOCIAL SERVICES RESIDENTIAL,People's Services,Residential Care - Ext Provider,A56114
London Borough of Sutton,14/07/2023,50390326,"1,838.12",Alpenbest Limited,SOCIAL SERVICES DAY CARE,People's Services,Home Care Services,A56019
London Borough of Sutton,14/08/2023,50392812,795.88,Alpenbest Limited,SOCIAL SERVICES DAY CARE,People's Services,Home Care Services,A56019
London Borough of Sutton,14/08/2023,50392813,"2,387.64",Alpenbest Limited,SOCIAL SERVICES DAY CARE,People's Services,Home Care Services,A56019
London Borough of Sutton,14/08/2023,50392844,696.27,Alpenbest Limited,SOCIAL SERVICES DAY CARE,People's Services,Home Care Services,A56019
London Borough of Sutton,14/08/2023,50392847,"1,311.21",Alpenbest Limited,SOCIAL SERVICES DAY CARE,People's Services,Home Care Services,A56019
London Borough of Sutton,14/08/2023,50392848,795.88,Alpenbest Limited,SOCIAL SERVICES DAY CARE,People's Services,Home Care Services,A56019
London Borough of Sutton,14/08/2023,50392850,808.32,Alpenbest Limited,SOCIAL SERVICES DAY CARE,People's Services,Home Care Services,A56019
London Borough of Sutton,14/08/2023,50392852,898.59,Alpenbest Limited,SOCIAL SERVICES DAY CARE,People's Services,Home Care Services,A56019
London Borough of Sutton,14/08/2023,50392871,518.73,Alpenbest Limited,SOCIAL SERVICES DAY CARE,People's Services,Home Care Services,A56019
London Borough of Sutton,14/08/2023,50392871,585.11,Alpenbest Limited,SOCIAL SERVICES DAY CARE,People's Services,Home Care Services,A56019
London Borough of Sutton,14/08/2023,50392872,554.34,Alpenbest Limited,SOCIAL SERVICES DAY CARE,People's Services,Home Care Services,A56019
London Borough of Sutton,14/08/2023,50392873,916.65,Alpenbest Limited,SOCIAL SERVICES DAY CARE,People's Services,Home Care Services,A56019
London Borough of Sutton,14/08/2023,50392874,639.48,Alpenbest Limited,SOCIAL SERVICES DAY CARE,People's Services,Home Care Services,A56019
London Borough of Sutton,14/08/2023,50392884,"1,928.45",Alpenbest Limited,SOCIAL SERVICES DAY CARE,People's Services,Home Care Services,A56019
London Borough of Sutton,14/08/2023,50392886,"1,108.68",Alpenbest Limited,SOCIAL SERVICES DAY CARE,People's Services,Home Care Services,A56019
London Borough of Sutton,14/08/2023,50392887,795.88,Alpenbest Limited,SOCIAL SERVICES DAY CARE,People's Services,Home Care Services,A56019
London Borough of Sutton,14/08/2023,50392888,"1,556.19",Alpenbest Limited,SOCIAL SERVICES DAY CARE,People's Services,Home Care Services,A56019
London Borough of Sutton,14/08/2023,50392888,"1,868.91",Alpenbest Limited,SOCIAL SERVICES DAY CARE,People's Services,Home Care Services,A56019
London Borough of Sutton,14/08/2023,50392889,502.29,Alpenbest Limited,SOCIAL SERVICES DAY CARE,People's Services,Home Care Services,A56019
London Borough of Sutton,14/08/2023,50392903,795.88,Alpenbest Limited,SOCIAL SERVICES DAY CARE,People's Services,Home Care Services,A56019
London Borough of Sutton,14/08/2023,50392906,"1,210.30",Alpenbest Limited,SOCIAL SERVICES DAY CARE,People's Services,Home Care Services,A56019
London Borough of Sutton,14/08/2023,50392907,"2,387.64",Alpenbest Limited,SOCIAL SERVICES DAY CARE,People's Services,Home Care Services,A56019
London Borough of Sutton,14/08/2023,50392908,531.75,Alpenbest Limited,SOCIAL SERVICES DAY CARE,People's Services,Home Care Services,A56019
London Borough of Sutton,14/08/2023,50392909,748.59,Alpenbest Limited,SOCIAL SERVICES DAY CARE,People's Services,Home Care Services,A56019
London Borough of Sutton,14/08/2023,50392911,"1,193.82",Alpenbest Limited,SOCIAL SERVICES DAY CARE,People's Services,Home Care Services,A56019
London Borough of Sutton,14/08/2023,50392912,916.65,Alpenbest Limited,SOCIAL SERVICES DAY CARE,People's Services,Home Care Services,A56019
London Borough of Sutton,14/08/2023,50392924,639.48,Alpenbest Limited,SOCIAL SERVICES DAY CARE,People's Services,Home Care Services,A56019
London Borough of Sutton,14/08/2023,50392925,936.93,Alpenbest Limited,SOCIAL SERVICES DAY CARE,People's Services,Home Care Services,A56019
London Borough of Sutton,14/08/2023,50392925,652.63,Alpenbest Limited,SOCIAL SERVICES DAY CARE,People's Services,Home Care Services,A56019
London Borough of Sutton,14/08/2023,50392926,824.38,Alpenbest Limited,SOCIAL SERVICES DAY CARE,People's Services,Home Care Services,A56019
London Borough of Sutton,14/08/2023,50392979,714.96,Alpenbest Limited,SOCIAL SERVICES DAY CARE,People's Services,Home Care Services,A56019
London Borough of Sutton,14/08/2023,50392981,"1,193.82",Alpenbest Limited,SOCIAL SERVICES DAY CARE,People's Services,Home Care Services,A56019
London Borough of Sutton,14/08/2023,50392982,750.88,Alpenbest Limited,SOCIAL SERVICES DAY CARE,People's Services,Home Care Services,A56019
London Borough of Sutton,14/08/2023,50392982,184.78,Alpenbest Limited,SOCIAL SERVICES DAY CARE,People's Services,Home Care Services,A56019
London Borough of Sutton,14/08/2023,50392983,"2,252.64",Alpenbest Limited,SOCIAL SERVICES DAY CARE,People's Services,Home Care Services,A56019
London Borough of Sutton,14/08/2023,50392983,554.34,Alpenbest Limited,SOCIAL SERVICES DAY CARE,People's Services,Home Care Services,A56019
London Borough of Sutton,01/07/2023,20055421,485.00,Alpha Biolabs,SUNDRY SUPPLIER - EDUCATION,People's Services,Client Related Assessments,A56017
London Borough of Sutton,18/08/2023,50393941,"21,630.56",AMBITIOUS ABOUT AUTISM,CHILDREN'S SERVICES - SEN SERVICES,People's Services,Independent School Fees,A56002
London Borough of Sutton,18/08/2023,50393942,"21,630.56",AMBITIOUS ABOUT AUTISM,CHILDREN'S SERVICES - SEN SERVICES,People's Services,Independent School Fees,A56002
London Borough of Sutton,23/08/2023,50391061,"1,601.70",REDACTED - PERSONAL DATA,CHILDREN'S SERVICES - SEN SERVICES,People's Services,Miscellaneous Expenses,A49000
London Borough of Sutton,19/07/2023,50385276,"4,495.00",Anchor Foster Care Services Ltd,CHILDREN'S SERVICES - FOSTERING & ADOPTION SERVICES,People's Services,Foster Parents Support,A44110
London Borough of Sutton,01/05/2023,50387364,"1,769.40",Anchor Foster Care Services Ltd,CHILDREN'S SERVICES - FOSTERING & ADOPTION SERVICES,People's Services,Foster Parents Support,A44110
London Borough of Sutton,04/08/2023,50385444,697.00,ANCHOR HANOVER GROUP,SOCIAL SERVICES RESIDENTIAL,People's Services,Residential Care Respite,A56018
London Borough of Sutton,04/08/2023,50385343,"2,908.20",Anchor Trust ,SOCIAL SERVICES RESIDENTIAL,People's Services,Residential Care - Ext Provider,A56114
London Borough of Sutton,03/08/2023,50384318,500.00,REDACTED - PERSONAL DATA,GRANTS & EX GRATIA PAYMENTS,Environment Housing and Neighbourhoods,"Grants, Contributions & Donations",A47005
London Borough of Sutton,23/08/2023,20056363,"1,096.00",REDACTED - PERSONAL DATA,PLS LANDLORDS,Environment Housing and Neighbourhoods,Temporary Protection - Homeless Persons,A62028
London Borough of Sutton,23/07/2023,20056364,"1,096.00",REDACTED - PERSONAL DATA,PLS LANDLORDS,Environment Housing and Neighbourhoods,Temporary Protection - Homeless Persons,A62028
London Borough of Sutton,06/08/2023,50387349,"3,476.43",Ansacare Fostering Agency Ltd,CHILDREN'S SERVICES - FOSTERING & ADOPTION SERVICES,People's Services,Foster Parents Support,A44110
London Borough of Sutton,06/08/2023,50387351,"3,476.43",Ansacare Fostering Agency Ltd,CHILDREN'S SERVICES - FOSTERING & ADOPTION SERVICES,People's Services,Foster Parents Support,A44110
London Borough of Sutton,31/07/2023,20055106,"5,642.00",Apex Housing Solutions Ltd,SOCIAL SERVICES DAY CARE,Environment Housing and Neighbourhoods,Bed & Breakfast,A56000
London Borough of Sutton,11/08/2023,20055794,"102,644.79",APL Construction Services Ltd,CONSTRUCTION INDUSTRY,HRA,Council Dwellings - Construction & Renovation,C10002
London Borough of Sutton,11/08/2023,20055814,"20,000.00",APL Construction Services Ltd,CONSTRUCTION INDUSTRY,HRA,Council Dwellings - Construction & Renovation,C10002
London Borough of Sutton,30/06/2023,20053162,"9,189.00",Arbtech Consulting Ltd,AGRICULTURAL & ESTATE SERVICES,Development Growth and Regeneration,External Fees and Consultants,C20000
London Borough of Sutton,28/07/2023,20054968,"9,110.00",Architecture PLB Ltd,CONSULTING ARCHITECTS ENGINEER,HRA,External Fees and Consultants,C20000
London Borough of Sutton,25/05/2023,20054646,580.00,Arnold & Self,PREMISES - REMOVALS,Environment Housing and Neighbourhoods,Removal Services,A44075
London Borough of Sutton,06/06/2023,20055014,"8,139.88",Arnold & Self,PREMISES - REMOVALS,Environment Housing and Neighbourhoods,Removal Services,A44075
London Borough of Sutton,04/07/2023,20055016,"7,674.77",Arnold & Self,PREMISES - REMOVALS,Environment Housing and Neighbourhoods,Removal Services,A44075
London Borough of Sutton,14/07/2023,20054615,"5,353.00",Ascendit Lifts Ltd,BUILDING MNTCE - SERVICES,Environment Housing and Neighbourhoods,Grants Given For Capital Purposes,C20004
London Borough of Sutton,01/07/2023,50385286,"6,576.34",Ascent Fostering Agency Ltd,CHILDREN'S SERVICE - OTHER,People's Services,Foster Parents Support,A44110
London Borough of Sutton,01/07/2023,50385317,"1,060.70",Ascent Fostering Agency Ltd,CHILDREN'S SERVICE - OTHER,People's Services,Foster Parents Support,A44110
London Borough of Sutton,02/06/2023,20055428,"4,233.00",ASCENTIS,TEMP STAFF & CONSULTANCY,Health and Wellbeing,Examination Fees,A44200
London Borough of Sutton,31/07/2023,50384284,"1,065.84",Ashlong House Ltd,SOCIAL SERVICES RESIDENTIAL,People's Services,Supported Living,A56088
London Borough of Sutton,22/08/2023,50393739,"1,065.84",Ashlong House Ltd,SOCIAL SERVICES RESIDENTIAL,People's Services,Supported Living,A56088
London Borough of Sutton,04/08/2023,50385425,"3,821.24",Ashton Care Homes Ltd.,SOCIAL SERVICES RESIDENTIAL,People's Services,Nursing Care - Ext Provider,A56025
London Borough of Sutton,04/08/2023,50385425,-836.76,Ashton Care Homes Ltd.,SOCIAL SERVICES RESIDENTIAL,People's Services,Nursing Care - 3rd party top up payment,A56023
London Borough of Sutton,04/08/2023,50385365,"3,980.00",Ashurst Lodge Healthcare Ltd,CHILDREN'S SERVICES - RESIDENTIAL,People's Services,Residential Care - Ext Provider,A56114
London Borough of Sutton,04/08/2023,50385365,"-1,990.00",Ashurst Lodge Healthcare Ltd,CHILDREN'S SERVICES - RESIDENTIAL,People's Services,Nursing Care - 3rd party top up payment,A56023
London Borough of Sutton,04/08/2023,50385389,"29,617.55",Aspen Place,SOCIAL SERVICES DAY CARE,People's Services,Nursing Care - Ext Provider,A56025
London Borough of Sutton,04/08/2023,50385389,"-4,017.55",Aspen Place,SOCIAL SERVICES DAY CARE,People's Services,Nursing Care - 3rd party top up payment,A56023
London Borough of Sutton,04/08/2023,50385389,"-14,802.43",Aspen Place,SOCIAL SERVICES DAY CARE,People's Services,Nursing Care - Ext Provider,A56025
London Borough of Sutton,04/08/2023,50385409,"5,699.00",Aspens Charities,SOCIAL SERVICES RESIDENTIAL,People's Services,Residential Care - Ext Provider,A56114
London Borough of Sutton,23/08/2023,50392396,"2,480.00",Aspirations Care Ltd,SOCIAL SERVICES DAY CARE,People's Services,Home Care Services,A56019
London Borough of Sutton,23/08/2023,50392396,"7,356.30",Aspirations Care Ltd,SOCIAL SERVICES DAY CARE,People's Services,Home Care Services,A56019
London Borough of Sutton,05/07/2023,20054515,"-62,035.35",Atalian Servest Limited,PREMISES - CLEANING & LAUNDRY,Resources,FM - Building Cleaning Contract - Servest,A56095
London Borough of Sutton,30/06/2023,20054516,"-65,465.95",Atalian Servest Limited,PREMISES - CLEANING & LAUNDRY,Resources,FM - Building Cleaning Contract - Servest,A56095
London Borough of Sutton,30/06/2023,20054517,"-61,308.71",Atalian Servest Limited,PREMISES - CLEANING & LAUNDRY,Resources,FM - Building Cleaning Contract - Servest,A56095
London Borough of Sutton,31/07/2023,20054974,"11,486.40",Atalian Servest Limited,PREMISES - CLEANING & LAUNDRY,Resources,Security / Surveillance Equipment Maintenance,A20009
London Borough of Sutton,31/07/2023,20055226,"24,211.00",Atalian Servest Limited,PREMISES - CLEANING & LAUNDRY,Resources,Security / Surveillance Equipment Maintenance,A20009
London Borough of Sutton,14/08/2023,20055890,"60,511.39",Atalian Servest Limited,PREMISES - CLEANING & LAUNDRY,Resources,FM - Building Cleaning Contract - Servest,A56095
London Borough of Sutton,14/08/2023,20055929,"1,450.00",Atalian Servest Limited,PREMISES - CLEANING & LAUNDRY,Resources,Contract Cleaning,A27010
London Borough of Sutton,19/05/2023,20056228,774.37,Atalian Servest Limited,PREMISES - CLEANING & LAUNDRY,Resources,FM - Building Cleaning Contract - Servest,A56095
London Borough of Sutton,14/04/2023,20056229,774.37,Atalian Servest Limited,PREMISES - CLEANING & LAUNDRY,Resources,FM - Building Cleaning Contract - Servest,A56095
London Borough of Sutton,21/06/2023,20056230,774.37,Atalian Servest Limited,PREMISES - CLEANING & LAUNDRY,Resources,FM - Building Cleaning Contract - Servest,A56095
London Borough of Sutton,08/08/2023,50387372,"24,312.86",Athena Housing and Support Ltd,CHILDREN'S SERVICES - RESIDENTIAL,People's Services,Residential Care-Children,A56115
London Borough of Sutton,04/08/2023,50385338,"6,400.00",Autism & Aspergers Care Services,SOCIAL SERVICES RESIDENTIAL,People's Services,Residential Care - Ext Provider,A56114
London Borough of Sutton,28/07/2023,50385227,"49,998.57",Avance Ltd,CHILDREN'S SERVICES - FOSTERING & ADOPTION SERVICES,People's Services,Residential Care-Children,A56115
London Borough of Sutton,29/06/2023,50385228,"48,385.71",Avance Ltd,CHILDREN'S SERVICES - FOSTERING & ADOPTION SERVICES,People's Services,Residential Care-Children,A56115
London Borough of Sutton,08/08/2023,50386554,"2,408.40",Avenue Primary Acadamy,SCHOOL FUNDS,People's Services,Pupil Growth,A51014
London Borough of Sutton,08/08/2023,50386555,"9,633.40",Avenue Primary Acadamy,SCHOOL FUNDS,People's Services,Pupil Growth,A51014
London Borough of Sutton,14/08/2023,50388810,764.25,Avenue Primary Acadamy,SCHOOL FUNDS,People's Services,Top-up Funding,A51016
London Borough of Sutton,18/08/2023,50391044,"31,333.33",Avenue Primary Acadamy,SCHOOL FUNDS,People's Services,Top-up individual funding,A60033
London Borough of Sutton,16/08/2023,50389406,"14,136.00",Ayai Care Limited,SOCIAL SERVICES DAY CARE,People's Services,Supported Living,A56088
London Borough of Sutton,16/08/2023,50389471,"13,604.57",Ayai Care Limited,SOCIAL SERVICES DAY CARE,People's Services,Supported Living,A56088
London Borough of Sutton,30/06/2023,50392732,"14,117.57",Ayai Care Limited,SOCIAL SERVICES DAY CARE,People's Services,Approved Lodgings,A61000
London Borough of Sutton,30/08/2023,50394467,"1,290.00",Ayai Care Limited,SOCIAL SERVICES DAY CARE,People's Services,One to One Care,A56108
London Borough of Sutton,30/08/2023,50394468,"1,075.00",Ayai Care Limited,SOCIAL SERVICES DAY CARE,People's Services,One to One Care,A56108
London Borough of Sutton,19/07/2023,50385267,276.79,Back on Track Housing Ltd,SOCIAL SERVICES - OTHER,People's Services,Approved Lodgings,A61000
London Borough of Sutton,19/07/2023,50385267,"6,199.99",Back on Track Housing Ltd,SOCIAL SERVICES - OTHER,People's Services,Approved Lodgings,A61000
London Borough of Sutton,20/07/2023,50385268,"5,059.46",Back on Track Housing Ltd,SOCIAL SERVICES - OTHER,People's Services,Accommodation - Supported Living,A62001
London Borough of Sutton,19/07/2023,50385269,276.79,Back on Track Housing Ltd,SOCIAL SERVICES - OTHER,People's Services,Approved Lodgings,A61000
London Borough of Sutton,19/07/2023,50385269,"6,199.99",Back on Track Housing Ltd,SOCIAL SERVICES - OTHER,People's Services,Approved Lodgings,A61000
London Borough of Sutton,20/07/2023,50385277,276.79,Back on Track Housing Ltd,SOCIAL SERVICES - OTHER,People's Services,Approved Lodgings,A61000
London Borough of Sutton,20/07/2023,50385277,"7,528.56",Back on Track Housing Ltd,SOCIAL SERVICES - OTHER,People's Services,Approved Lodgings,A61000
London Borough of Sutton,01/08/2023,20055061,640.00,Balmont Ltd,CONSTRUCTION INDUSTRY,Environment Housing and Neighbourhoods,Purchases and Repairs Fixtures & Fittings,A25005
London Borough of Sutton,14/08/2023,50388827,820.52,Bandon Hill Primary School (Academy),SCHOOL FUNDS,People's Services,Top-up Funding,A51016
London Borough of Sutton,31/07/2023,20054975,567.16,Banner Group Limited,BOOKS PUBLICATIONS STATIONERY,People's Services,Miscellaneous Expenses,A49000
London Borough of Sutton,02/08/2023,20055285,624.30,Banner Group Limited,BOOKS PUBLICATIONS STATIONERY,Resources,Stationery,A43015
London Borough of Sutton,31/07/2023,50387348,"4,572.50",Banya,SOCIAL SERVICES RESIDENTIAL,People's Services,Foster Parents Support,A44110
London Borough of Sutton,30/06/2023,50389857,"4,620.00",Banya,SOCIAL SERVICES RESIDENTIAL,People's Services,Foster Parents Support,A44110
London Borough of Sutton,02/08/2023,20055337,"1,000.00",REDACTED - PERSONAL DATA,INSTALLATION OF ARTISTIC WORKS (NON-FUNCTIONAL),Health and Wellbeing,Arts Programme,A44286
London Borough of Sutton,04/08/2023,50385511,"4,096.12",Barchester Healthcare Homes Ltd,SOCIAL SERVICES RESIDENTIAL,People's Services,Nursing Care - Ext Provider,A56025
London Borough of Sutton,04/08/2023,50385511,-878.84,Barchester Healthcare Homes Ltd,SOCIAL SERVICES RESIDENTIAL,People's Services,Nursing Care - 3rd party top up payment,A56023
London Borough of Sutton,31/07/2023,20054976,"31,955.25",Barnardo's,CHILDREN'S SERVICES - RESIDENTIAL,People's Services,Miscellaneous Expenses,A49000
London Borough of Sutton,31/07/2023,20054977,"23,984.86",Barnardo's,CHILDREN'S SERVICES - RESIDENTIAL,People's Services,Housing and Support - Generic Services,A62013
London Borough of Sutton,31/07/2023,20055116,"1,125.50",Baylis Landscape Contractors Ltd,CONSTRUCTION INDUSTRY,Environment Housing and Neighbourhoods,Payments to Contractors,C14000
London Borough of Sutton,31/07/2023,20055116,"4,500.00",Baylis Landscape Contractors Ltd,CONSTRUCTION INDUSTRY,Resources,Payments to Contractors,C14000
London Borough of Sutton,31/07/2023,20055116,"17,550.00",Baylis Landscape Contractors Ltd,CONSTRUCTION INDUSTRY,Environment Housing and Neighbourhoods,Payments to Contractors,C14000
London Borough of Sutton,31/07/2023,20055116,"30,000.00",Baylis Landscape Contractors Ltd,CONSTRUCTION INDUSTRY,Environment Housing and Neighbourhoods,Payments to Contractors,C14000
London Borough of Sutton,08/08/2023,50386496,"108,196.24",Beddington Infants School,SCHOOL FUNDS,People's Services,Payments to Schools,A51013
London Borough of Sutton,08/08/2023,50386556,"-45,000.00",Beddington Infants School,SCHOOL FUNDS,People's Services,Payment - school forward funding,A51059
London Borough of Sutton,14/08/2023,50388811,764.25,Beddington Infants School,SCHOOL FUNDS,People's Services,Top-up Funding,A51016
London Borough of Sutton,16/08/2023,50389505,"6,620.72",Beechcroft Care Limited,SOCIAL SERVICES RESIDENTIAL,People's Services,Supported Living,A56088
London Borough of Sutton,16/08/2023,50389505,813.75,Beechcroft Care Limited,SOCIAL SERVICES RESIDENTIAL,People's Services,One to One Care,A56108
London Borough of Sutton,26/07/2023,20054658,"8,664.00",Beeches Tree Care,AGRICULTURAL & ESTATE SERVICES,Environment Housing and Neighbourhoods,Payments to Contractors,C14000
London Borough of Sutton,04/08/2023,20055384,963.24,Beeches Tree Care,AGRICULTURAL & ESTATE SERVICES,Environment Housing and Neighbourhoods,Tree Works,A56042
London Borough of Sutton,08/08/2023,20055551,"9,133.41",Beeches Tree Care,AGRICULTURAL & ESTATE SERVICES,Environment Housing and Neighbourhoods,Maintenance of trees,A28003
London Borough of Sutton,09/08/2023,20055668,"4,114.53",Beeches Tree Care,AGRICULTURAL & ESTATE SERVICES,Environment Housing and Neighbourhoods,Maintenance of trees,A28003
London Borough of Sutton,14/08/2023,20055907,598.38,Beeches Tree Care,AGRICULTURAL & ESTATE SERVICES,Environment Housing and Neighbourhoods,Highway Trees - Maintenance,A28005
London Borough of Sutton,16/08/2023,20056288,"8,739.94",Beeches Tree Care,AGRICULTURAL & ESTATE SERVICES,Environment Housing and Neighbourhoods,Maintenance of trees,A28003
London Borough of Sutton,04/08/2023,50385394,"-3,890.68",Bespoke Care Support Ltd,SOCIAL SERVICES - OTHER,People's Services,Nursing Care - 3rd party top up payment,A56023
London Borough of Sutton,04/08/2023,50385446,"-2,000.00",Bespoke Care Support Ltd,SOCIAL SERVICES - OTHER,People's Services,Nursing Care - 3rd party top up payment,A56023
London Borough of Sutton,16/08/2023,50389500,"8,615.07",Bespoke Care Support Ltd,SOCIAL SERVICES - OTHER,People's Services,Supported Living,A56088
London Borough of Sutton,16/08/2023,50389503,"3,985.72",Bespoke Care Support Ltd,SOCIAL SERVICES - OTHER,People's Services,Supported Living,A56088
London Borough of Sutton,16/08/2023,50389516,"4,428.57",Bespoke Care Support Ltd,SOCIAL SERVICES - OTHER,People's Services,Supported Living,A56088
London Borough of Sutton,23/07/2023,50383896,981.94,Best at Home Domiciliary Care Services Ltd,SOCIAL SERVICES DAY CARE,People's Services,Home Care Services,A56019
London Borough of Sutton,23/07/2023,50383903,505.50,Best at Home Domiciliary Care Services Ltd,SOCIAL SERVICES DAY CARE,People's Services,Home Care Services,A56019
London Borough of Sutton,23/07/2023,50383905,863.00,Best at Home Domiciliary Care Services Ltd,SOCIAL SERVICES DAY CARE,People's Services,Home Care Services,A56019
London Borough of Sutton,23/07/2023,50383920,150.00,Best at Home Domiciliary Care Services Ltd,SOCIAL SERVICES DAY CARE,People's Services,Home Care Services,A56019
London Borough of Sutton,23/07/2023,50383920,677.97,Best at Home Domiciliary Care Services Ltd,SOCIAL SERVICES DAY CARE,People's Services,Home Care Services,A56019
London Borough of Sutton,23/07/2023,50383925,"3,156.00",Best at Home Domiciliary Care Services Ltd,SOCIAL SERVICES DAY CARE,People's Services,Home Care Services,A56019
London Borough of Sutton,23/07/2023,50383931,"3,156.00",Best at Home Domiciliary Care Services Ltd,SOCIAL SERVICES DAY CARE,People's Services,Home Care Services,A56019
London Borough of Sutton,23/07/2023,50383938,901.97,Best at Home Domiciliary Care Services Ltd,SOCIAL SERVICES DAY CARE,People's Services,Home Care Services,A56019
London Borough of Sutton,30/07/2023,50385919,618.73,Best at Home Domiciliary Care Services Ltd,SOCIAL SERVICES DAY CARE,People's Services,Home Care Services,A56019
London Borough of Sutton,30/07/2023,50385924,981.94,Best at Home Domiciliary Care Services Ltd,SOCIAL SERVICES DAY CARE,People's Services,Home Care Services,A56019
London Borough of Sutton,30/07/2023,50385926,544.50,Best at Home Domiciliary Care Services Ltd,SOCIAL SERVICES DAY CARE,People's Services,Home Care Services,A56019
London Borough of Sutton,30/07/2023,50385928,863.00,Best at Home Domiciliary Care Services Ltd,SOCIAL SERVICES DAY CARE,People's Services,Home Care Services,A56019
London Borough of Sutton,30/07/2023,50385939,150.00,Best at Home Domiciliary Care Services Ltd,SOCIAL SERVICES DAY CARE,People's Services,Home Care Services,A56019
London Borough of Sutton,30/07/2023,50385939,677.97,Best at Home Domiciliary Care Services Ltd,SOCIAL SERVICES DAY CARE,People's Services,Home Care Services,A56019
London Borough of Sutton,30/07/2023,50385941,"3,156.00",Best at Home Domiciliary Care Services Ltd,SOCIAL SERVICES DAY CARE,People's Services,Home Care Services,A56019
London Borough of Sutton,30/07/2023,50385943,"3,156.00",Best at Home Domiciliary Care Services Ltd,SOCIAL SERVICES DAY CARE,People's Services,Home Care Services,A56019
London Borough of Sutton,30/07/2023,50385945,901.97,Best at Home Domiciliary Care Services Ltd,SOCIAL SERVICES DAY CARE,People's Services,Home Care Services,A56019
London Borough of Sutton,06/08/2023,50388218,"3,156.00",Best at Home Domiciliary Care Services Ltd,SOCIAL SERVICES DAY CARE,People's Services,Home Care Services,A56019
London Borough of Sutton,06/08/2023,50388232,901.97,Best at Home Domiciliary Care Services Ltd,SOCIAL SERVICES DAY CARE,People's Services,Home Care Services,A56019
London Borough of Sutton,06/08/2023,50388280,981.94,Best at Home Domiciliary Care Services Ltd,SOCIAL SERVICES DAY CARE,People's Services,Home Care Services,A56019
London Borough of Sutton,06/08/2023,50388357,542.50,Best at Home Domiciliary Care Services Ltd,SOCIAL SERVICES DAY CARE,People's Services,Home Care Services,A56019
London Borough of Sutton,06/08/2023,50388377,863.00,Best at Home Domiciliary Care Services Ltd,SOCIAL SERVICES DAY CARE,People's Services,Home Care Services,A56019
London Borough of Sutton,06/08/2023,50388450,150.00,Best at Home Domiciliary Care Services Ltd,SOCIAL SERVICES DAY CARE,People's Services,Home Care Services,A56019
London Borough of Sutton,06/08/2023,50388450,677.97,Best at Home Domiciliary Care Services Ltd,SOCIAL SERVICES DAY CARE,People's Services,Home Care Services,A56019
London Borough of Sutton,06/08/2023,50388464,"3,156.00",Best at Home Domiciliary Care Services Ltd,SOCIAL SERVICES DAY CARE,People's Services,Home Care Services,A56019
London Borough of Sutton,13/08/2023,50392764,66.50,Best at Home Domiciliary Care Services Ltd,SOCIAL SERVICES DAY CARE,People's Services,Home Care Services,A56019
London Borough of Sutton,13/08/2023,50392764,647.48,Best at Home Domiciliary Care Services Ltd,SOCIAL SERVICES DAY CARE,People's Services,Home Care Services,A56019
London Borough of Sutton,13/08/2023,50392794,542.50,Best at Home Domiciliary Care Services Ltd,SOCIAL SERVICES DAY CARE,People's Services,Home Care Services,A56019
London Borough of Sutton,13/08/2023,50392814,863.00,Best at Home Domiciliary Care Services Ltd,SOCIAL SERVICES DAY CARE,People's Services,Home Care Services,A56019
London Borough of Sutton,13/08/2023,50392834,-0.03,Best at Home Domiciliary Care Services Ltd,SOCIAL SERVICES DAY CARE,People's Services,Home Care Services,A56019
London Borough of Sutton,13/08/2023,50392834,828.00,Best at Home Domiciliary Care Services Ltd,SOCIAL SERVICES DAY CARE,People's Services,Home Care Services,A56019
London Borough of Sutton,13/08/2023,50392839,"3,156.00",Best at Home Domiciliary Care Services Ltd,SOCIAL SERVICES DAY CARE,People's Services,Home Care Services,A56019
London Borough of Sutton,13/08/2023,50392859,"3,156.00",Best at Home Domiciliary Care Services Ltd,SOCIAL SERVICES DAY CARE,People's Services,Home Care Services,A56019
London Borough of Sutton,13/08/2023,50392879,901.97,Best at Home Domiciliary Care Services Ltd,SOCIAL SERVICES DAY CARE,People's Services,Home Care Services,A56019
London Borough of Sutton,20/08/2023,50394062,855.47,Best at Home Domiciliary Care Services Ltd,SOCIAL SERVICES DAY CARE,People's Services,Home Care Services,A56019
London Borough of Sutton,20/08/2023,50394117,542.50,Best at Home Domiciliary Care Services Ltd,SOCIAL SERVICES DAY CARE,People's Services,Home Care Services,A56019
London Borough of Sutton,20/08/2023,50394119,863.00,Best at Home Domiciliary Care Services Ltd,SOCIAL SERVICES DAY CARE,People's Services,Home Care Services,A56019
London Borough of Sutton,20/08/2023,50394154,-0.03,Best at Home Domiciliary Care Services Ltd,SOCIAL SERVICES DAY CARE,People's Services,Home Care Services,A56019
London Borough of Sutton,20/08/2023,50394154,828.00,Best at Home Domiciliary Care Services Ltd,SOCIAL SERVICES DAY CARE,People's Services,Home Care Services,A56019
London Borough of Sutton,20/08/2023,50394165,901.97,Best at Home Domiciliary Care Services Ltd,SOCIAL SERVICES DAY CARE,People's Services,Home Care Services,A56019
London Borough of Sutton,31/07/2023,20056756,"9,976.50",Bestcourt UK Ltd,ACCOMMODATION BED & BREAKFAST,Environment Housing and Neighbourhoods,Bed & Breakfast,A56000
London Borough of Sutton,16/08/2023,50389448,"4,650.00",BETTER LIFE SUPPORTED LIVING LIMITED,SOCIAL SERVICES RESIDENTIAL,People's Services,One to One Care,A56108
London Borough of Sutton,28/06/2023,20054978,708.00,Bevan Brittan LLP,LEGAL & PROFESSIONAL SERVICES,HRA,External Fees and Consultants,C20000
London Borough of Sutton,28/07/2023,20055077,557.00,Bevan Brittan LLP,LEGAL & PROFESSIONAL SERVICES,HRA,External Legal Fees,C20008
London Borough of Sutton,28/07/2023,20055078,924.00,Bevan Brittan LLP,LEGAL & PROFESSIONAL SERVICES,HRA,External Fees and Consultants,C20000
London Borough of Sutton,31/07/2023,20055202,"1,553.00",Bevan Brittan LLP,LEGAL & PROFESSIONAL SERVICES,Development Growth and Regeneration,External Legal Fees,C20008
London Borough of Sutton,31/07/2023,20055412,630.00,Bevan Brittan LLP,LEGAL & PROFESSIONAL SERVICES,People's Services,External Fees and Consultants,C20000
London Borough of Sutton,01/08/2023,20055118,"56,700.00",Bloom Procurement Services Ltd,TEMP STAFF & CONSULTANCY,Resources,Professional Fees,A44066
London Borough of Sutton,04/07/2023,50393916,"19,850.00",Blossom House Lower School,SCHOOL FUNDS,People's Services,Independent School Fees,A56002
London Borough of Sutton,01/07/2023,50393919,"15,136.38",Blossom House Lower School,SCHOOL FUNDS,People's Services,Independent School Fees,A56002
London Borough of Sutton,01/07/2023,50393920,"17,545.63",Blossom House Lower School,SCHOOL FUNDS,People's Services,Independent School Fees,A56002
London Borough of Sutton,01/07/2023,50393921,"15,974.38",Blossom House Lower School,SCHOOL FUNDS,People's Services,Independent School Fees,A56002
London Borough of Sutton,01/07/2023,50393922,"15,136.38",Blossom House Lower School,SCHOOL FUNDS,People's Services,Independent School Fees,A56002
London Borough of Sutton,01/07/2023,50393923,"24,703.54",Blossom House Lower School,SCHOOL FUNDS,People's Services,Independent School Fees,A56002
London Borough of Sutton,01/07/2023,50393924,"15,974.38",Blossom House Lower School,SCHOOL FUNDS,People's Services,Independent School Fees,A56002
London Borough of Sutton,01/07/2023,50393925,"13,355.63",Blossom House Lower School,SCHOOL FUNDS,People's Services,Independent School Fees,A56002
London Borough of Sutton,01/07/2023,50393926,"13,355.63",Blossom House Lower School,SCHOOL FUNDS,People's Services,Independent School Fees,A56002
London Borough of Sutton,01/07/2023,50393927,"15,974.38",Blossom House Lower School,SCHOOL FUNDS,People's Services,Independent School Fees,A56002
London Borough of Sutton,01/07/2023,50393928,"17,545.63",Blossom House Lower School,SCHOOL FUNDS,People's Services,Independent School Fees,A56002
London Borough of Sutton,01/07/2023,50393929,"16,707.63",Blossom House Lower School,SCHOOL FUNDS,People's Services,Independent School Fees,A56002
London Borough of Sutton,01/07/2023,50393930,"16,850.00",Blossom House Lower School,SCHOOL FUNDS,People's Services,Independent School Fees,A56002
London Borough of Sutton,31/07/2023,20055105,660.01,BOC Limited,BUILDING MNTCE - SERVICES,Resources,Equipment And Materials Purchase,A40000
London Borough of Sutton,27/07/2023,20054854,"1,938.46",REDACTED - PERSONAL DATA,SUNDRY SUPPLIER - HOUSING,Environment Housing and Neighbourhoods,Rent Deposit Scheme,B32179
London Borough of Sutton,31/07/2023,20054979,"3,025.50",Box Twenty Consulting Engineers Ltd,TEMP STAFF & CONSULTANCY,HRA,External Fees and Consultants,C20000
London Borough of Sutton,04/08/2023,50385339,"2,400.00",Brama Care Ltd,SOCIAL SERVICES-HOME CARE,People's Services,Nursing Care - Ext Provider,A56025
London Borough of Sutton,04/08/2023,50385517,-878.84,Bridge House Care Centre,SOCIAL SERVICES RESIDENTIAL,People's Services,Nursing Care - 3rd party top up payment,A56023
London Borough of Sutton,04/08/2023,50385517,"4,560.00",Bridge House Care Centre,SOCIAL SERVICES RESIDENTIAL,People's Services,Nursing Care Short Term,A56026
London Borough of Sutton,04/08/2023,50385518,"4,096.12",Bridge House Care Centre,SOCIAL SERVICES RESIDENTIAL,People's Services,Nursing Care - Ext Provider,A56025
London Borough of Sutton,04/08/2023,50385518,-878.84,Bridge House Care Centre,SOCIAL SERVICES RESIDENTIAL,People's Services,Nursing Care - 3rd party top up payment,A56023
London Borough of Sutton,04/08/2023,50385554,"4,096.12",Bridge House Care Centre,SOCIAL SERVICES RESIDENTIAL,People's Services,Nursing Care - Ext Provider,A56025
London Borough of Sutton,04/08/2023,50385554,-878.84,Bridge House Care Centre,SOCIAL SERVICES RESIDENTIAL,People's Services,Nursing Care - 3rd party top up payment,A56023
London Borough of Sutton,04/08/2023,50385555,-750.40,Bridge House Care Centre,SOCIAL SERVICES RESIDENTIAL,People's Services,Nursing Care - 3rd party top up payment,A56023
London Borough of Sutton,04/08/2023,50385555,"3,734.88",Bridge House Care Centre,SOCIAL SERVICES RESIDENTIAL,People's Services,Nursing Care Short Term,A56026
London Borough of Sutton,04/08/2023,50385596,"4,978.76",Bridge House Care Centre,SOCIAL SERVICES RESIDENTIAL,People's Services,Nursing Care - Ext Provider,A56025
London Borough of Sutton,04/08/2023,50385596,-836.76,Bridge House Care Centre,SOCIAL SERVICES RESIDENTIAL,People's Services,Nursing Care - 3rd party top up payment,A56023
London Borough of Sutton,04/08/2023,50385597,"4,096.12",Bridge House Care Centre,SOCIAL SERVICES RESIDENTIAL,People's Services,Nursing Care Short Term,A56026
London Borough of Sutton,04/08/2023,50385597,-878.84,Bridge House Care Centre,SOCIAL SERVICES RESIDENTIAL,People's Services,Nursing Care - 3rd party top up payment,A56023
London Borough of Sutton,04/08/2023,50385598,"4,096.12",Bridge House Care Centre,SOCIAL SERVICES RESIDENTIAL,People's Services,Nursing Care - Ext Provider,A56025
London Borough of Sutton,04/08/2023,50385599,"4,096.12",Bridge House Care Centre,SOCIAL SERVICES RESIDENTIAL,People's Services,Nursing Care - Ext Provider,A56025
London Borough of Sutton,04/08/2023,50385599,-878.84,Bridge House Care Centre,SOCIAL SERVICES RESIDENTIAL,People's Services,Nursing Care - 3rd party top up payment,A56023
London Borough of Sutton,04/08/2023,50385639,-156.94,Bridge House Care Centre,SOCIAL SERVICES RESIDENTIAL,People's Services,Nursing Care - 3rd party top up payment,A56023
London Borough of Sutton,04/08/2023,50385639,731.45,Bridge House Care Centre,SOCIAL SERVICES RESIDENTIAL,People's Services,Respite Care,A56116
London Borough of Sutton,04/08/2023,50385640,"4,096.12",Bridge House Care Centre,SOCIAL SERVICES RESIDENTIAL,People's Services,Nursing Care - Ext Provider,A56025
London Borough of Sutton,04/08/2023,50385640,-878.84,Bridge House Care Centre,SOCIAL SERVICES RESIDENTIAL,People's Services,Nursing Care - 3rd party top up payment,A56023
London Borough of Sutton,04/08/2023,50385641,"4,096.12",Bridge House Care Centre,SOCIAL SERVICES RESIDENTIAL,People's Services,Nursing Care - Ext Provider,A56025
London Borough of Sutton,04/08/2023,50385641,-878.84,Bridge House Care Centre,SOCIAL SERVICES RESIDENTIAL,People's Services,Nursing Care - 3rd party top up payment,A56023
London Borough of Sutton,04/08/2023,50385688,-878.84,Bridge House Care Centre,SOCIAL SERVICES RESIDENTIAL,People's Services,Nursing Care - 3rd party top up payment,A56023
London Borough of Sutton,04/08/2023,50385689,"4,096.12",Bridge House Care Centre,SOCIAL SERVICES RESIDENTIAL,People's Services,Nursing Care - Ext Provider,A56025
London Borough of Sutton,04/08/2023,50385689,-878.84,Bridge House Care Centre,SOCIAL SERVICES RESIDENTIAL,People's Services,Nursing Care - 3rd party top up payment,A56023
London Borough of Sutton,04/08/2023,50385702,"4,096.12",Bridge House Care Centre,SOCIAL SERVICES RESIDENTIAL,People's Services,Nursing Care - Ext Provider,A56025
London Borough of Sutton,04/08/2023,50385746,-878.84,Bridge House Care Centre,SOCIAL SERVICES RESIDENTIAL,People's Services,Nursing Care - 3rd party top up payment,A56023
London Borough of Sutton,04/08/2023,50385768,-878.84,Bridge House Care Centre,SOCIAL SERVICES RESIDENTIAL,People's Services,Nursing Care - 3rd party top up payment,A56023
London Borough of Sutton,04/08/2023,50385768,"4,560.00",Bridge House Care Centre,SOCIAL SERVICES RESIDENTIAL,People's Services,Nursing Care - Ext Provider,A56025
London Borough of Sutton,04/08/2023,50385769,-878.84,Bridge House Care Centre,SOCIAL SERVICES RESIDENTIAL,People's Services,Nursing Care - 3rd party top up payment,A56023
London Borough of Sutton,04/08/2023,50385769,"5,278.84",Bridge House Care Centre,SOCIAL SERVICES RESIDENTIAL,People's Services,Respite Care,A56116
London Borough of Sutton,04/08/2023,50385798,"4,096.12",Bridge House Care Centre,SOCIAL SERVICES RESIDENTIAL,People's Services,Nursing Care - Ext Provider,A56025
London Borough of Sutton,04/08/2023,50385798,-878.84,Bridge House Care Centre,SOCIAL SERVICES RESIDENTIAL,People's Services,Nursing Care - 3rd party top up payment,A56023
London Borough of Sutton,04/08/2023,50385806,-878.84,Bridge House Care Centre,SOCIAL SERVICES RESIDENTIAL,People's Services,Nursing Care - 3rd party top up payment,A56023
London Borough of Sutton,04/08/2023,50385806,"4,096.12",Bridge House Care Centre,SOCIAL SERVICES RESIDENTIAL,People's Services,Nursing Care Short Term,A56026
London Borough of Sutton,04/08/2023,50385831,"4,096.12",Bridge House Care Centre,SOCIAL SERVICES RESIDENTIAL,People's Services,Nursing Care - Ext Provider,A56025
London Borough of Sutton,04/08/2023,50385831,-878.84,Bridge House Care Centre,SOCIAL SERVICES RESIDENTIAL,People's Services,Nursing Care - 3rd party top up payment,A56023
London Borough of Sutton,04/08/2023,50385846,-878.84,Bridge House Care Centre,SOCIAL SERVICES RESIDENTIAL,People's Services,Nursing Care - 3rd party top up payment,A56023
London Borough of Sutton,04/08/2023,50385846,"4,096.12",Bridge House Care Centre,SOCIAL SERVICES RESIDENTIAL,People's Services,Nursing Care - Ext Provider,A56025
London Borough of Sutton,04/08/2023,50385856,"-13,933.18",Bridge House Care Centre,SOCIAL SERVICES RESIDENTIAL,People's Services,Nursing Care Short Term,A56026
London Borough of Sutton,04/08/2023,50385856,"3,167.73",Bridge House Care Centre,SOCIAL SERVICES RESIDENTIAL,People's Services,Nursing Care - 3rd party top up payment,A56023
London Borough of Sutton,31/07/2023,20055010,"3,900.00",Bridgestock Housing Services,CHILDREN'S SERVICES - RESIDENTIAL,People's Services,Approved Lodgings,A61000
London Borough of Sutton,31/07/2023,20055047,"4,133.33",Bridgestock Housing Services,CHILDREN'S SERVICES - RESIDENTIAL,People's Services,Approved Lodgings,A61000
London Borough of Sutton,31/07/2023,50385224,196.43,Bridgestock Housing Services,CHILDREN'S SERVICES - RESIDENTIAL,People's Services,Approved Lodgings,A61000
London Borough of Sutton,31/07/2023,50385224,"3,692.86",Bridgestock Housing Services,CHILDREN'S SERVICES - RESIDENTIAL,People's Services,Approved Lodgings,A61000
London Borough of Sutton,31/07/2023,50387337,133.93,Bridgestock Housing Services,CHILDREN'S SERVICES - RESIDENTIAL,People's Services,Approved Lodgings,A61000
London Borough of Sutton,31/07/2023,50387337,"2,892.86",Bridgestock Housing Services,CHILDREN'S SERVICES - RESIDENTIAL,People's Services,Approved Lodgings,A61000
London Borough of Sutton,01/07/2023,50385298,"3,498.57",Bridging Gaps Limited,CHILDREN'S SERVICES - FOSTERING & ADOPTION SERVICES,People's Services,Foster Parents Support,A44110
London Borough of Sutton,01/07/2023,50385299,"3,498.57",Bridging Gaps Limited,CHILDREN'S SERVICES - FOSTERING & ADOPTION SERVICES,People's Services,Foster Parents Support,A44110
London Borough of Sutton,26/06/2023,50385311,"4,041.07",Bridging the Gap,CHILDREN'S SERVICE - OTHER,People's Services,Approved Lodgings,A61000
London Borough of Sutton,01/07/2023,50385304,"3,485.02",Brighter Futures Foster Care Ltd,CHILDREN'S SERVICES - FOSTERING & ADOPTION SERVICES,People's Services,Foster Parents Support,A44110
London Borough of Sutton,01/07/2023,50385305,"3,683.73",Brighter Futures Foster Care Ltd,CHILDREN'S SERVICES - FOSTERING & ADOPTION SERVICES,People's Services,Foster Parents Support,A44110
London Borough of Sutton,03/08/2023,20056142,"1,954.22",British Gas,UTILITIES,Resources,Electricity,A21000
London Borough of Sutton,04/08/2023,50385509,-772.64,British Home & Hospital For Incurables,SOCIAL SERVICES RESIDENTIAL,People's Services,Nursing Care - Client Cont ( Net paymt ),A56024
London Borough of Sutton,04/08/2023,50385509,"2,591.80",British Home & Hospital For Incurables,SOCIAL SERVICES RESIDENTIAL,People's Services,Nursing Care - Ext Provider,A56025
London Borough of Sutton,28/07/2023,20055256,"2,268.80",Browne Jacobson LLP,LEGAL & PROFESSIONAL SERVICES,Resources,Legal Services,A44025
London Borough of Sutton,27/07/2023,20055257,"1,675.60",Browne Jacobson LLP,LEGAL & PROFESSIONAL SERVICES,Resources,Legal Services,A44025
London Borough of Sutton,26/07/2023,20055258,"17,717.88",Browne Jacobson LLP,LEGAL & PROFESSIONAL SERVICES,Resources,Legal Services,A44025
London Borough of Sutton,27/07/2023,20055260,"1,564.48",Browne Jacobson LLP,LEGAL & PROFESSIONAL SERVICES,Resources,Legal Services,A44025
London Borough of Sutton,22/08/2023,50393867,"1,833.29",Brunel SEN Multi Academy Trust,CHILDREN'S SERVICES - SEN SERVICES,People's Services,Top-up Funding,A51016
London Borough of Sutton,04/08/2023,50385362,"8,091.16",Bupa Care Services,SOCIAL SERVICES RESIDENTIAL,People's Services,Nursing Care Short Term,A56026
London Borough of Sutton,04/08/2023,50385362,"-1,436.76",Bupa Care Services,SOCIAL SERVICES RESIDENTIAL,People's Services,Nursing Care - 3rd party top up payment,A56023
London Borough of Sutton,04/08/2023,50385474,"7,084.60",Bupa Care Services,SOCIAL SERVICES RESIDENTIAL,People's Services,Nursing Care Short Term,A56026
London Borough of Sutton,04/08/2023,50385474,-836.76,Bupa Care Services,SOCIAL SERVICES RESIDENTIAL,People's Services,Nursing Care - 3rd party top up payment,A56023
London Borough of Sutton,04/08/2023,50385590,"4,096.12",Bupa Care Services,SOCIAL SERVICES RESIDENTIAL,People's Services,Nursing Care Short Term,A56026
London Borough of Sutton,04/08/2023,50385590,-878.84,Bupa Care Services,SOCIAL SERVICES RESIDENTIAL,People's Services,Nursing Care - 3rd party top up payment,A56023
London Borough of Sutton,04/08/2023,50385655,"4,339.24",Bupa Care Services,SOCIAL SERVICES RESIDENTIAL,People's Services,Nursing Care - Ext Provider,A56025
London Borough of Sutton,04/08/2023,50385655,-878.84,Bupa Care Services,SOCIAL SERVICES RESIDENTIAL,People's Services,Nursing Care - 3rd party top up payment,A56023
London Borough of Sutton,04/08/2023,50385664,"4,096.12",Bupa Care Services,SOCIAL SERVICES RESIDENTIAL,People's Services,Nursing Care - Ext Provider,A56025
London Borough of Sutton,04/08/2023,50385669,-878.84,Bupa Care Services,SOCIAL SERVICES RESIDENTIAL,People's Services,Nursing Care - 3rd party top up payment,A56023
London Borough of Sutton,04/08/2023,50385682,"3,821.24",Bupa Care Services,SOCIAL SERVICES RESIDENTIAL,People's Services,Nursing Care Short Term,A56026
London Borough of Sutton,04/08/2023,50385682,-836.76,Bupa Care Services,SOCIAL SERVICES RESIDENTIAL,People's Services,Nursing Care - 3rd party top up payment,A56023
London Borough of Sutton,04/08/2023,50385723,"-2,944.48",Bupa Care Services,SOCIAL SERVICES RESIDENTIAL,People's Services,Respite Care,A56116
London Borough of Sutton,04/08/2023,50385723,596.36,Bupa Care Services,SOCIAL SERVICES RESIDENTIAL,People's Services,Nursing Care - 3rd party top up payment,A56023
London Borough of Sutton,04/08/2023,50385455,"8,118.48",Butterfly's Care Homes Ltd,SOCIAL SERVICES RESIDENTIAL,People's Services,Residential Care - Ext Provider,A56114
London Borough of Sutton,01/08/2023,50385213,"2,975.69",By The Bridge Ltd,CHILDREN'S SERVICES - FOSTERING & ADOPTION SERVICES,People's Services,Foster Parents Support,A44110
London Borough of Sutton,01/08/2023,50385214,"4,667.05",By The Bridge Ltd,CHILDREN'S SERVICES - FOSTERING & ADOPTION SERVICES,People's Services,Foster Parents Support,A44110
London Borough of Sutton,01/08/2023,50385217,"2,975.69",By The Bridge Ltd,CHILDREN'S SERVICES - FOSTERING & ADOPTION SERVICES,People's Services,Foster Parents Support,A44110
London Borough of Sutton,31/07/2023,20055026,"7,440.00",Cablesheer (Asbestos) Ltd,CONSTRUCTION INDUSTRY,HRA,Payments to Contractors,C14000
London Borough of Sutton,23/06/2023,50385245,"24,374.68",Calcot Services for Children Ltd,CHILDREN'S SERVICES - FOSTERING & ADOPTION SERVICES,People's Services,Residential Care-Children,A56115
London Borough of Sutton,12/07/2023,20056190,"7,000.00",Calfordseaden LLP,LEGAL & PROFESSIONAL SERVICES,Development Growth and Regeneration,External Fees and Consultants,C20000
London Borough of Sutton,25/07/2023,50385288,"20,105.67",Cambian Childcare Ltd,CHILDREN'S SERVICES - FOSTERING & ADOPTION SERVICES,People's Services,Residential Care-Children,A56115
London Borough of Sutton,25/08/2023,50393870,"4,071.43",Cambian Childcare Ltd,CHILDREN'S SERVICES - FOSTERING & ADOPTION SERVICES,People's Services,Independent School Fees,A56002
London Borough of Sutton,03/07/2023,50393873,"7,462.67",Canbury School LTD,GRANTS & EX GRATIA PAYMENTS,People's Services,Independent School Fees,A56002
London Borough of Sutton,04/08/2023,50385333,"4,060.72",Canterbury Oast Trust,SOCIAL SERVICES RESIDENTIAL,People's Services,Residential Care - Ext Provider,A56114
London Borough of Sutton,04/08/2023,50385333,204.72,Canterbury Oast Trust,SOCIAL SERVICES RESIDENTIAL,People's Services,One to One Care,A56108
London Borough of Sutton,04/08/2023,50385333,"-1,032.56",Canterbury Oast Trust,SOCIAL SERVICES RESIDENTIAL,People's Services,Residential Care - Client Cont ( Net Paymt ),A56113
London Borough of Sutton,30/08/2023,50394018,"1,000.00",Caprani Care Limited,SOCIAL SERVICES RESIDENTIAL,People's Services,Day Care Services,A56021
London Borough of Sutton,30/08/2023,50394465,"2,770.32",Caprani Care Limited,SOCIAL SERVICES RESIDENTIAL,People's Services,Supported Living,A56088
London Borough of Sutton,30/08/2023,50394465,"2,464.00",Caprani Care Limited,SOCIAL SERVICES RESIDENTIAL,People's Services,One to One Care,A56108
London Borough of Sutton,30/08/2023,50394465,841.68,Caprani Care Limited,SOCIAL SERVICES RESIDENTIAL,People's Services,Supported Living,A56088
London Borough of Sutton,31/07/2023,50387363,"6,125.29",Capstone Foster Care (South East) Ltd,CHILDREN'S SERVICES - FOSTERING & ADOPTION SERVICES,People's Services,Foster Parents Support,A44110
London Borough of Sutton,31/07/2023,50387366,"5,977.42",Capstone Foster Care (South East) Ltd,CHILDREN'S SERVICES - FOSTERING & ADOPTION SERVICES,People's Services,Foster Parents Support,A44110
London Borough of Sutton,01/08/2023,20055128,"5,535.67",Care Advocates Ltd,MANAGEMENT & TRAINING SERVICES,People's Services,Approved Lodgings,A61000
London Borough of Sutton,31/07/2023,50384282,"3,909.72",Care Advocates Ltd,MANAGEMENT & TRAINING SERVICES,People's Services,Supported Living,A56088
London Borough of Sutton,31/07/2023,50384282,"2,976.00",Care Advocates Ltd,MANAGEMENT & TRAINING SERVICES,People's Services,Supported Living,A56088
London Borough of Sutton,31/07/2023,50384282,"2,573.31",Care Advocates Ltd,MANAGEMENT & TRAINING SERVICES,People's Services,Supported Living,A56088
London Borough of Sutton,31/07/2023,50384283,"-3,635.06",Care Advocates Ltd,MANAGEMENT & TRAINING SERVICES,People's Services,Supported Living,A56088
London Borough of Sutton,31/07/2023,50384283,"6,547.20",Care Advocates Ltd,MANAGEMENT & TRAINING SERVICES,People's Services,Supported Living,A56088
London Borough of Sutton,31/07/2023,50384283,"2,573.31",Care Advocates Ltd,MANAGEMENT & TRAINING SERVICES,People's Services,Supported Living,A56088
London Borough of Sutton,31/07/2023,50384287,"1,800.70",Care Advocates Ltd,MANAGEMENT & TRAINING SERVICES,People's Services,Supported Living,A56088
London Borough of Sutton,31/07/2023,50384287,"2,465.83",Care Advocates Ltd,MANAGEMENT & TRAINING SERVICES,People's Services,Supported Living,A56088
London Borough of Sutton,31/07/2023,50384287,"2,573.31",Care Advocates Ltd,MANAGEMENT & TRAINING SERVICES,People's Services,Supported Living,A56088
London Borough of Sutton,31/07/2023,50384288,"2,662.86",Care Advocates Ltd,MANAGEMENT & TRAINING SERVICES,People's Services,Supported Living,A56088
London Borough of Sutton,31/07/2023,50384288,"1,554.34",Care Advocates Ltd,MANAGEMENT & TRAINING SERVICES,People's Services,Supported Living,A56088
London Borough of Sutton,31/07/2023,50384288,"1,242.52",Care Advocates Ltd,MANAGEMENT & TRAINING SERVICES,People's Services,Supported Living,A56088
London Borough of Sutton,04/08/2023,50385340,"3,400.00",Care Assist Ltd.,SOCIAL SERVICES RESIDENTIAL,People's Services,Residential Care - Ext Provider,A56114
London Borough of Sutton,04/08/2023,50385340,"-1,700.00",Care Assist Ltd.,SOCIAL SERVICES RESIDENTIAL,People's Services,Nursing Care - 3rd party top up payment,A56023
London Borough of Sutton,04/08/2023,50385390,"3,320.32",Care Concern Group,SOCIAL SERVICES RESIDENTIAL,People's Services,Residential Care - Ext Provider,A56114
London Borough of Sutton,16/08/2023,50389490,"2,070.35",Care Connexions UK Limited,SOCIAL SERVICES RESIDENTIAL,People's Services,One to One Care,A56108
London Borough of Sutton,04/08/2023,50385515,"3,768.36",Care Direct Uk Ltd,SOCIAL SERVICES RESIDENTIAL,People's Services,Residential Care - Ext Provider,A56114
London Borough of Sutton,31/07/2023,50385319,"44,671.00",Care Hubz Ltd,CHILDREN'S SERVICE - OTHER,People's Services,Residential Care-Children,A56115
London Borough of Sutton,30/07/2023,50387414,273.00,Care More Ltd,SOCIAL SERVICES RESIDENTIAL,People's Services,Home Care Services,A56019
London Borough of Sutton,30/07/2023,50387414,"1,022.00",Care More Ltd,SOCIAL SERVICES RESIDENTIAL,People's Services,Home Care Services,A56019
London Borough of Sutton,06/08/2023,50387415,273.00,Care More Ltd,SOCIAL SERVICES RESIDENTIAL,People's Services,Home Care Services,A56019
London Borough of Sutton,06/08/2023,50387415,"1,022.00",Care More Ltd,SOCIAL SERVICES RESIDENTIAL,People's Services,Home Care Services,A56019
London Borough of Sutton,30/07/2023,50387417,728.00,Care More Ltd,SOCIAL SERVICES RESIDENTIAL,People's Services,Home Care Services,A56019
London Borough of Sutton,30/07/2023,50387417,136.50,Care More Ltd,SOCIAL SERVICES RESIDENTIAL,People's Services,Home Care Services,A56019
London Borough of Sutton,30/07/2023,50387425,773.54,Care More Ltd,SOCIAL SERVICES RESIDENTIAL,People's Services,Home Care Services,A56019
London Borough of Sutton,06/08/2023,50387426,773.54,Care More Ltd,SOCIAL SERVICES RESIDENTIAL,People's Services,Home Care Services,A56019
London Borough of Sutton,30/07/2023,50387427,728.00,Care More Ltd,SOCIAL SERVICES RESIDENTIAL,People's Services,Home Care Services,A56019
London Borough of Sutton,06/08/2023,50387428,728.00,Care More Ltd,SOCIAL SERVICES RESIDENTIAL,People's Services,Home Care Services,A56019
London Borough of Sutton,30/07/2023,50387429,891.07,Care More Ltd,SOCIAL SERVICES RESIDENTIAL,People's Services,Home Care Services,A56019
London Borough of Sutton,30/07/2023,50387429,33.00,Care More Ltd,SOCIAL SERVICES RESIDENTIAL,People's Services,Home Care Services,A56019
London Borough of Sutton,06/08/2023,50387430,927.07,Care More Ltd,SOCIAL SERVICES RESIDENTIAL,People's Services,Home Care Services,A56019
London Borough of Sutton,06/08/2023,50387430,20.00,Care More Ltd,SOCIAL SERVICES RESIDENTIAL,People's Services,Home Care Services,A56019
London Borough of Sutton,30/07/2023,50387533,893.54,Care More Ltd,SOCIAL SERVICES RESIDENTIAL,People's Services,Home Care Services,A56019
London Borough of Sutton,06/08/2023,50387534,893.54,Care More Ltd,SOCIAL SERVICES RESIDENTIAL,People's Services,Home Care Services,A56019
London Borough of Sutton,30/07/2023,50387545,917.07,Care More Ltd,SOCIAL SERVICES RESIDENTIAL,People's Services,Home Care Services,A56019
London Borough of Sutton,06/08/2023,50387546,917.07,Care More Ltd,SOCIAL SERVICES RESIDENTIAL,People's Services,Home Care Services,A56019
London Borough of Sutton,30/07/2023,50387549,962.61,Care More Ltd,SOCIAL SERVICES RESIDENTIAL,People's Services,Home Care Services,A56019
London Borough of Sutton,06/08/2023,50387550,962.61,Care More Ltd,SOCIAL SERVICES RESIDENTIAL,People's Services,Home Care Services,A56019
London Borough of Sutton,30/07/2023,50388162,39.00,Care More Ltd,SOCIAL SERVICES RESIDENTIAL,People's Services,Home Care Services,A56019
London Borough of Sutton,30/07/2023,50388162,678.07,Care More Ltd,SOCIAL SERVICES RESIDENTIAL,People's Services,Home Care Services,A56019
London Borough of Sutton,06/08/2023,50388163,13.00,Care More Ltd,SOCIAL SERVICES RESIDENTIAL,People's Services,Home Care Services,A56019
London Borough of Sutton,06/08/2023,50388163,704.07,Care More Ltd,SOCIAL SERVICES RESIDENTIAL,People's Services,Home Care Services,A56019
London Borough of Sutton,02/07/2023,50388164,13.00,Care More Ltd,SOCIAL SERVICES RESIDENTIAL,People's Services,Home Care Services,A56019
London Borough of Sutton,02/07/2023,50388164,704.07,Care More Ltd,SOCIAL SERVICES RESIDENTIAL,People's Services,Home Care Services,A56019
London Borough of Sutton,09/07/2023,50388165,26.00,Care More Ltd,SOCIAL SERVICES RESIDENTIAL,People's Services,Home Care Services,A56019
London Borough of Sutton,09/07/2023,50388165,691.07,Care More Ltd,SOCIAL SERVICES RESIDENTIAL,People's Services,Home Care Services,A56019
London Borough of Sutton,13/08/2023,50394025,917.07,Care More Ltd,SOCIAL SERVICES RESIDENTIAL,People's Services,Home Care Services,A56019
London Borough of Sutton,20/08/2023,50394026,917.07,Care More Ltd,SOCIAL SERVICES RESIDENTIAL,People's Services,Home Care Services,A56019
London Borough of Sutton,13/08/2023,50394029,962.61,Care More Ltd,SOCIAL SERVICES RESIDENTIAL,People's Services,Home Care Services,A56019
London Borough of Sutton,20/08/2023,50394030,962.61,Care More Ltd,SOCIAL SERVICES RESIDENTIAL,People's Services,Home Care Services,A56019
London Borough of Sutton,13/08/2023,50394040,273.00,Care More Ltd,SOCIAL SERVICES RESIDENTIAL,People's Services,Home Care Services,A56019
London Borough of Sutton,13/08/2023,50394040,"1,022.00",Care More Ltd,SOCIAL SERVICES RESIDENTIAL,People's Services,Home Care Services,A56019
London Borough of Sutton,13/08/2023,50394094,773.54,Care More Ltd,SOCIAL SERVICES RESIDENTIAL,People's Services,Home Care Services,A56019
London Borough of Sutton,20/08/2023,50394095,773.54,Care More Ltd,SOCIAL SERVICES RESIDENTIAL,People's Services,Home Care Services,A56019
London Borough of Sutton,13/08/2023,50394108,728.00,Care More Ltd,SOCIAL SERVICES RESIDENTIAL,People's Services,Home Care Services,A56019
London Borough of Sutton,20/08/2023,50394109,728.00,Care More Ltd,SOCIAL SERVICES RESIDENTIAL,People's Services,Home Care Services,A56019
London Borough of Sutton,13/08/2023,50394113,917.07,Care More Ltd,SOCIAL SERVICES RESIDENTIAL,People's Services,Home Care Services,A56019
London Borough of Sutton,13/08/2023,50394113,20.00,Care More Ltd,SOCIAL SERVICES RESIDENTIAL,People's Services,Home Care Services,A56019
London Borough of Sutton,20/08/2023,50394114,917.07,Care More Ltd,SOCIAL SERVICES RESIDENTIAL,People's Services,Home Care Services,A56019
London Borough of Sutton,20/08/2023,50394114,20.00,Care More Ltd,SOCIAL SERVICES RESIDENTIAL,People's Services,Home Care Services,A56019
London Borough of Sutton,20/08/2023,50394123,773.54,Care More Ltd,SOCIAL SERVICES RESIDENTIAL,People's Services,Home Care Services,A56019
London Borough of Sutton,13/08/2023,50394196,833.54,Care More Ltd,SOCIAL SERVICES RESIDENTIAL,People's Services,Home Care Services,A56019
London Borough of Sutton,20/08/2023,50394197,833.54,Care More Ltd,SOCIAL SERVICES RESIDENTIAL,People's Services,Home Care Services,A56019
London Borough of Sutton,04/08/2023,50385352,"4,772.96",Care UK Homecare Ltd,SOCIAL SERVICES RESIDENTIAL,People's Services,Residential Care - Ext Provider,A56114
London Borough of Sutton,04/08/2023,50385352,-563.20,Care UK Homecare Ltd,SOCIAL SERVICES RESIDENTIAL,People's Services,Residential Care - Client Cont ( Net Paymt ),A56113
London Borough of Sutton,04/08/2023,50385424,"4,400.00",Care UK Homecare Ltd,SOCIAL SERVICES RESIDENTIAL,People's Services,Residential Care - Ext Provider,A56114
London Borough of Sutton,04/08/2023,50385526,-836.76,Care UK Homecare Ltd,SOCIAL SERVICES RESIDENTIAL,People's Services,Nursing Care - 3rd party top up payment,A56023
London Borough of Sutton,04/08/2023,50385665,"4,560.00",Care UK Homecare Ltd,SOCIAL SERVICES RESIDENTIAL,People's Services,Nursing Care - Ext Provider,A56025
London Borough of Sutton,04/08/2023,50385671,"4,096.12",Care UK Homecare Ltd,SOCIAL SERVICES RESIDENTIAL,People's Services,Nursing Care - Ext Provider,A56025
London Borough of Sutton,04/08/2023,50385671,-878.84,Care UK Homecare Ltd,SOCIAL SERVICES RESIDENTIAL,People's Services,Nursing Care - 3rd party top up payment,A56023
London Borough of Sutton,04/08/2023,50385706,-836.76,Care UK Homecare Ltd,SOCIAL SERVICES RESIDENTIAL,People's Services,Nursing Care - 3rd party top up payment,A56023
London Borough of Sutton,04/08/2023,50385706,"4,560.00",Care UK Homecare Ltd,SOCIAL SERVICES RESIDENTIAL,People's Services,Nursing Care Short Term,A56026
London Borough of Sutton,31/07/2023,50383856,"5,931.52",Care Unlimited Domcare Ltd,SOCIAL SERVICES DAY CARE,People's Services,Supported Living,A56088
London Borough of Sutton,30/05/2023,50392835,410.56,Care Unlimited Domcare Ltd,SOCIAL SERVICES DAY CARE,People's Services,Supported Living,A56088
London Borough of Sutton,30/05/2023,50392835,"3,595.20",Care Unlimited Domcare Ltd,SOCIAL SERVICES DAY CARE,People's Services,Supported Living,A56088
London Borough of Sutton,30/05/2023,50392835,"1,056.88",Care Unlimited Domcare Ltd,SOCIAL SERVICES DAY CARE,People's Services,Supported Living,A56088
London Borough of Sutton,24/08/2023,50394087,410.56,Care Unlimited Domcare Ltd,SOCIAL SERVICES DAY CARE,People's Services,Supported Living,A56088
London Borough of Sutton,24/08/2023,50394087,"3,595.20",Care Unlimited Domcare Ltd,SOCIAL SERVICES DAY CARE,People's Services,Supported Living,A56088
London Borough of Sutton,24/08/2023,50394087,"1,056.88",Care Unlimited Domcare Ltd,SOCIAL SERVICES DAY CARE,People's Services,Supported Living,A56088
London Borough of Sutton,24/08/2023,50394088,410.56,Care Unlimited Domcare Ltd,SOCIAL SERVICES DAY CARE,People's Services,Supported Living,A56088
London Borough of Sutton,24/08/2023,50394088,"3,595.20",Care Unlimited Domcare Ltd,SOCIAL SERVICES DAY CARE,People's Services,Supported Living,A56088
London Borough of Sutton,24/08/2023,50394088,"1,056.88",Care Unlimited Domcare Ltd,SOCIAL SERVICES DAY CARE,People's Services,Supported Living,A56088
London Borough of Sutton,24/08/2023,50394089,410.56,Care Unlimited Domcare Ltd,SOCIAL SERVICES DAY CARE,People's Services,Supported Living,A56088
London Borough of Sutton,24/08/2023,50394089,"3,595.20",Care Unlimited Domcare Ltd,SOCIAL SERVICES DAY CARE,People's Services,Supported Living,A56088
London Borough of Sutton,24/08/2023,50394089,"1,056.88",Care Unlimited Domcare Ltd,SOCIAL SERVICES DAY CARE,People's Services,Supported Living,A56088
London Borough of Sutton,24/08/2023,50394090,"5,931.52",Care Unlimited Domcare Ltd,SOCIAL SERVICES DAY CARE,People's Services,Supported Living,A56088
London Borough of Sutton,01/08/2023,50385922,"1,120.00",Care4Care Services Ltd,SOCIAL SERVICES DAY CARE,People's Services,Home Care Services,A56019
London Borough of Sutton,01/08/2023,50385923,"1,038.76",Care4Care Services Ltd,SOCIAL SERVICES DAY CARE,People's Services,Home Care Services,A56019
London Borough of Sutton,01/08/2023,50385947,"3,992.80",Care4Care Services Ltd,SOCIAL SERVICES DAY CARE,People's Services,Home Care Services,A56019
London Borough of Sutton,01/08/2023,50385965,837.00,Care4Care Services Ltd,SOCIAL SERVICES DAY CARE,People's Services,Home Care Services,A56019
London Borough of Sutton,01/08/2023,50385966,"3,992.80",Care4Care Services Ltd,SOCIAL SERVICES DAY CARE,People's Services,Home Care Services,A56019
London Borough of Sutton,01/08/2023,50385973,"1,915.00",Care4Care Services Ltd,SOCIAL SERVICES DAY CARE,People's Services,Home Care Services,A56019
London Borough of Sutton,01/08/2023,50385976,899.00,Care4Care Services Ltd,SOCIAL SERVICES DAY CARE,People's Services,Home Care Services,A56019
London Borough of Sutton,01/08/2023,50385977,899.00,Care4Care Services Ltd,SOCIAL SERVICES DAY CARE,People's Services,Home Care Services,A56019
London Borough of Sutton,01/08/2023,50385978,899.00,Care4Care Services Ltd,SOCIAL SERVICES DAY CARE,People's Services,Home Care Services,A56019
London Borough of Sutton,01/08/2023,50385978,837.00,Care4Care Services Ltd,SOCIAL SERVICES DAY CARE,People's Services,Home Care Services,A56019
London Borough of Sutton,24/08/2023,50392993,"2,899.80",Care4Care Services Ltd,SOCIAL SERVICES DAY CARE,People's Services,Home Care Services,A56019
London Borough of Sutton,04/08/2023,50385412,"6,600.00",CAREBASE (CLARE) LTD,SOCIAL SERVICES RESIDENTIAL,People's Services,Nursing Care - Ext Provider,A56025
London Borough of Sutton,10/07/2023,20054233,"12,377.00",Caremark (Sutton),SOCIAL SERVICES DAY CARE,People's Services,Provider Contract Payments,A44290
London Borough of Sutton,23/07/2023,50384013,826.93,Caremark (Sutton),SOCIAL SERVICES DAY CARE,People's Services,Home Care Services,A56019
London Borough of Sutton,23/07/2023,50384024,562.25,Caremark (Sutton),SOCIAL SERVICES DAY CARE,People's Services,Home Care Services,A56019
London Borough of Sutton,23/07/2023,50384040,64.50,Caremark (Sutton),SOCIAL SERVICES DAY CARE,People's Services,Home Care Services,A56019
London Borough of Sutton,23/07/2023,50384040,865.20,Caremark (Sutton),SOCIAL SERVICES DAY CARE,People's Services,Home Care Services,A56019
London Borough of Sutton,23/07/2023,50384042,"1,897.00",Caremark (Sutton),SOCIAL SERVICES DAY CARE,People's Services,Home Care Services,A56019
London Borough of Sutton,23/07/2023,50384046,500.41,Caremark (Sutton),SOCIAL SERVICES DAY CARE,People's Services,Home Care Services,A56019
London Borough of Sutton,23/07/2023,50384054,636.26,Caremark (Sutton),SOCIAL SERVICES DAY CARE,People's Services,Home Care Services,A56019
London Borough of Sutton,23/07/2023,50384074,938.37,Caremark (Sutton),SOCIAL SERVICES DAY CARE,People's Services,Home Care Services,A56019
London Borough of Sutton,23/07/2023,50384109,602.37,Caremark (Sutton),SOCIAL SERVICES DAY CARE,People's Services,Home Care Services,A56019
London Borough of Sutton,23/07/2023,50384114,803.37,Caremark (Sutton),SOCIAL SERVICES DAY CARE,People's Services,Home Care Services,A56019
London Borough of Sutton,23/07/2023,50384114,43.00,Caremark (Sutton),SOCIAL SERVICES DAY CARE,People's Services,Home Care Services,A56019
London Borough of Sutton,23/07/2023,50384115,618.00,Caremark (Sutton),SOCIAL SERVICES DAY CARE,People's Services,Home Care Services,A56019
London Borough of Sutton,23/07/2023,50384115,309.00,Caremark (Sutton),SOCIAL SERVICES DAY CARE,People's Services,Home Care Services,A56019
London Borough of Sutton,23/07/2023,50384118,803.37,Caremark (Sutton),SOCIAL SERVICES DAY CARE,People's Services,Home Care Services,A56019
London Borough of Sutton,23/07/2023,50386280,612.90,Caremark (Sutton),SOCIAL SERVICES DAY CARE,People's Services,Home Care Services,A56019
London Borough of Sutton,23/07/2023,50386283,683.68,Caremark (Sutton),SOCIAL SERVICES DAY CARE,People's Services,Home Care Services,A56019
London Borough of Sutton,31/05/2023,50386878,750.00,Caremark (Sutton),SOCIAL SERVICES DAY CARE,People's Services,Miscellaneous Expenses,A49000
London Borough of Sutton,30/07/2023,50387616,815.62,Caremark (Sutton),SOCIAL SERVICES DAY CARE,People's Services,Home Care Services,A56019
London Borough of Sutton,30/07/2023,50387616,43.65,Caremark (Sutton),SOCIAL SERVICES DAY CARE,People's Services,Home Care Services,A56019
London Borough of Sutton,30/07/2023,50387621,618.00,Caremark (Sutton),SOCIAL SERVICES DAY CARE,People's Services,Home Care Services,A56019
London Borough of Sutton,30/07/2023,50387621,309.00,Caremark (Sutton),SOCIAL SERVICES DAY CARE,People's Services,Home Care Services,A56019
London Borough of Sutton,30/07/2023,50387626,803.37,Caremark (Sutton),SOCIAL SERVICES DAY CARE,People's Services,Home Care Services,A56019
London Borough of Sutton,30/07/2023,50387630,64.50,Caremark (Sutton),SOCIAL SERVICES DAY CARE,People's Services,Home Care Services,A56019
London Borough of Sutton,30/07/2023,50387630,865.20,Caremark (Sutton),SOCIAL SERVICES DAY CARE,People's Services,Home Care Services,A56019
London Borough of Sutton,30/07/2023,50387655,"1,050.51",Caremark (Sutton),SOCIAL SERVICES DAY CARE,People's Services,Home Care Services,A56019
London Borough of Sutton,30/07/2023,50387658,540.75,Caremark (Sutton),SOCIAL SERVICES DAY CARE,People's Services,Home Care Services,A56019
London Borough of Sutton,30/07/2023,50387664,"1,897.00",Caremark (Sutton),SOCIAL SERVICES DAY CARE,People's Services,Home Care Services,A56019
London Borough of Sutton,30/07/2023,50387669,500.41,Caremark (Sutton),SOCIAL SERVICES DAY CARE,People's Services,Home Care Services,A56019
London Borough of Sutton,30/07/2023,50387683,591.59,Caremark (Sutton),SOCIAL SERVICES DAY CARE,People's Services,Home Care Services,A56019
London Borough of Sutton,30/07/2023,50387696,623.36,Caremark (Sutton),SOCIAL SERVICES DAY CARE,People's Services,Home Care Services,A56019
London Borough of Sutton,30/07/2023,50387707,938.37,Caremark (Sutton),SOCIAL SERVICES DAY CARE,People's Services,Home Care Services,A56019
London Borough of Sutton,30/07/2023,50387745,660.87,Caremark (Sutton),SOCIAL SERVICES DAY CARE,People's Services,Home Care Services,A56019
London Borough of Sutton,06/08/2023,50390570,"1,050.51",Caremark (Sutton),SOCIAL SERVICES DAY CARE,People's Services,Home Care Services,A56019
London Borough of Sutton,06/08/2023,50390575,623.36,Caremark (Sutton),SOCIAL SERVICES DAY CARE,People's Services,Home Care Services,A56019
London Borough of Sutton,06/08/2023,50390626,562.25,Caremark (Sutton),SOCIAL SERVICES DAY CARE,People's Services,Home Care Services,A56019
London Borough of Sutton,06/08/2023,50390630,803.37,Caremark (Sutton),SOCIAL SERVICES DAY CARE,People's Services,Home Care Services,A56019
London Borough of Sutton,06/08/2023,50390630,43.00,Caremark (Sutton),SOCIAL SERVICES DAY CARE,People's Services,Home Care Services,A56019
London Borough of Sutton,06/08/2023,50390631,618.00,Caremark (Sutton),SOCIAL SERVICES DAY CARE,People's Services,Home Care Services,A56019
London Borough of Sutton,06/08/2023,50390631,309.00,Caremark (Sutton),SOCIAL SERVICES DAY CARE,People's Services,Home Care Services,A56019
London Borough of Sutton,06/08/2023,50390634,803.37,Caremark (Sutton),SOCIAL SERVICES DAY CARE,People's Services,Home Care Services,A56019
London Borough of Sutton,06/08/2023,50390638,64.50,Caremark (Sutton),SOCIAL SERVICES DAY CARE,People's Services,Home Care Services,A56019
London Borough of Sutton,06/08/2023,50390638,865.20,Caremark (Sutton),SOCIAL SERVICES DAY CARE,People's Services,Home Care Services,A56019
London Borough of Sutton,06/08/2023,50390644,"1,897.00",Caremark (Sutton),SOCIAL SERVICES DAY CARE,People's Services,Home Care Services,A56019
London Borough of Sutton,06/08/2023,50390646,500.41,Caremark (Sutton),SOCIAL SERVICES DAY CARE,People's Services,Home Care Services,A56019
London Borough of Sutton,06/08/2023,50390673,991.47,Caremark (Sutton),SOCIAL SERVICES DAY CARE,People's Services,Home Care Services,A56019
London Borough of Sutton,06/08/2023,50390688,938.37,Caremark (Sutton),SOCIAL SERVICES DAY CARE,People's Services,Home Care Services,A56019
London Borough of Sutton,20/08/2023,50394039,803.37,Caremark (Sutton),SOCIAL SERVICES DAY CARE,People's Services,Home Care Services,A56019
London Borough of Sutton,20/08/2023,50394039,43.00,Caremark (Sutton),SOCIAL SERVICES DAY CARE,People's Services,Home Care Services,A56019
London Borough of Sutton,20/08/2023,50394043,618.00,Caremark (Sutton),SOCIAL SERVICES DAY CARE,People's Services,Home Care Services,A56019
London Borough of Sutton,20/08/2023,50394043,309.00,Caremark (Sutton),SOCIAL SERVICES DAY CARE,People's Services,Home Care Services,A56019
London Borough of Sutton,20/08/2023,50394048,803.37,Caremark (Sutton),SOCIAL SERVICES DAY CARE,People's Services,Home Care Services,A56019
London Borough of Sutton,20/08/2023,50394050,64.50,Caremark (Sutton),SOCIAL SERVICES DAY CARE,People's Services,Home Care Services,A56019
London Borough of Sutton,20/08/2023,50394050,865.20,Caremark (Sutton),SOCIAL SERVICES DAY CARE,People's Services,Home Care Services,A56019
London Borough of Sutton,20/08/2023,50394107,540.75,Caremark (Sutton),SOCIAL SERVICES DAY CARE,People's Services,Home Care Services,A56019
London Borough of Sutton,20/08/2023,50394116,500.41,Caremark (Sutton),SOCIAL SERVICES DAY CARE,People's Services,Home Care Services,A56019
London Borough of Sutton,20/08/2023,50394120,623.36,Caremark (Sutton),SOCIAL SERVICES DAY CARE,People's Services,Home Care Services,A56019
London Borough of Sutton,20/08/2023,50394146,991.47,Caremark (Sutton),SOCIAL SERVICES DAY CARE,People's Services,Home Care Services,A56019
London Borough of Sutton,20/08/2023,50394155,878.18,Caremark (Sutton),SOCIAL SERVICES DAY CARE,People's Services,Home Care Services,A56019
London Borough of Sutton,24/08/2023,50392733,"9,997.50",Caremore Group Ltd,CHILDREN'S SERVICES - FOSTERING & ADOPTION SERVICES,People's Services,Approved Lodgings,A61000
London Borough of Sutton,04/08/2023,50385529,-691.20,Caretech Community Services Ltd,SOCIAL SERVICES RESIDENTIAL,People's Services,Residential Care - Client Cont ( Net Paymt ),A56113
London Borough of Sutton,04/08/2023,50385529,"6,030.96",Caretech Community Services Ltd,SOCIAL SERVICES RESIDENTIAL,People's Services,Residential Care - Ext Provider,A56114
London Borough of Sutton,04/08/2023,50385708,-846.40,Caretech Community Services Ltd,SOCIAL SERVICES RESIDENTIAL,People's Services,Residential Care - Client Cont ( Net Paymt ),A56113
London Borough of Sutton,04/08/2023,50385708,"5,879.88",Caretech Community Services Ltd,SOCIAL SERVICES RESIDENTIAL,People's Services,Residential Care - Ext Provider,A56114
London Borough of Sutton,04/08/2023,50385709,"5,621.56",Caretech Community Services Ltd,SOCIAL SERVICES RESIDENTIAL,People's Services,Residential Care - Ext Provider,A56114
London Borough of Sutton,08/08/2023,50386528,"4,076.70",Carew Academy,SCHOOL FUNDS,People's Services,Payment - Teachers Pay Grant,A51026
London Borough of Sutton,08/08/2023,50386534,"11,296.86",Carew Academy,SCHOOL FUNDS,People's Services,Payment - Teachers Pension Grant,A51027
London Borough of Sutton,25/07/2023,50387338,276.79,Caridon Young Living Ltd,CHILDREN'S SERVICES - RESIDENTIAL,People's Services,Approved Lodgings,A61000
London Borough of Sutton,25/07/2023,50387338,"20,482.14",Caridon Young Living Ltd,CHILDREN'S SERVICES - RESIDENTIAL,People's Services,Approved Lodgings,A61000
London Borough of Sutton,25/07/2023,50387358,276.79,Caridon Young Living Ltd,CHILDREN'S SERVICES - RESIDENTIAL,People's Services,Approved Lodgings,A61000
London Borough of Sutton,25/07/2023,50387358,"5,646.43",Caridon Young Living Ltd,CHILDREN'S SERVICES - RESIDENTIAL,People's Services,Approved Lodgings,A61000
London Borough of Sutton,25/06/2023,50389854,267.86,Caridon Young Living Ltd,CHILDREN'S SERVICES - RESIDENTIAL,People's Services,Approved Lodgings,A61000
London Borough of Sutton,25/06/2023,50389854,"7,071.43",Caridon Young Living Ltd,CHILDREN'S SERVICES - RESIDENTIAL,People's Services,Approved Lodgings,A61000
London Borough of Sutton,16/08/2023,50389445,792.72,Care  Support Partners Ltd,SOCIAL SERVICES RESIDENTIAL,People's Services,Supported Living,A56088
London Borough of Sutton,16/08/2023,50389445,634.17,Care  Support Partners Ltd,SOCIAL SERVICES RESIDENTIAL,People's Services,Supported Living,A56088
London Borough of Sutton,16/08/2023,50389445,"2,147.85",Care  Support Partners Ltd,SOCIAL SERVICES RESIDENTIAL,People's Services,Supported Living,A56088
London Borough of Sutton,01/08/2023,50383900,964.60,Carlene House,SOCIAL SERVICES RESIDENTIAL,People's Services,Home Care Services,A56019
London Borough of Sutton,01/08/2023,50383901,"1,409.80",Carlene House,SOCIAL SERVICES RESIDENTIAL,People's Services,Home Care Services,A56019
London Borough of Sutton,04/08/2023,50385551,"6,127.44",Carlene House,SOCIAL SERVICES RESIDENTIAL,People's Services,Residential Care - Ext Provider,A56114
London Borough of Sutton,04/08/2023,50385638,"6,127.44",Carlene House,SOCIAL SERVICES RESIDENTIAL,People's Services,Residential Care - Ext Provider,A56114
London Borough of Sutton,04/08/2023,50385767,"6,127.44",Carlene House,SOCIAL SERVICES RESIDENTIAL,People's Services,Residential Care - Ext Provider,A56114
London Borough of Sutton,04/08/2023,50385796,"6,127.44",Carlene House,SOCIAL SERVICES RESIDENTIAL,People's Services,Residential Care - Ext Provider,A56114
London Borough of Sutton,04/08/2023,50385816,"6,127.44",Carlene House,SOCIAL SERVICES RESIDENTIAL,People's Services,Residential Care - Ext Provider,A56114
London Borough of Sutton,04/08/2023,50385904,"6,127.44",Carlene House,SOCIAL SERVICES RESIDENTIAL,People's Services,Residential Care - Ext Provider,A56114
London Borough of Sutton,04/08/2023,50385915,"6,127.44",Carlene House,SOCIAL SERVICES RESIDENTIAL,People's Services,Residential Care - Ext Provider,A56114
London Borough of Sutton,01/08/2023,50388093,"1,335.60",Carlene House,SOCIAL SERVICES RESIDENTIAL,People's Services,Home Care Services,A56019
London Borough of Sutton,01/08/2023,50388094,"1,187.20",Carlene House,SOCIAL SERVICES RESIDENTIAL,People's Services,Home Care Services,A56019
London Borough of Sutton,01/08/2023,50388095,"3,524.52",Carlene House,SOCIAL SERVICES RESIDENTIAL,People's Services,Home Care Services,A56019
London Borough of Sutton,01/08/2023,50388098,"1,409.80",Carlene House,SOCIAL SERVICES RESIDENTIAL,People's Services,Home Care Services,A56019
London Borough of Sutton,01/08/2023,50388769,"1,173.80",Carlene House,SOCIAL SERVICES RESIDENTIAL,People's Services,Supported Living,A56088
London Borough of Sutton,01/08/2023,50388769,"1,406.43",Carlene House,SOCIAL SERVICES RESIDENTIAL,People's Services,Supported Living,A56088
London Borough of Sutton,01/08/2023,50388769,756.81,Carlene House,SOCIAL SERVICES RESIDENTIAL,People's Services,Supported Living,A56088
London Borough of Sutton,01/08/2023,50388770,"2,033.91",Carlene House,SOCIAL SERVICES RESIDENTIAL,People's Services,Supported Living,A56088
London Borough of Sutton,01/08/2023,50388770,"1,561.88",Carlene House,SOCIAL SERVICES RESIDENTIAL,People's Services,Supported Living,A56088
London Borough of Sutton,01/08/2023,50388770,756.81,Carlene House,SOCIAL SERVICES RESIDENTIAL,People's Services,Supported Living,A56088
London Borough of Sutton,24/06/2022,50388774,"1,898.64",Carlene House,SOCIAL SERVICES RESIDENTIAL,People's Services,Supported Living,A56088
London Borough of Sutton,24/06/2022,50388774,"1,722.36",Carlene House,SOCIAL SERVICES RESIDENTIAL,People's Services,Supported Living,A56088
London Borough of Sutton,24/06/2022,50388774,712.08,Carlene House,SOCIAL SERVICES RESIDENTIAL,People's Services,Supported Living,A56088
London Borough of Sutton,12/07/2022,50388775,"1,676.77",Carlene House,SOCIAL SERVICES RESIDENTIAL,People's Services,Supported Living,A56088
London Borough of Sutton,12/07/2022,50388775,"1,312.88",Carlene House,SOCIAL SERVICES RESIDENTIAL,People's Services,Supported Living,A56088
London Borough of Sutton,12/07/2022,50388775,610.35,Carlene House,SOCIAL SERVICES RESIDENTIAL,People's Services,Supported Living,A56088
London Borough of Sutton,31/12/2022,50388776,"1,865.04",Carlene House,SOCIAL SERVICES RESIDENTIAL,People's Services,Supported Living,A56088
London Borough of Sutton,31/12/2022,50388776,"1,125.33",Carlene House,SOCIAL SERVICES RESIDENTIAL,People's Services,Supported Living,A56088
London Borough of Sutton,31/12/2022,50388776,610.35,Carlene House,SOCIAL SERVICES RESIDENTIAL,People's Services,Supported Living,A56088
London Borough of Sutton,09/12/2021,50388778,"1,609.30",Carlene House,SOCIAL SERVICES RESIDENTIAL,People's Services,Supported Living,A56088
London Borough of Sutton,02/09/2021,50388779,"1,287.44",Carlene House,SOCIAL SERVICES RESIDENTIAL,People's Services,Supported Living,A56088
London Borough of Sutton,07/06/2022,50388790,"2,070.53",Carlene House,SOCIAL SERVICES RESIDENTIAL,People's Services,Supported Living,A56088
London Borough of Sutton,07/06/2022,50388790,"1,641.10",Carlene House,SOCIAL SERVICES RESIDENTIAL,People's Services,Supported Living,A56088
London Borough of Sutton,07/06/2022,50388790,788.37,Carlene House,SOCIAL SERVICES RESIDENTIAL,People's Services,Supported Living,A56088
London Borough of Sutton,01/10/2022,50388792,"2,169.87",Carlene House,SOCIAL SERVICES RESIDENTIAL,People's Services,Supported Living,A56088
London Borough of Sutton,01/10/2022,50388792,"1,440.03",Carlene House,SOCIAL SERVICES RESIDENTIAL,People's Services,Supported Living,A56088
London Borough of Sutton,01/10/2022,50388792,890.10,Carlene House,SOCIAL SERVICES RESIDENTIAL,People's Services,Supported Living,A56088
London Borough of Sutton,01/10/2022,50388793,"1,898.64",Carlene House,SOCIAL SERVICES RESIDENTIAL,People's Services,Supported Living,A56088
London Borough of Sutton,01/10/2022,50388793,"1,125.33",Carlene House,SOCIAL SERVICES RESIDENTIAL,People's Services,Supported Living,A56088
London Borough of Sutton,01/10/2022,50388793,577.83,Carlene House,SOCIAL SERVICES RESIDENTIAL,People's Services,Supported Living,A56088
London Borough of Sutton,01/12/2022,50388794,"2,102.07",Carlene House,SOCIAL SERVICES RESIDENTIAL,People's Services,Supported Living,A56088
London Borough of Sutton,01/12/2022,50388794,"1,610.46",Carlene House,SOCIAL SERVICES RESIDENTIAL,People's Services,Supported Living,A56088
London Borough of Sutton,01/12/2022,50388794,788.37,Carlene House,SOCIAL SERVICES RESIDENTIAL,People's Services,Supported Living,A56088
London Borough of Sutton,07/12/2022,50388795,"1,423.93",Carlene House,SOCIAL SERVICES RESIDENTIAL,People's Services,Supported Living,A56088
London Borough of Sutton,07/12/2022,50388795,890.87,Carlene House,SOCIAL SERVICES RESIDENTIAL,People's Services,Supported Living,A56088
London Borough of Sutton,07/12/2022,50388795,508.65,Carlene House,SOCIAL SERVICES RESIDENTIAL,People's Services,Supported Living,A56088
London Borough of Sutton,20/06/2023,50388796,"2,057.37",Carlene House,SOCIAL SERVICES RESIDENTIAL,People's Services,Supported Living,A56088
London Borough of Sutton,20/06/2023,50388796,"1,025.78",Carlene House,SOCIAL SERVICES RESIDENTIAL,People's Services,Supported Living,A56088
London Borough of Sutton,20/06/2023,50388796,"2,771.24",Carlene House,SOCIAL SERVICES RESIDENTIAL,People's Services,Supported Living,A56088
London Borough of Sutton,01/08/2023,50388797,"1,466.76",Carlene House,SOCIAL SERVICES RESIDENTIAL,People's Services,Supported Living,A56088
London Borough of Sutton,01/08/2023,50388797,"1,406.43",Carlene House,SOCIAL SERVICES RESIDENTIAL,People's Services,Supported Living,A56088
London Borough of Sutton,01/08/2023,50388797,756.81,Carlene House,SOCIAL SERVICES RESIDENTIAL,People's Services,Supported Living,A56088
London Borough of Sutton,09/12/2021,50388801,"1,524.60",Carlene House,SOCIAL SERVICES RESIDENTIAL,People's Services,Supported Living,A56088
London Borough of Sutton,13/01/2022,50389517,"3,837.44",Carlene House,SOCIAL SERVICES RESIDENTIAL,People's Services,Supported Living,A56088
London Borough of Sutton,03/02/2022,50389518,"3,717.44",Carlene House,SOCIAL SERVICES RESIDENTIAL,People's Services,Supported Living,A56088
London Borough of Sutton,09/12/2021,50389519,"4,496.80",Carlene House,SOCIAL SERVICES RESIDENTIAL,People's Services,Supported Living,A56088
London Borough of Sutton,10/11/2021,50389520,"3,717.44",Carlene House,SOCIAL SERVICES RESIDENTIAL,People's Services,Supported Living,A56088
London Borough of Sutton,02/04/2022,50389521,"3,597.44",Carlene House,SOCIAL SERVICES RESIDENTIAL,People's Services,Supported Living,A56088
London Borough of Sutton,31/12/2022,50389523,"1,757.68",Carlene House,SOCIAL SERVICES RESIDENTIAL,People's Services,Supported Living,A56088
London Borough of Sutton,31/12/2022,50389523,"1,312.88",Carlene House,SOCIAL SERVICES RESIDENTIAL,People's Services,Supported Living,A56088
London Borough of Sutton,31/12/2022,50389523,712.08,Carlene House,SOCIAL SERVICES RESIDENTIAL,People's Services,Supported Living,A56088
London Borough of Sutton,31/07/2022,50389524,"1,757.68",Carlene House,SOCIAL SERVICES RESIDENTIAL,People's Services,Supported Living,A56088
London Borough of Sutton,31/07/2022,50389524,"1,312.88",Carlene House,SOCIAL SERVICES RESIDENTIAL,People's Services,Supported Living,A56088
London Borough of Sutton,31/07/2022,50389524,712.08,Carlene House,SOCIAL SERVICES RESIDENTIAL,People's Services,Supported Living,A56088
London Borough of Sutton,31/08/2022,50389527,760.84,Carlene House,SOCIAL SERVICES RESIDENTIAL,People's Services,Supported Living,A56088
London Borough of Sutton,27/04/2023,50389528,926.80,Carlene House,SOCIAL SERVICES RESIDENTIAL,People's Services,Supported Living,A56088
London Borough of Sutton,27/04/2023,50389529,"1,157.80",Carlene House,SOCIAL SERVICES RESIDENTIAL,People's Services,Supported Living,A56088
London Borough of Sutton,01/01/2023,50389531,"1,038.80",Carlene House,SOCIAL SERVICES RESIDENTIAL,People's Services,Home Care Services,A56019
London Borough of Sutton,01/02/2023,50389532,"1,298.50",Carlene House,SOCIAL SERVICES RESIDENTIAL,People's Services,Home Care Services,A56019
London Borough of Sutton,01/03/2023,50390325,"1,038.80",Carlene House,SOCIAL SERVICES RESIDENTIAL,People's Services,Home Care Services,A56019
London Borough of Sutton,01/05/2023,50390889,"1,038.80",Carlene House,SOCIAL SERVICES RESIDENTIAL,People's Services,Home Care Services,A56019
London Borough of Sutton,01/08/2023,50390890,"1,038.80",Carlene House,SOCIAL SERVICES RESIDENTIAL,People's Services,Home Care Services,A56019
London Borough of Sutton,20/06/2023,50390902,"1,298.50",Carlene House,SOCIAL SERVICES RESIDENTIAL,People's Services,Home Care Services,A56019
London Borough of Sutton,05/07/2023,50390906,"1,038.80",Carlene House,SOCIAL SERVICES RESIDENTIAL,People's Services,Home Care Services,A56019
London Borough of Sutton,02/03/2023,50392402,"2,201.52",Carlene House,SOCIAL SERVICES RESIDENTIAL,People's Services,Supported Living,A56088
London Borough of Sutton,02/03/2023,50392402,"1,312.88",Carlene House,SOCIAL SERVICES RESIDENTIAL,People's Services,Supported Living,A56088
London Borough of Sutton,02/03/2023,50392402,712.08,Carlene House,SOCIAL SERVICES RESIDENTIAL,People's Services,Supported Living,A56088
London Borough of Sutton,05/01/2023,50392403,"2,325.92",Carlene House,SOCIAL SERVICES RESIDENTIAL,People's Services,Supported Living,A56088
London Borough of Sutton,05/01/2023,50392403,"1,312.88",Carlene House,SOCIAL SERVICES RESIDENTIAL,People's Services,Supported Living,A56088
London Borough of Sutton,05/01/2023,50392403,712.08,Carlene House,SOCIAL SERVICES RESIDENTIAL,People's Services,Supported Living,A56088
London Borough of Sutton,09/02/2023,50392404,"2,596.40",Carlene House,SOCIAL SERVICES RESIDENTIAL,People's Services,Supported Living,A56088
London Borough of Sutton,09/02/2023,50392404,"1,641.10",Carlene House,SOCIAL SERVICES RESIDENTIAL,People's Services,Supported Living,A56088
London Borough of Sutton,09/02/2023,50392404,890.10,Carlene House,SOCIAL SERVICES RESIDENTIAL,People's Services,Supported Living,A56088
London Borough of Sutton,31/08/2022,50392405,"2,255.28",Carlene House,SOCIAL SERVICES RESIDENTIAL,People's Services,Supported Living,A56088
London Borough of Sutton,31/08/2022,50392405,"1,312.88",Carlene House,SOCIAL SERVICES RESIDENTIAL,People's Services,Supported Living,A56088
London Borough of Sutton,31/08/2022,50392405,712.08,Carlene House,SOCIAL SERVICES RESIDENTIAL,People's Services,Supported Living,A56088
London Borough of Sutton,07/12/2022,50392406,"2,287.05",Carlene House,SOCIAL SERVICES RESIDENTIAL,People's Services,Supported Living,A56088
London Borough of Sutton,31/10/2022,50392407,"1,884.20",Carlene House,SOCIAL SERVICES RESIDENTIAL,People's Services,Supported Living,A56088
London Borough of Sutton,31/10/2022,50392407,"1,312.88",Carlene House,SOCIAL SERVICES RESIDENTIAL,People's Services,Supported Living,A56088
London Borough of Sutton,31/10/2022,50392407,712.08,Carlene House,SOCIAL SERVICES RESIDENTIAL,People's Services,Supported Living,A56088
London Borough of Sutton,01/12/2022,50392408,"2,819.10",Carlene House,SOCIAL SERVICES RESIDENTIAL,People's Services,Supported Living,A56088
London Borough of Sutton,01/12/2022,50392408,"1,641.10",Carlene House,SOCIAL SERVICES RESIDENTIAL,People's Services,Supported Living,A56088
London Borough of Sutton,01/12/2022,50392408,890.10,Carlene House,SOCIAL SERVICES RESIDENTIAL,People's Services,Supported Living,A56088
London Borough of Sutton,01/05/2022,50392409,"2,648.48",Carlene House,SOCIAL SERVICES RESIDENTIAL,People's Services,Supported Living,A56088
London Borough of Sutton,01/05/2022,50392409,"1,312.88",Carlene House,SOCIAL SERVICES RESIDENTIAL,People's Services,Supported Living,A56088
London Borough of Sutton,01/05/2022,50392409,712.08,Carlene House,SOCIAL SERVICES RESIDENTIAL,People's Services,Supported Living,A56088
London Borough of Sutton,01/05/2022,50392410,"2,343.50",Carlene House,SOCIAL SERVICES RESIDENTIAL,People's Services,Supported Living,A56088
London Borough of Sutton,01/05/2022,50392410,"1,641.10",Carlene House,SOCIAL SERVICES RESIDENTIAL,People's Services,Supported Living,A56088
London Borough of Sutton,01/05/2022,50392410,890.10,Carlene House,SOCIAL SERVICES RESIDENTIAL,People's Services,Supported Living,A56088
London Borough of Sutton,01/10/2022,50392411,"2,819.10",Carlene House,SOCIAL SERVICES RESIDENTIAL,People's Services,Supported Living,A56088
London Borough of Sutton,01/10/2022,50392411,"1,641.10",Carlene House,SOCIAL SERVICES RESIDENTIAL,People's Services,Supported Living,A56088
London Borough of Sutton,01/10/2022,50392411,890.10,Carlene House,SOCIAL SERVICES RESIDENTIAL,People's Services,Supported Living,A56088
London Borough of Sutton,08/08/2023,50386549,"4,816.60",Carshalton Boys Sports College (Academy),SCHOOL FUNDS,People's Services,Pupil Growth,A51014
London Borough of Sutton,07/08/2023,50387359,"27,784.86",Catch 22 Charity Limited,CHILDREN'S SERVICES - RESIDENTIAL,People's Services,Residential Care-Children,A56115
London Borough of Sutton,07/08/2023,50387360,"27,784.86",Catch 22 Charity Limited,CHILDREN'S SERVICES - RESIDENTIAL,People's Services,Residential Care-Children,A56115
London Borough of Sutton,07/08/2023,50387361,"27,784.86",Catch 22 Charity Limited,CHILDREN'S SERVICES - RESIDENTIAL,People's Services,Residential Care-Children,A56115
London Borough of Sutton,14/08/2023,20056263,"92,102.15",Caysh Housing Project,SOCIAL SERVICES RESIDENTIAL,People's Services,Building Rents,A22005
London Borough of Sutton,16/08/2023,50389506,"2,242.23",Centred (Scotland) N,SOCIAL SERVICES RESIDENTIAL,People's Services,Supported Living,A56088
London Borough of Sutton,07/07/2023,20055147,"8,312.50",CH&I Associates,LEGAL & PROFESSIONAL SERVICES,Resources,Miscellaneous Expenses,A49000
London Borough of Sutton,08/08/2023,50386544,"1,506.56",Cheam Common Junior Academy,SCHOOL FUNDS,People's Services,Payment - Cluster Lead SENCO,A51035
London Borough of Sutton,14/08/2023,50388812,820.52,Cheam Common Junior Academy,SCHOOL FUNDS,People's Services,Top-up Funding,A51016
London Borough of Sutton,08/08/2023,50386543,"2,643.43",Cheam High School (Academy),SCHOOL FUNDS,People's Services,Payment - Cluster Lead SENCO,A51035
London Borough of Sutton,08/08/2023,50386551,"3,211.20",Cheam High School (Academy),SCHOOL FUNDS,People's Services,Pupil Growth,A51014
London Borough of Sutton,14/08/2023,50388813,"3,821.25",Cheam High School (Academy),SCHOOL FUNDS,People's Services,Top-up Funding,A51016
London Borough of Sutton,14/08/2023,50388821,"1,944.46",Cheam High School (Academy),SCHOOL FUNDS,People's Services,Top-up Funding,A51016
London Borough of Sutton,14/08/2023,50388814,"4,579.80",Cheam Park Farm Primary School,SCHOOL FUNDS,People's Services,Top-up Funding,A51016
London Borough of Sutton,04/08/2023,50385563,-836.76,Chegworth Nursing Home Bayswift Ltd,SOCIAL SERVICES RESIDENTIAL,People's Services,Nursing Care - 3rd party top up payment,A56023
London Borough of Sutton,04/08/2023,50385563,"3,821.24",Chegworth Nursing Home Bayswift Ltd,SOCIAL SERVICES RESIDENTIAL,People's Services,Nursing Care Short Term,A56026
London Borough of Sutton,04/08/2023,50385564,"4,096.12",Chegworth Nursing Home Bayswift Ltd,SOCIAL SERVICES RESIDENTIAL,People's Services,Nursing Care - Ext Provider,A56025
London Borough of Sutton,04/08/2023,50385564,-878.84,Chegworth Nursing Home Bayswift Ltd,SOCIAL SERVICES RESIDENTIAL,People's Services,Nursing Care - 3rd party top up payment,A56023
London Borough of Sutton,04/08/2023,50385565,"2,905.28",Chegworth Nursing Home Bayswift Ltd,SOCIAL SERVICES RESIDENTIAL,People's Services,Nursing Care Short Term,A56026
London Borough of Sutton,04/08/2023,50385566,"4,400.00",Chegworth Nursing Home Bayswift Ltd,SOCIAL SERVICES RESIDENTIAL,People's Services,Nursing Care - Ext Provider,A56025
London Borough of Sutton,04/08/2023,50385566,-878.84,Chegworth Nursing Home Bayswift Ltd,SOCIAL SERVICES RESIDENTIAL,People's Services,Nursing Care - 3rd party top up payment,A56023
London Borough of Sutton,04/08/2023,50385622,"4,096.12",Chegworth Nursing Home Bayswift Ltd,SOCIAL SERVICES RESIDENTIAL,People's Services,Nursing Care - Ext Provider,A56025
London Borough of Sutton,04/08/2023,50385622,-878.84,Chegworth Nursing Home Bayswift Ltd,SOCIAL SERVICES RESIDENTIAL,People's Services,Nursing Care - 3rd party top up payment,A56023
London Borough of Sutton,04/08/2023,50385623,-836.76,Chegworth Nursing Home Bayswift Ltd,SOCIAL SERVICES RESIDENTIAL,People's Services,Nursing Care - 3rd party top up payment,A56023
London Borough of Sutton,04/08/2023,50385623,"3,821.24",Chegworth Nursing Home Bayswift Ltd,SOCIAL SERVICES RESIDENTIAL,People's Services,Nursing Care Short Term,A56026
London Borough of Sutton,04/08/2023,50385624,"98,789.62",Chegworth Nursing Home Bayswift Ltd,SOCIAL SERVICES RESIDENTIAL,People's Services,Nursing Care - Ext Provider,A56025
London Borough of Sutton,04/08/2023,50385624,-750.40,Chegworth Nursing Home Bayswift Ltd,SOCIAL SERVICES RESIDENTIAL,People's Services,Nursing Care - 3rd party top up payment,A56023
London Borough of Sutton,04/08/2023,50385624,"-95,054.74",Chegworth Nursing Home Bayswift Ltd,SOCIAL SERVICES RESIDENTIAL,People's Services,Nursing Care Short Term,A56026
London Borough of Sutton,04/08/2023,50385646,"4,096.12",Chegworth Nursing Home Bayswift Ltd,SOCIAL SERVICES RESIDENTIAL,People's Services,Nursing Care - Ext Provider,A56025
London Borough of Sutton,04/08/2023,50385646,-878.84,Chegworth Nursing Home Bayswift Ltd,SOCIAL SERVICES RESIDENTIAL,People's Services,Nursing Care - 3rd party top up payment,A56023
London Borough of Sutton,04/08/2023,50385647,-750.40,Chegworth Nursing Home Bayswift Ltd,SOCIAL SERVICES RESIDENTIAL,People's Services,Nursing Care - 3rd party top up payment,A56023
London Borough of Sutton,04/08/2023,50385647,"3,734.88",Chegworth Nursing Home Bayswift Ltd,SOCIAL SERVICES RESIDENTIAL,People's Services,Nursing Care Short Term,A56026
London Borough of Sutton,04/08/2023,50385659,-878.84,Chegworth Nursing Home Bayswift Ltd,SOCIAL SERVICES RESIDENTIAL,People's Services,Nursing Care - 3rd party top up payment,A56023
London Borough of Sutton,04/08/2023,50385659,"4,096.12",Chegworth Nursing Home Bayswift Ltd,SOCIAL SERVICES RESIDENTIAL,People's Services,Nursing Care Short Term,A56026
London Borough of Sutton,04/08/2023,50385660,"4,096.12",Chegworth Nursing Home Bayswift Ltd,SOCIAL SERVICES RESIDENTIAL,People's Services,Nursing Care - Ext Provider,A56025
London Borough of Sutton,04/08/2023,50385660,-878.84,Chegworth Nursing Home Bayswift Ltd,SOCIAL SERVICES RESIDENTIAL,People's Services,Nursing Care - 3rd party top up payment,A56023
London Borough of Sutton,04/08/2023,50385726,"4,096.12",Chegworth Nursing Home Bayswift Ltd,SOCIAL SERVICES RESIDENTIAL,People's Services,Nursing Care - Ext Provider,A56025
London Borough of Sutton,04/08/2023,50385726,-878.84,Chegworth Nursing Home Bayswift Ltd,SOCIAL SERVICES RESIDENTIAL,People's Services,Nursing Care - 3rd party top up payment,A56023
London Borough of Sutton,04/08/2023,50385727,"4,412.00",Chegworth Nursing Home Bayswift Ltd,SOCIAL SERVICES RESIDENTIAL,People's Services,Nursing Care - Ext Provider,A56025
London Borough of Sutton,04/08/2023,50385727,-315.88,Chegworth Nursing Home Bayswift Ltd,SOCIAL SERVICES RESIDENTIAL,People's Services,Nursing Care - 3rd party top up payment,A56023
London Borough of Sutton,04/08/2023,50385727,-878.84,Chegworth Nursing Home Bayswift Ltd,SOCIAL SERVICES RESIDENTIAL,People's Services,Nursing Care - 3rd party top up payment,A56023
London Borough of Sutton,04/08/2023,50385728,-878.84,Chegworth Nursing Home Bayswift Ltd,SOCIAL SERVICES RESIDENTIAL,People's Services,Nursing Care - 3rd party top up payment,A56023
London Borough of Sutton,04/08/2023,50385728,"4,096.12",Chegworth Nursing Home Bayswift Ltd,SOCIAL SERVICES RESIDENTIAL,People's Services,Nursing Care - Ext Provider,A56025
London Borough of Sutton,04/08/2023,50385739,-564.97,Chegworth Nursing Home Bayswift Ltd,SOCIAL SERVICES RESIDENTIAL,People's Services,Nursing Care - 3rd party top up payment,A56023
London Borough of Sutton,04/08/2023,50385739,"2,633.22",Chegworth Nursing Home Bayswift Ltd,SOCIAL SERVICES RESIDENTIAL,People's Services,Respite Care,A56116
London Borough of Sutton,04/08/2023,50385750,"4,096.12",Chegworth Nursing Home Bayswift Ltd,SOCIAL SERVICES RESIDENTIAL,People's Services,Nursing Care - Ext Provider,A56025
London Borough of Sutton,04/08/2023,50385750,-878.84,Chegworth Nursing Home Bayswift Ltd,SOCIAL SERVICES RESIDENTIAL,People's Services,Nursing Care - 3rd party top up payment,A56023
London Borough of Sutton,04/08/2023,50385751,"4,149.92",Chegworth Nursing Home Bayswift Ltd,SOCIAL SERVICES RESIDENTIAL,People's Services,Nursing Care - Ext Provider,A56025
London Borough of Sutton,04/08/2023,50385751,-750.40,Chegworth Nursing Home Bayswift Ltd,SOCIAL SERVICES RESIDENTIAL,People's Services,Nursing Care - 3rd party top up payment,A56023
London Borough of Sutton,04/08/2023,50385785,"10,094.01",Chegworth Nursing Home Bayswift Ltd,SOCIAL SERVICES RESIDENTIAL,People's Services,Nursing Care - Ext Provider,A56025
London Borough of Sutton,04/08/2023,50385785,"-2,165.71",Chegworth Nursing Home Bayswift Ltd,SOCIAL SERVICES RESIDENTIAL,People's Services,Nursing Care - 3rd party top up payment,A56023
London Borough of Sutton,04/08/2023,50385873,"3,821.24",Chegworth Nursing Home Bayswift Ltd,SOCIAL SERVICES RESIDENTIAL,People's Services,Nursing Care Short Term,A56026
London Borough of Sutton,04/08/2023,50385873,-836.76,Chegworth Nursing Home Bayswift Ltd,SOCIAL SERVICES RESIDENTIAL,People's Services,Nursing Care - 3rd party top up payment,A56023
London Borough of Sutton,04/08/2023,50385874,-878.84,Chegworth Nursing Home Bayswift Ltd,SOCIAL SERVICES RESIDENTIAL,People's Services,Nursing Care - 3rd party top up payment,A56023
London Borough of Sutton,04/08/2023,50385874,"4,096.12",Chegworth Nursing Home Bayswift Ltd,SOCIAL SERVICES RESIDENTIAL,People's Services,Nursing Care - Ext Provider,A56025
London Borough of Sutton,04/08/2023,50385875,"4,150.40",Chegworth Nursing Home Bayswift Ltd,SOCIAL SERVICES RESIDENTIAL,People's Services,Nursing Care - Ext Provider,A56025
London Borough of Sutton,04/08/2023,50385881,"-2,486.93",Chegworth Nursing Home Bayswift Ltd,SOCIAL SERVICES RESIDENTIAL,People's Services,Nursing Care - Ext Provider,A56025
London Borough of Sutton,04/08/2023,50385881,533.58,Chegworth Nursing Home Bayswift Ltd,SOCIAL SERVICES RESIDENTIAL,People's Services,Nursing Care - 3rd party top up payment,A56023
London Borough of Sutton,04/08/2023,50385884,"4,096.12",Chegworth Nursing Home Bayswift Ltd,SOCIAL SERVICES RESIDENTIAL,People's Services,Nursing Care - Ext Provider,A56025
London Borough of Sutton,04/08/2023,50385884,-878.84,Chegworth Nursing Home Bayswift Ltd,SOCIAL SERVICES RESIDENTIAL,People's Services,Nursing Care - 3rd party top up payment,A56023
London Borough of Sutton,04/08/2023,50385889,-662.24,Chegworth Nursing Home Bayswift Ltd,SOCIAL SERVICES RESIDENTIAL,People's Services,Nursing Care - 3rd party top up payment,A56023
London Borough of Sutton,04/08/2023,50385889,"4,955.56",Chegworth Nursing Home Bayswift Ltd,SOCIAL SERVICES RESIDENTIAL,People's Services,Nursing Care Short Term,A56026
London Borough of Sutton,31/07/2023,20054970,"6,028.78",Chelsea and Westminster NHS ft,SOCIAL SERVICES - OTHER,Health and Wellbeing,Provider Contract Payments,A44290
London Borough of Sutton,14/07/2023,20056342,"13,725.00",Chelsea Studios Ltd,ACCOMMODATION BED & BREAKFAST,Environment Housing and Neighbourhoods,Temporary Protection - Homeless Persons,A62028
London Borough of Sutton,04/08/2023,50385330,"5,159.40",Cherry Lodge,SOCIAL SERVICES RESIDENTIAL,People's Services,Residential Care - Ext Provider,A56114
London Borough of Sutton,04/08/2023,50385330,-664.04,Cherry Lodge,SOCIAL SERVICES RESIDENTIAL,People's Services,Residential Care - Client Cont ( Net Paymt ),A56113
London Borough of Sutton,04/08/2023,50385376,"4,443.40",Cherry Lodge,SOCIAL SERVICES RESIDENTIAL,People's Services,Residential Care - Ext Provider,A56114
London Borough of Sutton,16/12/2021,20055443,"2,093.54",Chessington Hotel Ltd,SUNDRY SUPPLIER - EDUCATION,People's Services,Miscellaneous Expenses,A49000
London Borough of Sutton,04/08/2023,50385381,"4,096.12",CHHG Ltd,SOCIAL SERVICES RESIDENTIAL,People's Services,Nursing Care - Ext Provider,A56025
London Borough of Sutton,04/08/2023,50385381,-878.84,CHHG Ltd,SOCIAL SERVICES RESIDENTIAL,People's Services,Nursing Care - 3rd party top up payment,A56023
London Borough of Sutton,28/07/2023,20055068,"3,981.00",Children's Trust,CHILDREN'S SERVICES - DAY CARE,People's Services,Respite Care,A56116
London Borough of Sutton,06/07/2023,50385244,"14,102.52",Children's Trust,CHILDREN'S SERVICES - DAY CARE,People's Services,Residential Care-Children,A56115
London Borough of Sutton,07/08/2023,50388805,"6,795.82",Children's Trust,CHILDREN'S SERVICES - DAY CARE,People's Services,Independent School Fees,A56002
London Borough of Sutton,07/08/2023,50388806,"6,869.60",Children's Trust,CHILDREN'S SERVICES - DAY CARE,People's Services,Independent School Fees,A56002
London Borough of Sutton,07/08/2023,50388807,"6,900.60",Children's Trust,CHILDREN'S SERVICES - DAY CARE,People's Services,Independent School Fees,A56002
London Borough of Sutton,01/08/2023,50384286,943.37,Choice Support,GRANTS & EX GRATIA PAYMENTS,People's Services,Supported Living,A56088
London Borough of Sutton,01/08/2023,50384286,"5,318.74",Choice Support,GRANTS & EX GRATIA PAYMENTS,People's Services,Supported Living,A56088
London Borough of Sutton,04/08/2023,50385507,"6,500.03",Choice Support,GRANTS & EX GRATIA PAYMENTS,People's Services,Residential Care - Ext Provider,A56114
London Borough of Sutton,13/06/2023,50386832,"6,925.80",Choice Support,GRANTS & EX GRATIA PAYMENTS,People's Services,Home Care Services,A56019
London Borough of Sutton,10/07/2023,50387560,"6,484.68",Choice Support,GRANTS & EX GRATIA PAYMENTS,People's Services,Home Care Services,A56019
London Borough of Sutton,01/08/2023,50387781,"6,743.29",Choice Support,GRANTS & EX GRATIA PAYMENTS,People's Services,Supported Living,A56088
London Borough of Sutton,01/08/2023,50387781,673.85,Choice Support,GRANTS & EX GRATIA PAYMENTS,People's Services,Supported Living,A56088
London Borough of Sutton,01/08/2023,50387781,251.81,Choice Support,GRANTS & EX GRATIA PAYMENTS,People's Services,Supported Living,A56088
London Borough of Sutton,01/08/2023,50387782,"1,700.94",Choice Support,GRANTS & EX GRATIA PAYMENTS,People's Services,Supported Living,A56088
London Borough of Sutton,01/08/2023,50387782,673.85,Choice Support,GRANTS & EX GRATIA PAYMENTS,People's Services,Supported Living,A56088
London Borough of Sutton,01/08/2023,50387782,251.81,Choice Support,GRANTS & EX GRATIA PAYMENTS,People's Services,Supported Living,A56088
London Borough of Sutton,01/08/2023,50387782,"2,405.25",Choice Support,GRANTS & EX GRATIA PAYMENTS,People's Services,Supported Living,A56088
London Borough of Sutton,03/07/2023,50387783,"6,355.41",Choice Support,GRANTS & EX GRATIA PAYMENTS,People's Services,Supported Living,A56088
London Borough of Sutton,03/07/2023,50387783,613.37,Choice Support,GRANTS & EX GRATIA PAYMENTS,People's Services,Supported Living,A56088
London Borough of Sutton,03/07/2023,50387783,236.62,Choice Support,GRANTS & EX GRATIA PAYMENTS,People's Services,Supported Living,A56088
London Borough of Sutton,03/07/2023,50387784,"1,617.81",Choice Support,GRANTS & EX GRATIA PAYMENTS,People's Services,Supported Living,A56088
London Borough of Sutton,03/07/2023,50387784,613.37,Choice Support,GRANTS & EX GRATIA PAYMENTS,People's Services,Supported Living,A56088
London Borough of Sutton,03/07/2023,50387784,236.62,Choice Support,GRANTS & EX GRATIA PAYMENTS,People's Services,Supported Living,A56088
London Borough of Sutton,03/07/2023,50387784,"2,259.90",Choice Support,GRANTS & EX GRATIA PAYMENTS,People's Services,Supported Living,A56088
London Borough of Sutton,01/08/2023,50387791,"6,197.77",Choice Support,GRANTS & EX GRATIA PAYMENTS,People's Services,Supported Living,A56088
London Borough of Sutton,01/08/2023,50387791,943.37,Choice Support,GRANTS & EX GRATIA PAYMENTS,People's Services,Supported Living,A56088
London Borough of Sutton,03/07/2023,50387792,"5,850.77",Choice Support,GRANTS & EX GRATIA PAYMENTS,People's Services,Supported Living,A56088
London Borough of Sutton,03/07/2023,50387792,858.73,Choice Support,GRANTS & EX GRATIA PAYMENTS,People's Services,Supported Living,A56088
London Borough of Sutton,01/08/2023,50387793,"6,914.51",Choice Support,GRANTS & EX GRATIA PAYMENTS,People's Services,Supported Living,A56088
London Borough of Sutton,01/08/2023,50387793,"1,369.41",Choice Support,GRANTS & EX GRATIA PAYMENTS,People's Services,Supported Living,A56088
London Borough of Sutton,03/07/2023,50387794,"6,498.43",Choice Support,GRANTS & EX GRATIA PAYMENTS,People's Services,Supported Living,A56088
London Borough of Sutton,03/07/2023,50387794,"1,284.77",Choice Support,GRANTS & EX GRATIA PAYMENTS,People's Services,Supported Living,A56088
London Borough of Sutton,01/08/2023,50387795,"6,069.56",Choice Support,GRANTS & EX GRATIA PAYMENTS,People's Services,Supported Living,A56088
London Borough of Sutton,01/08/2023,50387795,"1,095.53",Choice Support,GRANTS & EX GRATIA PAYMENTS,People's Services,Supported Living,A56088
London Borough of Sutton,03/07/2023,50387796,"5,459.88",Choice Support,GRANTS & EX GRATIA PAYMENTS,People's Services,Supported Living,A56088
London Borough of Sutton,03/07/2023,50387796,"1,071.75",Choice Support,GRANTS & EX GRATIA PAYMENTS,People's Services,Supported Living,A56088
London Borough of Sutton,03/07/2023,50387796,200.37,Choice Support,GRANTS & EX GRATIA PAYMENTS,People's Services,Supported Living,A56088
London Borough of Sutton,01/08/2023,50387804,"1,961.32",Choice Support,GRANTS & EX GRATIA PAYMENTS,People's Services,Supported Living,A56088
London Borough of Sutton,01/08/2023,50387804,673.85,Choice Support,GRANTS & EX GRATIA PAYMENTS,People's Services,Supported Living,A56088
London Borough of Sutton,01/08/2023,50387804,251.81,Choice Support,GRANTS & EX GRATIA PAYMENTS,People's Services,Supported Living,A56088
London Borough of Sutton,01/08/2023,50387804,"1,745.74",Choice Support,GRANTS & EX GRATIA PAYMENTS,People's Services,Supported Living,A56088
London Borough of Sutton,03/07/2023,50387805,"1,862.44",Choice Support,GRANTS & EX GRATIA PAYMENTS,People's Services,Supported Living,A56088
London Borough of Sutton,03/07/2023,50387805,613.37,Choice Support,GRANTS & EX GRATIA PAYMENTS,People's Services,Supported Living,A56088
London Borough of Sutton,03/07/2023,50387805,236.62,Choice Support,GRANTS & EX GRATIA PAYMENTS,People's Services,Supported Living,A56088
London Borough of Sutton,03/07/2023,50387805,"1,640.27",Choice Support,GRANTS & EX GRATIA PAYMENTS,People's Services,Supported Living,A56088
London Borough of Sutton,01/08/2023,50387806,"3,465.42",Choice Support,GRANTS & EX GRATIA PAYMENTS,People's Services,Supported Living,A56088
London Borough of Sutton,01/08/2023,50387806,673.85,Choice Support,GRANTS & EX GRATIA PAYMENTS,People's Services,Supported Living,A56088
London Borough of Sutton,01/08/2023,50387806,251.81,Choice Support,GRANTS & EX GRATIA PAYMENTS,People's Services,Supported Living,A56088
London Borough of Sutton,01/08/2023,50387806,"3,686.25",Choice Support,GRANTS & EX GRATIA PAYMENTS,People's Services,Supported Living,A56088
London Borough of Sutton,03/07/2023,50387807,"3,463.50",Choice Support,GRANTS & EX GRATIA PAYMENTS,People's Services,Supported Living,A56088
London Borough of Sutton,03/07/2023,50387807,"3,275.61",Choice Support,GRANTS & EX GRATIA PAYMENTS,People's Services,Supported Living,A56088
London Borough of Sutton,03/07/2023,50387807,613.37,Choice Support,GRANTS & EX GRATIA PAYMENTS,People's Services,Supported Living,A56088
London Borough of Sutton,03/07/2023,50387807,236.62,Choice Support,GRANTS & EX GRATIA PAYMENTS,People's Services,Supported Living,A56088
London Borough of Sutton,01/08/2023,50387808,"1,835.49",Choice Support,GRANTS & EX GRATIA PAYMENTS,People's Services,Supported Living,A56088
London Borough of Sutton,01/08/2023,50387808,673.85,Choice Support,GRANTS & EX GRATIA PAYMENTS,People's Services,Supported Living,A56088
London Borough of Sutton,01/08/2023,50387808,251.81,Choice Support,GRANTS & EX GRATIA PAYMENTS,People's Services,Supported Living,A56088
London Borough of Sutton,01/08/2023,50387808,"2,897.17",Choice Support,GRANTS & EX GRATIA PAYMENTS,People's Services,Supported Living,A56088
London Borough of Sutton,03/07/2023,50387809,"1,711.75",Choice Support,GRANTS & EX GRATIA PAYMENTS,People's Services,Supported Living,A56088
London Borough of Sutton,03/07/2023,50387809,613.37,Choice Support,GRANTS & EX GRATIA PAYMENTS,People's Services,Supported Living,A56088
London Borough of Sutton,03/07/2023,50387809,269.11,Choice Support,GRANTS & EX GRATIA PAYMENTS,People's Services,Supported Living,A56088
London Borough of Sutton,03/07/2023,50387809,"2,722.07",Choice Support,GRANTS & EX GRATIA PAYMENTS,People's Services,Supported Living,A56088
London Borough of Sutton,16/08/2023,50389414,"2,438.99",Choice Support,GRANTS & EX GRATIA PAYMENTS,People's Services,Supported Living,A56088
London Borough of Sutton,16/08/2023,50389414,494.19,Choice Support,GRANTS & EX GRATIA PAYMENTS,People's Services,Supported Living,A56088
London Borough of Sutton,16/08/2023,50389414,"1,714.56",Choice Support,GRANTS & EX GRATIA PAYMENTS,People's Services,Supported Living,A56088
London Borough of Sutton,16/08/2023,50389414,672.75,Choice Support,GRANTS & EX GRATIA PAYMENTS,People's Services,Supported Living,A56088
London Borough of Sutton,16/08/2023,50389418,764.09,Choice Support,GRANTS & EX GRATIA PAYMENTS,People's Services,Supported Living,A56088
London Borough of Sutton,16/08/2023,50389419,"5,661.25",Choice Support,GRANTS & EX GRATIA PAYMENTS,People's Services,Supported Living,A56088
London Borough of Sutton,16/08/2023,50389419,"1,381.76",Choice Support,GRANTS & EX GRATIA PAYMENTS,People's Services,Supported Living,A56088
London Borough of Sutton,16/08/2023,50389420,"8,533.76",Choice Support,GRANTS & EX GRATIA PAYMENTS,People's Services,Supported Living,A56088
London Borough of Sutton,16/08/2023,50389420,"1,932.72",Choice Support,GRANTS & EX GRATIA PAYMENTS,People's Services,Supported Living,A56088
London Borough of Sutton,16/08/2023,50389422,"1,518.81",Choice Support,GRANTS & EX GRATIA PAYMENTS,People's Services,Supported Living,A56088
London Borough of Sutton,16/08/2023,50389422,"6,857.96",Choice Support,GRANTS & EX GRATIA PAYMENTS,People's Services,Supported Living,A56088
London Borough of Sutton,16/08/2023,50389422,"1,381.76",Choice Support,GRANTS & EX GRATIA PAYMENTS,People's Services,Supported Living,A56088
London Borough of Sutton,16/08/2023,50389423,"3,567.48",Choice Support,GRANTS & EX GRATIA PAYMENTS,People's Services,Supported Living,A56088
London Borough of Sutton,16/08/2023,50389425,"1,518.81",Choice Support,GRANTS & EX GRATIA PAYMENTS,People's Services,Supported Living,A56088
London Borough of Sutton,16/08/2023,50389425,"4,004.28",Choice Support,GRANTS & EX GRATIA PAYMENTS,People's Services,Supported Living,A56088
London Borough of Sutton,16/08/2023,50389425,"1,381.76",Choice Support,GRANTS & EX GRATIA PAYMENTS,People's Services,Supported Living,A56088
London Borough of Sutton,16/08/2023,50389432,533.36,Choice Support,GRANTS & EX GRATIA PAYMENTS,People's Services,Supported Living,A56088
London Borough of Sutton,16/08/2023,50389432,92.46,Choice Support,GRANTS & EX GRATIA PAYMENTS,People's Services,Supported Living,A56088
London Borough of Sutton,16/08/2023,50389432,"2,057.24",Choice Support,GRANTS & EX GRATIA PAYMENTS,People's Services,Supported Living,A56088
London Borough of Sutton,16/08/2023,50389439,"1,518.81",Choice Support,GRANTS & EX GRATIA PAYMENTS,People's Services,Supported Living,A56088
London Borough of Sutton,16/08/2023,50389439,"6,719.96",Choice Support,GRANTS & EX GRATIA PAYMENTS,People's Services,Supported Living,A56088
London Borough of Sutton,16/08/2023,50389439,"1,381.76",Choice Support,GRANTS & EX GRATIA PAYMENTS,People's Services,Supported Living,A56088
London Borough of Sutton,16/08/2023,50389441,"1,518.81",Choice Support,GRANTS & EX GRATIA PAYMENTS,People's Services,Supported Living,A56088
London Borough of Sutton,16/08/2023,50389441,"4,142.44",Choice Support,GRANTS & EX GRATIA PAYMENTS,People's Services,Supported Living,A56088
London Borough of Sutton,16/08/2023,50389441,"1,381.76",Choice Support,GRANTS & EX GRATIA PAYMENTS,People's Services,Supported Living,A56088
London Borough of Sutton,16/08/2023,50389449,304.78,Choice Support,GRANTS & EX GRATIA PAYMENTS,People's Services,Supported Living,A56088
London Borough of Sutton,16/08/2023,50389449,92.46,Choice Support,GRANTS & EX GRATIA PAYMENTS,People's Services,Supported Living,A56088
London Borough of Sutton,16/08/2023,50389449,"2,057.24",Choice Support,GRANTS & EX GRATIA PAYMENTS,People's Services,Supported Living,A56088
London Borough of Sutton,16/08/2023,50389450,764.09,Choice Support,GRANTS & EX GRATIA PAYMENTS,People's Services,Supported Living,A56088
London Borough of Sutton,16/08/2023,50389450,"6,305.63",Choice Support,GRANTS & EX GRATIA PAYMENTS,People's Services,Supported Living,A56088
London Borough of Sutton,16/08/2023,50389450,"1,381.76",Choice Support,GRANTS & EX GRATIA PAYMENTS,People's Services,Supported Living,A56088
London Borough of Sutton,16/08/2023,50389452,"7,847.67",Choice Support,GRANTS & EX GRATIA PAYMENTS,People's Services,Supported Living,A56088
London Borough of Sutton,16/08/2023,50389452,"1,381.76",Choice Support,GRANTS & EX GRATIA PAYMENTS,People's Services,Supported Living,A56088
London Borough of Sutton,16/08/2023,50389453,764.09,Choice Support,GRANTS & EX GRATIA PAYMENTS,People's Services,Supported Living,A56088
London Borough of Sutton,16/08/2023,50389461,"1,518.81",Choice Support,GRANTS & EX GRATIA PAYMENTS,People's Services,Supported Living,A56088
London Borough of Sutton,16/08/2023,50389461,"4,050.38",Choice Support,GRANTS & EX GRATIA PAYMENTS,People's Services,Supported Living,A56088
London Borough of Sutton,16/08/2023,50389461,"1,381.76",Choice Support,GRANTS & EX GRATIA PAYMENTS,People's Services,Supported Living,A56088
London Borough of Sutton,16/08/2023,50389464,"2,402.59",Choice Support,GRANTS & EX GRATIA PAYMENTS,People's Services,Supported Living,A56088
London Borough of Sutton,16/08/2023,50389464,502.91,Choice Support,GRANTS & EX GRATIA PAYMENTS,People's Services,Supported Living,A56088
London Borough of Sutton,16/08/2023,50389464,"1,687.64",Choice Support,GRANTS & EX GRATIA PAYMENTS,People's Services,Supported Living,A56088
London Borough of Sutton,16/08/2023,50389464,672.75,Choice Support,GRANTS & EX GRATIA PAYMENTS,People's Services,Supported Living,A56088
London Borough of Sutton,16/08/2023,50389465,494.19,Choice Support,GRANTS & EX GRATIA PAYMENTS,People's Services,Supported Living,A56088
London Borough of Sutton,16/08/2023,50389465,"4,004.32",Choice Support,GRANTS & EX GRATIA PAYMENTS,People's Services,Supported Living,A56088
London Borough of Sutton,16/08/2023,50389465,122.31,Choice Support,GRANTS & EX GRATIA PAYMENTS,People's Services,Supported Living,A56088
London Borough of Sutton,16/08/2023,50389468,"5,371.70",Choice Support,GRANTS & EX GRATIA PAYMENTS,People's Services,Supported Living,A56088
London Borough of Sutton,16/08/2023,50389468,"1,932.72",Choice Support,GRANTS & EX GRATIA PAYMENTS,People's Services,Supported Living,A56088
London Borough of Sutton,16/08/2023,50389469,764.09,Choice Support,GRANTS & EX GRATIA PAYMENTS,People's Services,Supported Living,A56088
London Borough of Sutton,16/08/2023,50389469,"6,305.63",Choice Support,GRANTS & EX GRATIA PAYMENTS,People's Services,Supported Living,A56088
London Borough of Sutton,16/08/2023,50389469,"1,381.76",Choice Support,GRANTS & EX GRATIA PAYMENTS,People's Services,Supported Living,A56088
London Borough of Sutton,16/08/2023,50389470,764.09,Choice Support,GRANTS & EX GRATIA PAYMENTS,People's Services,Supported Living,A56088
London Borough of Sutton,16/08/2023,50389470,"5,983.52",Choice Support,GRANTS & EX GRATIA PAYMENTS,People's Services,Supported Living,A56088
London Borough of Sutton,16/08/2023,50389470,"1,381.76",Choice Support,GRANTS & EX GRATIA PAYMENTS,People's Services,Supported Living,A56088
London Borough of Sutton,16/08/2023,50389480,"2,256.97",Choice Support,GRANTS & EX GRATIA PAYMENTS,People's Services,Supported Living,A56088
London Borough of Sutton,16/08/2023,50389480,494.19,Choice Support,GRANTS & EX GRATIA PAYMENTS,People's Services,Supported Living,A56088
London Borough of Sutton,16/08/2023,50389480,"1,456.12",Choice Support,GRANTS & EX GRATIA PAYMENTS,People's Services,Supported Living,A56088
London Borough of Sutton,16/08/2023,50389480,122.31,Choice Support,GRANTS & EX GRATIA PAYMENTS,People's Services,Supported Living,A56088
London Borough of Sutton,16/08/2023,50389481,"2,147.77",Choice Support,GRANTS & EX GRATIA PAYMENTS,People's Services,Supported Living,A56088
London Borough of Sutton,16/08/2023,50389481,494.19,Choice Support,GRANTS & EX GRATIA PAYMENTS,People's Services,Supported Living,A56088
London Borough of Sutton,16/08/2023,50389481,"1,659.96",Choice Support,GRANTS & EX GRATIA PAYMENTS,People's Services,Supported Living,A56088
London Borough of Sutton,16/08/2023,50389481,672.75,Choice Support,GRANTS & EX GRATIA PAYMENTS,People's Services,Supported Living,A56088
London Borough of Sutton,16/08/2023,50389482,"3,831.77",Choice Support,GRANTS & EX GRATIA PAYMENTS,People's Services,Supported Living,A56088
London Borough of Sutton,16/08/2023,50389482,494.19,Choice Support,GRANTS & EX GRATIA PAYMENTS,People's Services,Supported Living,A56088
London Borough of Sutton,16/08/2023,50389482,"1,448.85",Choice Support,GRANTS & EX GRATIA PAYMENTS,People's Services,Supported Living,A56088
London Borough of Sutton,16/08/2023,50389482,672.75,Choice Support,GRANTS & EX GRATIA PAYMENTS,People's Services,Supported Living,A56088
London Borough of Sutton,16/08/2023,50389485,764.09,Choice Support,GRANTS & EX GRATIA PAYMENTS,People's Services,Supported Living,A56088
London Borough of Sutton,16/08/2023,50389485,"6,075.58",Choice Support,GRANTS & EX GRATIA PAYMENTS,People's Services,Supported Living,A56088
London Borough of Sutton,16/08/2023,50389485,"1,381.76",Choice Support,GRANTS & EX GRATIA PAYMENTS,People's Services,Supported Living,A56088
London Borough of Sutton,16/08/2023,50389486,92.46,Choice Support,GRANTS & EX GRATIA PAYMENTS,People's Services,Supported Living,A56088
London Borough of Sutton,16/08/2023,50389486,"2,057.24",Choice Support,GRANTS & EX GRATIA PAYMENTS,People's Services,Supported Living,A56088
London Borough of Sutton,16/08/2023,50389486,"4,800.24",Choice Support,GRANTS & EX GRATIA PAYMENTS,People's Services,Supported Living,A56088
London Borough of Sutton,16/08/2023,50389489,"1,518.81",Choice Support,GRANTS & EX GRATIA PAYMENTS,People's Services,Supported Living,A56088
London Borough of Sutton,16/08/2023,50389489,"4,004.28",Choice Support,GRANTS & EX GRATIA PAYMENTS,People's Services,Supported Living,A56088
London Borough of Sutton,16/08/2023,50389489,"1,381.76",Choice Support,GRANTS & EX GRATIA PAYMENTS,People's Services,Supported Living,A56088
London Borough of Sutton,16/08/2023,50389497,764.09,Choice Support,GRANTS & EX GRATIA PAYMENTS,People's Services,Supported Living,A56088
London Borough of Sutton,16/08/2023,50389497,"5,983.52",Choice Support,GRANTS & EX GRATIA PAYMENTS,People's Services,Supported Living,A56088
London Borough of Sutton,16/08/2023,50389497,"1,381.76",Choice Support,GRANTS & EX GRATIA PAYMENTS,People's Services,Supported Living,A56088
London Borough of Sutton,16/08/2023,50389499,"2,372.03",Choice Support,GRANTS & EX GRATIA PAYMENTS,People's Services,Supported Living,A56088
London Borough of Sutton,16/08/2023,50389499,494.19,Choice Support,GRANTS & EX GRATIA PAYMENTS,People's Services,Supported Living,A56088
London Borough of Sutton,16/08/2023,50389499,"1,678.17",Choice Support,GRANTS & EX GRATIA PAYMENTS,People's Services,Supported Living,A56088
London Borough of Sutton,16/08/2023,50389499,672.75,Choice Support,GRANTS & EX GRATIA PAYMENTS,People's Services,Supported Living,A56088
London Borough of Sutton,16/08/2023,50389510,"1,518.81",Choice Support,GRANTS & EX GRATIA PAYMENTS,People's Services,Supported Living,A56088
London Borough of Sutton,16/08/2023,50389510,"4,234.50",Choice Support,GRANTS & EX GRATIA PAYMENTS,People's Services,Supported Living,A56088
London Borough of Sutton,16/08/2023,50389510,"1,381.76",Choice Support,GRANTS & EX GRATIA PAYMENTS,People's Services,Supported Living,A56088
London Borough of Sutton,16/08/2023,50389511,"4,441.15",Choice Support,GRANTS & EX GRATIA PAYMENTS,People's Services,Supported Living,A56088
London Borough of Sutton,16/08/2023,50389514,"2,475.40",Choice Support,GRANTS & EX GRATIA PAYMENTS,People's Services,Supported Living,A56088
London Borough of Sutton,16/08/2023,50389514,122.31,Choice Support,GRANTS & EX GRATIA PAYMENTS,People's Services,Supported Living,A56088
London Borough of Sutton,16/08/2023,50389514,"1,820.15",Choice Support,GRANTS & EX GRATIA PAYMENTS,People's Services,Supported Living,A56088
London Borough of Sutton,16/08/2023,50389514,494.19,Choice Support,GRANTS & EX GRATIA PAYMENTS,People's Services,Supported Living,A56088
London Borough of Sutton,15/08/2023,20056040,"7,057.29",REDACTED - PERSONAL DATA,SUNDRY SUPPLIER - EDUCATION,People's Services,Payments To Carers,A56030
London Borough of Sutton,06/03/2023,20056249,"3,587.00",REDACTED - PERSONAL DATA,SUNDRY SUPPLIER - EDUCATION,Health and Wellbeing,Staff Development And Training,A15022
London Borough of Sutton,08/07/2023,20055193,"1,096.98",KEYNYONS ESTATE AGENTS,GRANTS & EX GRATIA PAYMENTS,Environment Housing and Neighbourhoods,Temporary Protection - Homeless Persons,A62028
London Borough of Sutton,08/08/2023,20056670,"1,096.98",KEYNYONS ESTATE AGENTS,GRANTS & EX GRATIA PAYMENTS,Environment Housing and Neighbourhoods,Temporary Protection - Homeless Persons,A62028
London Borough of Sutton,02/08/2023,20055263,"3,609.50",City of London Corporation,CENTRAL & LOCAL GOVERNMENT,Environment Housing and Neighbourhoods,Hazardous Waste Disposal,A56069
London Borough of Sutton,31/07/2023,20055286,"1,033.57",City Sprint UK (Excel) Ltd,DELIVERY AND COURIER SERVICES,Resources,Printing,A43010
London Borough of Sutton,31/07/2023,20055553,"2,732.16",City Sprint UK (Excel) Ltd,DELIVERY AND COURIER SERVICES,Health and Wellbeing,Hire of Transport - Non Staff,A32000
London Borough of Sutton,01/08/2023,20055082,"36,251.20",Cityglen Ltd,ACCOMMODATION BED & BREAKFAST,Environment Housing and Neighbourhoods,Bed & Breakfast,A56000
London Borough of Sutton,04/08/2023,50385540,"4,525.36",Claremont Care Svs Ltd,SOCIAL SERVICES RESIDENTIAL,People's Services,Nursing Care - Ext Provider,A56025
London Borough of Sutton,04/08/2023,50385540,-750.40,Claremont Care Svs Ltd,SOCIAL SERVICES RESIDENTIAL,People's Services,Nursing Care - 3rd party top up payment,A56023
London Borough of Sutton,04/08/2023,50385667,"6,487.64",Claremont Care Svs Ltd,SOCIAL SERVICES RESIDENTIAL,People's Services,Nursing Care - Ext Provider,A56025
London Borough of Sutton,04/08/2023,50385667,-750.40,Claremont Care Svs Ltd,SOCIAL SERVICES RESIDENTIAL,People's Services,Nursing Care - 3rd party top up payment,A56023
London Borough of Sutton,04/08/2023,50385827,"6,236.76",Claremont Care Svs Ltd,SOCIAL SERVICES RESIDENTIAL,People's Services,Nursing Care Short Term,A56026
London Borough of Sutton,04/08/2023,50385827,-836.76,Claremont Care Svs Ltd,SOCIAL SERVICES RESIDENTIAL,People's Services,Nursing Care - 3rd party top up payment,A56023
London Borough of Sutton,04/08/2023,50385828,"6,236.76",Claremont Care Svs Ltd,SOCIAL SERVICES RESIDENTIAL,People's Services,Nursing Care - Ext Provider,A56025
London Borough of Sutton,04/08/2023,50385828,-836.76,Claremont Care Svs Ltd,SOCIAL SERVICES RESIDENTIAL,People's Services,Nursing Care - 3rd party top up payment,A56023
London Borough of Sutton,04/08/2023,50385829,"-11,424.00",Claremont Care Svs Ltd,SOCIAL SERVICES RESIDENTIAL,People's Services,Nursing Care - 3rd party top up payment,A56023
London Borough of Sutton,04/08/2023,50385829,"14,613.88",Claremont Care Svs Ltd,SOCIAL SERVICES RESIDENTIAL,People's Services,Nursing Care - Ext Provider,A56025
London Borough of Sutton,04/08/2023,50385830,-878.84,Claremont Care Svs Ltd,SOCIAL SERVICES RESIDENTIAL,People's Services,Nursing Care - 3rd party top up payment,A56023
London Borough of Sutton,04/08/2023,50385830,"7,838.84",Claremont Care Svs Ltd,SOCIAL SERVICES RESIDENTIAL,People's Services,Nursing Care Short Term,A56026
London Borough of Sutton,04/08/2023,50385848,"4,096.12",Claremont Care Svs Ltd,SOCIAL SERVICES RESIDENTIAL,People's Services,Nursing Care - Ext Provider,A56025
London Borough of Sutton,04/08/2023,50385848,-878.84,Claremont Care Svs Ltd,SOCIAL SERVICES RESIDENTIAL,People's Services,Nursing Care - 3rd party top up payment,A56023
London Borough of Sutton,04/08/2023,50385393,-735.68,Bondcare (London) Ltd,SOCIAL SERVICES RESIDENTIAL,People's Services,Nursing Care - 3rd party top up payment,A56023
London Borough of Sutton,04/08/2023,50385393,"3,720.16",Bondcare (London) Ltd,SOCIAL SERVICES RESIDENTIAL,People's Services,Nursing Care - Ext Provider,A56025
London Borough of Sutton,31/07/2023,50384285,"2,495.77",Clear Thinking Care Limited,SOCIAL SERVICES RESIDENTIAL,People's Services,Supported Living,A56088
London Borough of Sutton,07/08/2023,50387810,"2,495.77",Clear Thinking Care Limited,SOCIAL SERVICES RESIDENTIAL,People's Services,Supported Living,A56088
London Borough of Sutton,15/08/2023,50393738,"2,495.77",Clear Thinking Care Limited,SOCIAL SERVICES RESIDENTIAL,People's Services,Supported Living,A56088
London Borough of Sutton,17/08/2023,50393740,"2,495.77",Clear Thinking Care Limited,SOCIAL SERVICES RESIDENTIAL,People's Services,Supported Living,A56088
London Borough of Sutton,29/08/2023,50394466,"2,495.77",Clear Thinking Care Limited,SOCIAL SERVICES RESIDENTIAL,People's Services,Supported Living,A56088
London Borough of Sutton,16/08/2023,50389413,"8,888.41",CLIA CARE LTD,SOCIAL SERVICES RESIDENTIAL,People's Services,Supported Living,A56088
London Borough of Sutton,16/08/2023,50389413,"-6,237.77",CLIA CARE LTD,SOCIAL SERVICES RESIDENTIAL,People's Services,Nursing Care - 3rd party top up payment,A56023
London Borough of Sutton,16/08/2023,50389457,"5,384.34",CLIA CARE LTD,SOCIAL SERVICES RESIDENTIAL,People's Services,Supported Living,A56088
London Borough of Sutton,16/08/2023,50389457,"-2,692.18",CLIA CARE LTD,SOCIAL SERVICES RESIDENTIAL,People's Services,Nursing Care - 3rd party top up payment,A56023
London Borough of Sutton,16/08/2023,50389495,"1,097.00",CLIA CARE LTD,SOCIAL SERVICES RESIDENTIAL,People's Services,Supported Living,A56088
London Borough of Sutton,16/08/2023,50389495,731.60,CLIA CARE LTD,SOCIAL SERVICES RESIDENTIAL,People's Services,Supported Living,A56088
London Borough of Sutton,16/08/2023,50389495,"3,886.47",CLIA CARE LTD,SOCIAL SERVICES RESIDENTIAL,People's Services,Supported Living,A56088
London Borough of Sutton,16/08/2023,50389495,"2,859.75",CLIA CARE LTD,SOCIAL SERVICES RESIDENTIAL,People's Services,One to One Care,A56108
London Borough of Sutton,16/08/2023,50389495,"-4,287.44",CLIA CARE LTD,SOCIAL SERVICES RESIDENTIAL,People's Services,Nursing Care - 3rd party top up payment,A56023
London Borough of Sutton,16/08/2023,50389515,"7,450.71",CLIA CARE LTD,SOCIAL SERVICES RESIDENTIAL,People's Services,Supported Living,A56088
London Borough of Sutton,16/08/2023,50389515,"-3,725.36",CLIA CARE LTD,SOCIAL SERVICES RESIDENTIAL,People's Services,Nursing Care - 3rd party top up payment,A56023
London Borough of Sutton,12/06/2023,20054613,"4,300.00",Closomat Ltd,GRANTS & EX GRATIA PAYMENTS,Environment Housing and Neighbourhoods,Grants Given For Capital Purposes,C20004
London Borough of Sutton,30/07/2023,50386326,705.00,Clovecare Ltd,SOCIAL SERVICES RESIDENTIAL,People's Services,Home Care Services,A56019
London Borough of Sutton,30/07/2023,50386326,"1,043.42",Clovecare Ltd,SOCIAL SERVICES RESIDENTIAL,People's Services,Home Care Services,A56019
London Borough of Sutton,30/07/2023,50386343,834.50,Clovecare Ltd,SOCIAL SERVICES RESIDENTIAL,People's Services,Home Care Services,A56019
London Borough of Sutton,06/08/2023,50387641,834.50,Clovecare Ltd,SOCIAL SERVICES RESIDENTIAL,People's Services,Home Care Services,A56019
London Borough of Sutton,16/04/2023,50388576,970.76,Clovecare Ltd,SOCIAL SERVICES RESIDENTIAL,People's Services,Home Care Services,A56019
London Borough of Sutton,16/04/2023,50388576,46.88,Clovecare Ltd,SOCIAL SERVICES RESIDENTIAL,People's Services,Home Care Services,A56019
London Borough of Sutton,30/07/2023,50388577,549.00,Clovecare Ltd,SOCIAL SERVICES RESIDENTIAL,People's Services,Home Care Services,A56019
London Borough of Sutton,06/08/2023,50388581,549.00,Clovecare Ltd,SOCIAL SERVICES RESIDENTIAL,People's Services,Home Care Services,A56019
London Borough of Sutton,06/08/2023,50388586,545.00,Clovecare Ltd,SOCIAL SERVICES RESIDENTIAL,People's Services,Home Care Services,A56019
London Borough of Sutton,06/08/2023,50388586,"1,129.45",Clovecare Ltd,SOCIAL SERVICES RESIDENTIAL,People's Services,Home Care Services,A56019
London Borough of Sutton,15/05/2023,50388587,815.65,Clovecare Ltd,SOCIAL SERVICES RESIDENTIAL,People's Services,Home Care Services,A56019
London Borough of Sutton,15/05/2023,50388587,137.48,Clovecare Ltd,SOCIAL SERVICES RESIDENTIAL,People's Services,Home Care Services,A56019
London Borough of Sutton,16/07/2023,50388589,579.75,Clovecare Ltd,SOCIAL SERVICES RESIDENTIAL,People's Services,Home Care Services,A56019
London Borough of Sutton,16/07/2023,50388589,"1,168.67",Clovecare Ltd,SOCIAL SERVICES RESIDENTIAL,People's Services,Home Care Services,A56019
London Borough of Sutton,09/07/2023,50388590,975.25,Clovecare Ltd,SOCIAL SERVICES RESIDENTIAL,People's Services,Home Care Services,A56019
London Borough of Sutton,09/07/2023,50388590,773.17,Clovecare Ltd,SOCIAL SERVICES RESIDENTIAL,People's Services,Home Care Services,A56019
London Borough of Sutton,25/06/2023,50388591,"1,032.75",Clovecare Ltd,SOCIAL SERVICES RESIDENTIAL,People's Services,Home Care Services,A56019
London Borough of Sutton,25/06/2023,50388591,715.63,Clovecare Ltd,SOCIAL SERVICES RESIDENTIAL,People's Services,Home Care Services,A56019
London Borough of Sutton,02/07/2023,50388592,994.25,Clovecare Ltd,SOCIAL SERVICES RESIDENTIAL,People's Services,Home Care Services,A56019
London Borough of Sutton,02/07/2023,50388592,754.16,Clovecare Ltd,SOCIAL SERVICES RESIDENTIAL,People's Services,Home Care Services,A56019
London Borough of Sutton,30/04/2023,50388614,597.00,Clovecare Ltd,SOCIAL SERVICES RESIDENTIAL,People's Services,Home Care Services,A56019
London Borough of Sutton,30/04/2023,50388715,533.00,Clovecare Ltd,SOCIAL SERVICES RESIDENTIAL,People's Services,Home Care Services,A56019
London Borough of Sutton,13/08/2023,50390513,807.50,Clovecare Ltd,SOCIAL SERVICES RESIDENTIAL,People's Services,Home Care Services,A56019
London Borough of Sutton,20/08/2023,50393615,834.50,Clovecare Ltd,SOCIAL SERVICES RESIDENTIAL,People's Services,Home Care Services,A56019
London Borough of Sutton,04/08/2023,50385447,"4,234.16",Coast Care Homes Ltd,SOCIAL SERVICES RESIDENTIAL,People's Services,Residential Care - Ext Provider,A56114
London Borough of Sutton,04/08/2023,50385503,"12,960.16",Cognithan Ltd,SOCIAL SERVICES RESIDENTIAL,People's Services,Residential Care - Ext Provider,A56114
London Borough of Sutton,02/07/2023,20054605,"42,533.33",Cognus Ltd,LEGAL & PROFESSIONAL SERVICES,People's Services,Consultancy Services,A56007
London Borough of Sutton,10/05/2023,20054790,"5,430.40",Cognus Ltd,LEGAL & PROFESSIONAL SERVICES,People's Services,Other Supplies & Services,A44291
London Borough of Sutton,10/05/2023,20054790,"8,000.00",Cognus Ltd,LEGAL & PROFESSIONAL SERVICES,People's Services,Other Supplies & Services,A44291
London Borough of Sutton,02/08/2023,20055168,"15,769.42",Cognus Ltd,LEGAL & PROFESSIONAL SERVICES,People's Services,Consultancy Services,A56007
London Borough of Sutton,02/08/2023,20055169,"148,062.50",Cognus Ltd,LEGAL & PROFESSIONAL SERVICES,People's Services,Special Educational Needs,A51015
London Borough of Sutton,02/08/2023,20055170,"151,477.17",Cognus Ltd,LEGAL & PROFESSIONAL SERVICES,People's Services,Consultancy Services,A56007
London Borough of Sutton,02/08/2023,20055171,"15,769.42",Cognus Ltd,LEGAL & PROFESSIONAL SERVICES,People's Services,Consultancy Services,A56007
London Borough of Sutton,02/08/2023,20055172,"231,686.53",Cognus Ltd,LEGAL & PROFESSIONAL SERVICES,People's Services,Consultancy Services,A56007
London Borough of Sutton,02/08/2023,20055173,"148,062.50",Cognus Ltd,LEGAL & PROFESSIONAL SERVICES,People's Services,Special Educational Needs,A51015
London Borough of Sutton,02/08/2023,20055183,"42,533.33",Cognus Ltd,LEGAL & PROFESSIONAL SERVICES,People's Services,Consultancy Services,A56007
London Borough of Sutton,04/07/2023,20056087,"100,000.00",Cognus Ltd,LEGAL & PROFESSIONAL SERVICES,People's Services,Other Supplies & Services,A44291
London Borough of Sutton,22/08/2023,20056616,"8,000.00",Cognus Ltd,LEGAL & PROFESSIONAL SERVICES,People's Services,LAC - Education,A44280
London Borough of Sutton,28/07/2023,50384450,"6,068.40",Cognus Ltd,LEGAL & PROFESSIONAL SERVICES,People's Services,Top-up individual funding,A60033
London Borough of Sutton,04/08/2023,50385434,"11,981.04",Coleg Elidyr Camphill Communities,CHILDREN'S SERVICES - RESIDENTIAL,People's Services,Interim Placements - Ext Provider,A56102
London Borough of Sutton,27/07/2023,50393892,"4,304.33",Collingwood School Ltd,GRANTS & EX GRATIA PAYMENTS,People's Services,Independent School Fees,A56002
London Borough of Sutton,31/07/2023,50384281,"2,937.87",Comfort Care Services UK Ltd,SOCIAL SERVICES - DIRECT PAYMENTS,People's Services,Supported Living,A56088
London Borough of Sutton,11/08/2023,20056327,"50,000.00",Community Action Sutton,GRANTS & EX GRATIA PAYMENTS,Environment Housing and Neighbourhoods,Payments to Voluntary Organisations,A54005
London Borough of Sutton,29/08/2023,20056814,"81,464.83",Community Action Sutton,GRANTS & EX GRATIA PAYMENTS,Environment Housing and Neighbourhoods,Payments to Voluntary Organisations,A54005
London Borough of Sutton,11/08/2023,50387797,"28,241.31",Community Housing and Therapy,SOCIAL SERVICES RESIDENTIAL,People's Services,Supported Living,A56088
London Borough of Sutton,01/07/2023,50385251,"3,639.09",Compass Fostering London Ltd,CHILDREN'S SERVICES - FOSTERING & ADOPTION SERVICES,People's Services,Foster Parents Support,A44110
London Borough of Sutton,01/07/2023,50385301,"3,753.17",Compass Fostering London Ltd,CHILDREN'S SERVICES - FOSTERING & ADOPTION SERVICES,People's Services,Foster Parents Support,A44110
London Borough of Sutton,01/07/2023,50385318,"4,088.28",Compass Fostering London Ltd,CHILDREN'S SERVICES - FOSTERING & ADOPTION SERVICES,People's Services,Foster Parents Support,A44110
London Borough of Sutton,01/07/2023,50385243,"4,649.69",Compass Fostering South Ltd,CHILDREN'S SERVICES - FOSTERING & ADOPTION SERVICES,People's Services,Foster Parents Support,A44110
London Borough of Sutton,04/07/2023,50385257,"4,162.86",Connect Fostering Services Ltd,CHILDREN'S SERVICES - FOSTERING & ADOPTION SERVICES,People's Services,Foster Parents Support,A44110
London Borough of Sutton,04/07/2023,50385281,"3,500.00",Connect Fostering Services Ltd,CHILDREN'S SERVICES - FOSTERING & ADOPTION SERVICES,People's Services,Foster Parents Support,A44110
London Borough of Sutton,04/07/2023,50385281,402.86,Connect Fostering Services Ltd,CHILDREN'S SERVICES - FOSTERING & ADOPTION SERVICES,People's Services,Foster Parents Support,A44110
London Borough of Sutton,19/07/2023,20056137,852.53,Corona Energy,UTILITIES,Resources,Gas,A21003
London Borough of Sutton,01/07/2023,20054411,"-10,539.25",Cranstoun,SOCIAL SERVICES - OTHER,People's Services,Provider Contract Payments,A44290
London Borough of Sutton,01/07/2023,20055151,"239,683.00",Cranstoun,SOCIAL SERVICES - OTHER,Health and Wellbeing,Provider Contract Payments,A44290
London Borough of Sutton,01/08/2023,20055367,"154,067.08",Cranstoun,SOCIAL SERVICES - OTHER,Health and Wellbeing,Provider Contract Payments,A44290
London Borough of Sutton,04/08/2023,50385413,"7,584.16",Cream 1 Ltd (Longrun House),SOCIAL SERVICES RESIDENTIAL,People's Services,Residential Care - Ext Provider,A56114
London Borough of Sutton,04/08/2023,50385413,"5,560.52",Cream 1 Ltd (Longrun House),SOCIAL SERVICES RESIDENTIAL,People's Services,One to One Care,A56108
London Borough of Sutton,04/07/2023,50385274,"6,957.29",Credo Care Limited,CHILDREN'S SERVICE - OTHER,People's Services,Foster Parents Support,A44110
London Borough of Sutton,20/07/2023,50393882,"21,445.84",Cressey Oasis Education Ltd,CHILDREN'S SERVICES - RESIDENTIAL,People's Services,Independent School Fees,A56002
London Borough of Sutton,20/07/2023,50393883,"19,917.43",Cressey Oasis Education Ltd,CHILDREN'S SERVICES - RESIDENTIAL,People's Services,Independent School Fees,A56002
London Borough of Sutton,20/07/2023,50393884,"21,445.84",Cressey Oasis Education Ltd,CHILDREN'S SERVICES - RESIDENTIAL,People's Services,Independent School Fees,A56002
London Borough of Sutton,20/07/2023,50393885,"19,036.16",Cressey Oasis Education Ltd,CHILDREN'S SERVICES - RESIDENTIAL,People's Services,Independent School Fees,A56002
London Borough of Sutton,20/07/2023,50393886,"17,678.44",Cressey Oasis Education Ltd,CHILDREN'S SERVICES - RESIDENTIAL,People's Services,Independent School Fees,A56002
London Borough of Sutton,20/07/2023,50393887,"19,200.48",Cressey Oasis Education Ltd,CHILDREN'S SERVICES - RESIDENTIAL,People's Services,Independent School Fees,A56002
London Borough of Sutton,20/07/2023,50393888,"21,445.84",Cressey Oasis Education Ltd,CHILDREN'S SERVICES - RESIDENTIAL,People's Services,Independent School Fees,A56002
London Borough of Sutton,04/08/2023,50385520,"4,096.12",CRNH Ltd,SOCIAL SERVICES RESIDENTIAL,People's Services,Nursing Care - Ext Provider,A56025
London Borough of Sutton,04/08/2023,50385520,-878.84,CRNH Ltd,SOCIAL SERVICES RESIDENTIAL,People's Services,Nursing Care - 3rd party top up payment,A56023
London Borough of Sutton,04/08/2023,50385577,"5,400.00",CRNH Ltd,SOCIAL SERVICES RESIDENTIAL,People's Services,Nursing Care - Ext Provider,A56025
London Borough of Sutton,04/08/2023,50385577,-836.76,CRNH Ltd,SOCIAL SERVICES RESIDENTIAL,People's Services,Nursing Care - 3rd party top up payment,A56023
London Borough of Sutton,04/08/2023,50385637,"6,028.52",CRNH Ltd,SOCIAL SERVICES RESIDENTIAL,People's Services,Nursing Care - Ext Provider,A56025
London Borough of Sutton,04/08/2023,50385637,-836.76,CRNH Ltd,SOCIAL SERVICES RESIDENTIAL,People's Services,Nursing Care - 3rd party top up payment,A56023
London Borough of Sutton,04/08/2023,50385700,-836.76,CRNH Ltd,SOCIAL SERVICES RESIDENTIAL,People's Services,Nursing Care - 3rd party top up payment,A56023
London Borough of Sutton,04/08/2023,50385700,"12,784.00",CRNH Ltd,SOCIAL SERVICES RESIDENTIAL,People's Services,Nursing Care Short Term,A56026
London Borough of Sutton,04/08/2023,50385722,-836.76,CRNH Ltd,SOCIAL SERVICES RESIDENTIAL,People's Services,Nursing Care - 3rd party top up payment,A56023
London Borough of Sutton,04/08/2023,50385722,"5,400.00",CRNH Ltd,SOCIAL SERVICES RESIDENTIAL,People's Services,Nursing Care Short Term,A56026
London Borough of Sutton,04/08/2023,50385744,"4,096.12",CRNH Ltd,SOCIAL SERVICES RESIDENTIAL,People's Services,Nursing Care - Ext Provider,A56025
London Borough of Sutton,04/08/2023,50385744,-878.84,CRNH Ltd,SOCIAL SERVICES RESIDENTIAL,People's Services,Nursing Care - 3rd party top up payment,A56023
London Borough of Sutton,04/08/2023,50385766,"4,096.12",CRNH Ltd,SOCIAL SERVICES RESIDENTIAL,People's Services,Nursing Care - Ext Provider,A56025
London Borough of Sutton,04/08/2023,50385766,-878.84,CRNH Ltd,SOCIAL SERVICES RESIDENTIAL,People's Services,Nursing Care - 3rd party top up payment,A56023
London Borough of Sutton,04/08/2023,50385854,"4,096.12",CRNH Ltd,SOCIAL SERVICES RESIDENTIAL,People's Services,Nursing Care - Ext Provider,A56025
London Borough of Sutton,04/08/2023,50385854,-878.84,CRNH Ltd,SOCIAL SERVICES RESIDENTIAL,People's Services,Nursing Care - 3rd party top up payment,A56023
London Borough of Sutton,31/07/2023,20056375,"23,152.00",Cromwood Limited,ACCOMMODATION BED & BREAKFAST,Environment Housing and Neighbourhoods,Bed & Breakfast,A56000
London Borough of Sutton,04/08/2023,50385567,"2,037.41",Cross Care Services Ltd,SOCIAL SERVICES RESIDENTIAL,People's Services,Nursing Care - Ext Provider,A56025
London Borough of Sutton,04/08/2023,50385567,-313.87,Cross Care Services Ltd,SOCIAL SERVICES RESIDENTIAL,People's Services,Nursing Care - 3rd party top up payment,A56023
London Borough of Sutton,04/08/2023,50385661,"4,096.12",Cross Care Services Ltd,SOCIAL SERVICES RESIDENTIAL,People's Services,Nursing Care - Ext Provider,A56025
London Borough of Sutton,04/08/2023,50385713,-878.84,Cross Care Services Ltd,SOCIAL SERVICES RESIDENTIAL,People's Services,Nursing Care - 3rd party top up payment,A56023
London Borough of Sutton,04/08/2023,50385713,"4,096.12",Cross Care Services Ltd,SOCIAL SERVICES RESIDENTIAL,People's Services,Nursing Care - Ext Provider,A56025
London Borough of Sutton,04/08/2023,50385714,"4,096.12",Cross Care Services Ltd,SOCIAL SERVICES RESIDENTIAL,People's Services,Nursing Care - Ext Provider,A56025
London Borough of Sutton,04/08/2023,50385714,-443.56,Cross Care Services Ltd,SOCIAL SERVICES RESIDENTIAL,People's Services,Nursing Care - 3rd party top up payment,A56023
London Borough of Sutton,04/08/2023,50385729,-847.45,Cross Care Services Ltd,SOCIAL SERVICES RESIDENTIAL,People's Services,Nursing Care - 3rd party top up payment,A56023
London Borough of Sutton,04/08/2023,50385729,"3,949.83",Cross Care Services Ltd,SOCIAL SERVICES RESIDENTIAL,People's Services,Nursing Care Short Term,A56026
London Borough of Sutton,04/08/2023,50385730,"4,096.12",Cross Care Services Ltd,SOCIAL SERVICES RESIDENTIAL,People's Services,Nursing Care - Ext Provider,A56025
London Borough of Sutton,04/08/2023,50385730,-878.84,Cross Care Services Ltd,SOCIAL SERVICES RESIDENTIAL,People's Services,Nursing Care - 3rd party top up payment,A56023
London Borough of Sutton,04/08/2023,50385752,"4,096.12",Cross Care Services Ltd,SOCIAL SERVICES RESIDENTIAL,People's Services,Nursing Care - Ext Provider,A56025
London Borough of Sutton,04/08/2023,50385752,-878.84,Cross Care Services Ltd,SOCIAL SERVICES RESIDENTIAL,People's Services,Nursing Care - 3rd party top up payment,A56023
London Borough of Sutton,04/08/2023,50385753,"1,501.20",Cross Care Services Ltd,SOCIAL SERVICES RESIDENTIAL,People's Services,Nursing Care Short Term,A56026
London Borough of Sutton,04/08/2023,50385754,-836.76,Cross Care Services Ltd,SOCIAL SERVICES RESIDENTIAL,People's Services,Nursing Care - 3rd party top up payment,A56023
London Borough of Sutton,04/08/2023,50385754,"3,821.24",Cross Care Services Ltd,SOCIAL SERVICES RESIDENTIAL,People's Services,Nursing Care Short Term,A56026
London Borough of Sutton,04/08/2023,50385885,"4,096.12",Cross Care Services Ltd,SOCIAL SERVICES RESIDENTIAL,People's Services,Nursing Care - Ext Provider,A56025
London Borough of Sutton,04/08/2023,50385885,-878.84,Cross Care Services Ltd,SOCIAL SERVICES RESIDENTIAL,People's Services,Nursing Care - 3rd party top up payment,A56023
London Borough of Sutton,27/07/2023,20055184,"1,280,261.81",LONDON BOROUGH OF CROYDON,CENTRAL & LOCAL GOVERNMENT,Environment Housing and Neighbourhoods,Waste Contractor Payment,A56057
London Borough of Sutton,27/07/2023,20055198,"3,567.69",LONDON BOROUGH OF CROYDON,CENTRAL & LOCAL GOVERNMENT,Environment Housing and Neighbourhoods,Idverde - Contract Payment,A56100
London Borough of Sutton,27/07/2023,20055199,"160,333.53",LONDON BOROUGH OF CROYDON,CENTRAL & LOCAL GOVERNMENT,Environment Housing and Neighbourhoods,Idverde - Contract Payment,A56100
London Borough of Sutton,01/08/2023,20055400,"855,265.84",LONDON BOROUGH OF CROYDON,CENTRAL & LOCAL GOVERNMENT,Environment Housing and Neighbourhoods,Waste Contractor Payment,A56057
London Borough of Sutton,24/07/2023,50385302,"3,090.00",LONDON BOROUGH OF CROYDON,CENTRAL & LOCAL GOVERNMENT,People's Services,Foster Parents Support,A44110
London Borough of Sutton,24/07/2023,50385303,"3,193.00",LONDON BOROUGH OF CROYDON,CENTRAL & LOCAL GOVERNMENT,People's Services,Foster Parents Support,A44110
London Borough of Sutton,31/07/2023,20055074,"5,115.00",Croydon Court Ltd,ACCOMMODATION BED & BREAKFAST,Environment Housing and Neighbourhoods,Bed & Breakfast,A56000
London Borough of Sutton,31/07/2023,20055076,"1,312.85",Croydon Court Ltd,ACCOMMODATION BED & BREAKFAST,People's Services,Temporary Residential Accommodation,A44140
London Borough of Sutton,04/08/2023,50385326,"8,118.44",CSS Ltd,SOCIAL SERVICES RESIDENTIAL,People's Services,Residential Care - Ext Provider,A56114
London Borough of Sutton,31/07/2023,20055079,935.00,Cubiquity Limited,OFFICE SERVICES,Resources,Printing,A43010
London Borough of Sutton,08/08/2023,50386500,"179,114.27",Culvers House Primary School,SCHOOL FUNDS,People's Services,Payments to Schools,A51013
London Borough of Sutton,04/08/2023,50385396,"4,800.00",Curado Limited,GRANTS & EX GRATIA PAYMENTS,People's Services,Interim Placements - Ext Provider,A56102
London Borough of Sutton,04/08/2023,50385505,"6,400.00",Curado Limited,GRANTS & EX GRATIA PAYMENTS,People's Services,Residential Care - Ext Provider,A56114
London Borough of Sutton,16/08/2023,50389436,"1,992.85",Curado Limited,GRANTS & EX GRATIA PAYMENTS,People's Services,Supported Living,A56088
London Borough of Sutton,31/07/2023,20055228,"6,830.00",Cushman & Wakefield Debenham Tie Leung Limited,LEGAL & PROFESSIONAL SERVICES,Development Growth and Regeneration,External Fees and Consultants,C20000
London Borough of Sutton,31/07/2023,20055229,"10,500.00",Cushman & Wakefield Debenham Tie Leung Limited,LEGAL & PROFESSIONAL SERVICES,Development Growth and Regeneration,External Fees and Consultants,C20000
London Borough of Sutton,31/07/2023,20055232,"2,383.33",Cushman & Wakefield Debenham Tie Leung Limited,LEGAL & PROFESSIONAL SERVICES,Development Growth and Regeneration,External Fees and Consultants,C20000
London Borough of Sutton,04/08/2023,50385440,"11,657.57",Cygnet Learning Disabilities Midlands Ltd,SOCIAL SERVICES RESIDENTIAL,People's Services,Residential Care - Ext Provider,A56114
London Borough of Sutton,04/08/2023,50385440,"-2,167.15",Cygnet Learning Disabilities Midlands Ltd,SOCIAL SERVICES RESIDENTIAL,People's Services,Residential Care - Client Cont ( Net Paymt ),A56113
London Borough of Sutton,01/08/2023,20055139,785.73,Angel Lettings,ACCOMMODATION BED & BREAKFAST,Environment Housing and Neighbourhoods,Temporary Protection - Homeless Persons,A62028
London Borough of Sutton,02/08/2023,20055290,"1,209.00",REDACTED - PERSONAL DATA,GRANTS & EX GRATIA PAYMENTS,Environment Housing and Neighbourhoods,Temporary Protection - Homeless Persons,A62028
London Borough of Sutton,06/07/2023,20055732,"1,209.00",REDACTED - PERSONAL DATA,GRANTS & EX GRATIA PAYMENTS,Environment Housing and Neighbourhoods,Temporary Protection - Homeless Persons,A62028
London Borough of Sutton,26/07/2023,20054771,650.00,Debigno Ltd,TEMP STAFF & CONSULTANCY,Health and Wellbeing,Provider Contract Payments,A44290
London Borough of Sutton,01/08/2023,20055093,"1,860.00",Dellhome Limited,ACCOMMODATION BED & BREAKFAST,Environment Housing and Neighbourhoods,Bed & Breakfast,A56000
London Borough of Sutton,01/08/2023,20055094,"1,395.00",Dellhome Limited,ACCOMMODATION BED & BREAKFAST,Environment Housing and Neighbourhoods,Bed & Breakfast,A56000
London Borough of Sutton,01/08/2023,20055095,"2,015.00",Dellhome Limited,ACCOMMODATION BED & BREAKFAST,Environment Housing and Neighbourhoods,Bed & Breakfast,A56000
London Borough of Sutton,01/08/2023,20055096,"1,215.00",Dellhome Limited,ACCOMMODATION BED & BREAKFAST,Environment Housing and Neighbourhoods,Bed & Breakfast,A56000
London Borough of Sutton,01/08/2023,20055097,"2,480.00",Dellhome Limited,ACCOMMODATION BED & BREAKFAST,Environment Housing and Neighbourhoods,Bed & Breakfast,A56000
London Borough of Sutton,01/08/2023,20055098,"2,170.00",Dellhome Limited,ACCOMMODATION BED & BREAKFAST,Environment Housing and Neighbourhoods,Bed & Breakfast,A56000
London Borough of Sutton,01/08/2023,20055099,"1,395.00",Dellhome Limited,ACCOMMODATION BED & BREAKFAST,Environment Housing and Neighbourhoods,Bed & Breakfast,A56000
London Borough of Sutton,01/08/2023,20055100,"2,325.00",Dellhome Limited,ACCOMMODATION BED & BREAKFAST,Environment Housing and Neighbourhoods,Bed & Breakfast,A56000
London Borough of Sutton,31/07/2023,20055123,"37,607.00",Delta Wise Limited,ACCOMMODATION BED & BREAKFAST,Environment Housing and Neighbourhoods,Bed & Breakfast,A56000
London Borough of Sutton,10/08/2023,20055693,-493.59,Delta Wise Limited,ACCOMMODATION BED & BREAKFAST,Resources,Fees And Charges (VATable),A92310
London Borough of Sutton,13/07/2023,20053814,"1,800.00",Denhan Property Services,ACCOMMODATION BED & BREAKFAST,Environment Housing and Neighbourhoods,Bed & Breakfast,A56000
London Borough of Sutton,08/08/2023,20055568,"1,116.00",Denhan Property Services,ACCOMMODATION BED & BREAKFAST,Environment Housing and Neighbourhoods,Bed & Breakfast,A56000
London Borough of Sutton,08/08/2023,20055569,"1,147.00",Denhan Property Services,ACCOMMODATION BED & BREAKFAST,Environment Housing and Neighbourhoods,Bed & Breakfast,A56000
London Borough of Sutton,08/08/2023,20055571,"1,929.75",Denhan Property Services,ACCOMMODATION BED & BREAKFAST,Environment Housing and Neighbourhoods,Bed & Breakfast,A56000
London Borough of Sutton,08/08/2023,20055572,"1,612.00",Denhan Property Services,ACCOMMODATION BED & BREAKFAST,Environment Housing and Neighbourhoods,Bed & Breakfast,A56000
London Borough of Sutton,08/08/2023,20055573,"2,077.00",Denhan Property Services,ACCOMMODATION BED & BREAKFAST,Environment Housing and Neighbourhoods,Bed & Breakfast,A56000
London Borough of Sutton,08/08/2023,20055574,"2,015.00",Denhan Property Services,ACCOMMODATION BED & BREAKFAST,Environment Housing and Neighbourhoods,Bed & Breakfast,A56000
London Borough of Sutton,08/08/2023,20055575,"1,116.00",Denhan Property Services,ACCOMMODATION BED & BREAKFAST,Environment Housing and Neighbourhoods,Bed & Breakfast,A56000
London Borough of Sutton,08/08/2023,20055576,"2,015.00",Denhan Property Services,ACCOMMODATION BED & BREAKFAST,Environment Housing and Neighbourhoods,Bed & Breakfast,A56000
London Borough of Sutton,25/07/2023,20054634,585.00,Denmead Day Care Ltd,SUNDRY SUPPLIER - EDUCATION,People's Services,Client Care/Assistance,A61011
London Borough of Sutton,04/08/2023,50385478,"3,505.00",Denville Hall 2012,SOCIAL SERVICES RESIDENTIAL,People's Services,Residential Care - Ext Provider,A56114
London Borough of Sutton,04/08/2023,50385391,"3,175.04",Devaglade Trading Limited,SOCIAL SERVICES RESIDENTIAL,People's Services,Residential Care - Ext Provider,A56114
London Borough of Sutton,26/03/2023,20054797,"7,798.00",Devonshire Primary School,SCHOOL FUNDS,People's Services,Payments to Contractors,C14000
London Borough of Sutton,26/03/2023,20054798,"2,380.00",Devonshire Primary School,SCHOOL FUNDS,People's Services,Payments to Contractors,C14000
London Borough of Sutton,07/02/2023,20055140,728.00,Devonshire Primary School,SCHOOL FUNDS,People's Services,Client Care/Assistance,A61011
London Borough of Sutton,08/08/2023,50386493,"262,600.44",Devonshire Primary School,SCHOOL FUNDS,People's Services,Payments to Schools,A51013
London Borough of Sutton,19/07/2023,50387432,232.40,Direct Care And Support Services,ACCOMMODATION - OTHER,People's Services,Supported Living,A56088
London Borough of Sutton,19/07/2023,50387432,"3,470.63",Direct Care And Support Services,ACCOMMODATION - OTHER,People's Services,Supported Living,A56088
London Borough of Sutton,19/07/2023,50387433,232.40,Direct Care And Support Services,ACCOMMODATION - OTHER,People's Services,Supported Living,A56088
London Borough of Sutton,19/07/2023,50387433,"3,470.63",Direct Care And Support Services,ACCOMMODATION - OTHER,People's Services,Supported Living,A56088
London Borough of Sutton,19/07/2023,50387434,232.40,Direct Care And Support Services,ACCOMMODATION - OTHER,People's Services,Supported Living,A56088
London Borough of Sutton,19/07/2023,50387434,"3,470.63",Direct Care And Support Services,ACCOMMODATION - OTHER,People's Services,Supported Living,A56088
London Borough of Sutton,19/07/2023,50387435,232.40,Direct Care And Support Services,ACCOMMODATION - OTHER,People's Services,Supported Living,A56088
London Borough of Sutton,19/07/2023,50387435,"3,470.63",Direct Care And Support Services,ACCOMMODATION - OTHER,People's Services,Supported Living,A56088
London Borough of Sutton,19/07/2023,50387436,232.40,Direct Care And Support Services,ACCOMMODATION - OTHER,People's Services,Supported Living,A56088
London Borough of Sutton,19/07/2023,50387436,"3,470.63",Direct Care And Support Services,ACCOMMODATION - OTHER,People's Services,Supported Living,A56088
London Borough of Sutton,19/07/2023,50387437,232.40,Direct Care And Support Services,ACCOMMODATION - OTHER,People's Services,Supported Living,A56088
London Borough of Sutton,19/07/2023,50387437,"3,470.63",Direct Care And Support Services,ACCOMMODATION - OTHER,People's Services,Supported Living,A56088
London Borough of Sutton,31/07/2023,50387780,"1,494.00",Direct Care And Support Services,ACCOMMODATION - OTHER,People's Services,Supported Living,A56088
London Borough of Sutton,31/07/2023,50387780,"2,389.64",Direct Care And Support Services,ACCOMMODATION - OTHER,People's Services,Supported Living,A56088
London Borough of Sutton,19/07/2023,50387785,"2,801.32",Direct Care And Support Services,ACCOMMODATION - OTHER,People's Services,Supported Living,A56088
London Borough of Sutton,19/07/2023,50387785,"1,082.32",Direct Care And Support Services,ACCOMMODATION - OTHER,People's Services,Supported Living,A56088
London Borough of Sutton,19/07/2023,50387786,"2,801.32",Direct Care And Support Services,ACCOMMODATION - OTHER,People's Services,Supported Living,A56088
London Borough of Sutton,19/07/2023,50387786,"1,082.32",Direct Care And Support Services,ACCOMMODATION - OTHER,People's Services,Supported Living,A56088
London Borough of Sutton,19/07/2023,50387787,"2,801.32",Direct Care And Support Services,ACCOMMODATION - OTHER,People's Services,Supported Living,A56088
London Borough of Sutton,19/07/2023,50387787,"1,082.32",Direct Care And Support Services,ACCOMMODATION - OTHER,People's Services,Supported Living,A56088
London Borough of Sutton,19/07/2023,50387788,"1,494.00",Direct Care And Support Services,ACCOMMODATION - OTHER,People's Services,Supported Living,A56088
London Borough of Sutton,19/07/2023,50387788,"2,389.64",Direct Care And Support Services,ACCOMMODATION - OTHER,People's Services,Supported Living,A56088
London Borough of Sutton,19/07/2023,50387789,"2,801.32",Direct Care And Support Services,ACCOMMODATION - OTHER,People's Services,Supported Living,A56088
London Borough of Sutton,19/07/2023,50387789,"1,082.32",Direct Care And Support Services,ACCOMMODATION - OTHER,People's Services,Supported Living,A56088
London Borough of Sutton,31/07/2023,50387798,"1,954.81",Direct Care And Support Services,ACCOMMODATION - OTHER,People's Services,Supported Living,A56088
London Borough of Sutton,31/07/2023,50387798,"1,307.32",Direct Care And Support Services,ACCOMMODATION - OTHER,People's Services,Supported Living,A56088
London Borough of Sutton,19/07/2023,50387799,"1,954.81",Direct Care And Support Services,ACCOMMODATION - OTHER,People's Services,Supported Living,A56088
London Borough of Sutton,19/07/2023,50387799,"1,307.32",Direct Care And Support Services,ACCOMMODATION - OTHER,People's Services,Supported Living,A56088
London Borough of Sutton,19/07/2023,50387800,"1,954.81",Direct Care And Support Services,ACCOMMODATION - OTHER,People's Services,Supported Living,A56088
London Borough of Sutton,19/07/2023,50387800,"1,307.32",Direct Care And Support Services,ACCOMMODATION - OTHER,People's Services,Supported Living,A56088
London Borough of Sutton,19/07/2023,50387801,"1,954.81",Direct Care And Support Services,ACCOMMODATION - OTHER,People's Services,Supported Living,A56088
London Borough of Sutton,19/07/2023,50387801,"1,307.32",Direct Care And Support Services,ACCOMMODATION - OTHER,People's Services,Supported Living,A56088
London Borough of Sutton,19/07/2023,50387802,"1,954.81",Direct Care And Support Services,ACCOMMODATION - OTHER,People's Services,Supported Living,A56088
London Borough of Sutton,19/07/2023,50387802,"1,307.32",Direct Care And Support Services,ACCOMMODATION - OTHER,People's Services,Supported Living,A56088
London Borough of Sutton,19/07/2023,50387803,"1,954.81",Direct Care And Support Services,ACCOMMODATION - OTHER,People's Services,Supported Living,A56088
London Borough of Sutton,19/07/2023,50387803,"1,307.32",Direct Care And Support Services,ACCOMMODATION - OTHER,People's Services,Supported Living,A56088
London Borough of Sutton,31/08/2023,50388777,"4,480.09",Direct Care And Support Services,ACCOMMODATION - OTHER,People's Services,Supported Living,A56088
London Borough of Sutton,19/07/2023,50388780,"4,480.09",Direct Care And Support Services,ACCOMMODATION - OTHER,People's Services,Supported Living,A56088
London Borough of Sutton,19/07/2023,50388781,"4,480.09",Direct Care And Support Services,ACCOMMODATION - OTHER,People's Services,Supported Living,A56088
London Borough of Sutton,31/08/2023,50388782,"4,480.09",Direct Care And Support Services,ACCOMMODATION - OTHER,People's Services,Supported Living,A56088
London Borough of Sutton,19/07/2023,50388785,"4,480.09",Direct Care And Support Services,ACCOMMODATION - OTHER,People's Services,Supported Living,A56088
London Borough of Sutton,19/07/2023,50388786,"4,480.09",Direct Care And Support Services,ACCOMMODATION - OTHER,People's Services,Supported Living,A56088
London Borough of Sutton,19/07/2023,50388787,"4,480.09",Direct Care And Support Services,ACCOMMODATION - OTHER,People's Services,Supported Living,A56088
London Borough of Sutton,19/07/2023,50388788,"4,480.09",Direct Care And Support Services,ACCOMMODATION - OTHER,People's Services,Supported Living,A56088
London Borough of Sutton,19/07/2023,50388789,"4,480.09",Direct Care And Support Services,ACCOMMODATION - OTHER,People's Services,Supported Living,A56088
London Borough of Sutton,19/07/2023,50393397,"2,845.08",Direct Care And Support Services,ACCOMMODATION - OTHER,People's Services,Supported Living,A56088
London Borough of Sutton,19/07/2023,50393397,218.52,Direct Care And Support Services,ACCOMMODATION - OTHER,People's Services,Supported Living,A56088
London Borough of Sutton,19/07/2023,50393397,"1,082.32",Direct Care And Support Services,ACCOMMODATION - OTHER,People's Services,Supported Living,A56088
London Borough of Sutton,19/07/2023,50393398,"2,845.08",Direct Care And Support Services,ACCOMMODATION - OTHER,People's Services,Supported Living,A56088
London Borough of Sutton,19/07/2023,50393398,218.52,Direct Care And Support Services,ACCOMMODATION - OTHER,People's Services,Supported Living,A56088
London Borough of Sutton,19/07/2023,50393398,"1,082.32",Direct Care And Support Services,ACCOMMODATION - OTHER,People's Services,Supported Living,A56088
London Borough of Sutton,30/08/2023,50394102,"7,092.85",Direct Care And Support Services,ACCOMMODATION - OTHER,People's Services,Supported Living,A56088
London Borough of Sutton,30/08/2023,50394102,"1,307.32",Direct Care And Support Services,ACCOMMODATION - OTHER,People's Services,Supported Living,A56088
London Borough of Sutton,30/08/2023,50394105,"2,279.52",Direct Care And Support Services,ACCOMMODATION - OTHER,People's Services,Supported Living,A56088
London Borough of Sutton,30/08/2023,50394105,"1,307.32",Direct Care And Support Services,ACCOMMODATION - OTHER,People's Services,Supported Living,A56088
London Borough of Sutton,30/08/2023,50394105,"2,169.28",Direct Care And Support Services,ACCOMMODATION - OTHER,People's Services,Supported Living,A56088
London Borough of Sutton,30/08/2023,50394106,"2,324.00",Direct Care And Support Services,ACCOMMODATION - OTHER,People's Services,Supported Living,A56088
London Borough of Sutton,30/08/2023,50394106,697.20,Direct Care And Support Services,ACCOMMODATION - OTHER,People's Services,Supported Living,A56088
London Borough of Sutton,30/08/2023,50394106,"1,307.32",Direct Care And Support Services,ACCOMMODATION - OTHER,People's Services,Supported Living,A56088
London Borough of Sutton,30/08/2023,50394132,447.80,Direct Care And Support Services,ACCOMMODATION - OTHER,People's Services,Supported Living,A56088
London Borough of Sutton,30/08/2023,50394132,561.08,Direct Care And Support Services,ACCOMMODATION - OTHER,People's Services,Supported Living,A56088
London Borough of Sutton,30/08/2023,50394132,"1,307.32",Direct Care And Support Services,ACCOMMODATION - OTHER,People's Services,Supported Living,A56088
London Borough of Sutton,03/08/2023,20055345,"13,875.00",Discrimination Investigation & Mediation Services Ltd,SUNDRY SUPPLIER - EDUCATION,Health and Wellbeing,Consultancy Services - Other,A44065
London Borough of Sutton,23/08/2023,20056564,"2,995.00",Discrimination Investigation & Mediation Services Ltd,SUNDRY SUPPLIER - EDUCATION,Health and Wellbeing,Consultancy Services - Other,A44065
London Borough of Sutton,27/08/2023,20054947,938.34,REDACTED - PERSONAL DATA,PLS LANDLORDS,Environment Housing and Neighbourhoods,Temporary Protection - Homeless Persons,A62028
London Borough of Sutton,08/08/2023,50386495,"203,667.51",Dorchester Primary School,SCHOOL FUNDS,People's Services,Payments to Schools,A51013
London Borough of Sutton,14/08/2023,50388815,764.25,Dorchester Primary School,SCHOOL FUNDS,People's Services,Top-up Funding,A51016
London Borough of Sutton,02/08/2023,20055174,"1,096.98",REDACTED - PERSONAL DATA,GRANTS & EX GRATIA PAYMENTS,Environment Housing and Neighbourhoods,Temporary Protection - Homeless Persons,A62028
London Borough of Sutton,24/07/2023,20054568,542.55,REDACTED - PERSONAL DATA,"SOCIAL SERVICES - DOLS, GUM & BIA ASSESSMENTS",People's Services,Client Related Assessments,A56017
London Borough of Sutton,24/07/2023,20054569,547.50,REDACTED - PERSONAL DATA,"SOCIAL SERVICES - DOLS, GUM & BIA ASSESSMENTS",People's Services,Client Related Assessments,A56017
London Borough of Sutton,06/08/2023,50387336,151.79,Dreamfo Housing Ltd,CHILDREN'S SERVICE - OTHER,People's Services,Approved Lodgings,A61000
London Borough of Sutton,06/08/2023,50387336,"1,821.40",Dreamfo Housing Ltd,CHILDREN'S SERVICE - OTHER,People's Services,Approved Lodgings,A61000
London Borough of Sutton,01/08/2023,20055208,319.73,DSI Billing Services Ltd,OFFICE SERVICES,Resources,Postage & Couriers,A45015
London Borough of Sutton,01/08/2023,20055208,319.72,DSI Billing Services Ltd,OFFICE SERVICES,Resources,Postage & Couriers,A45015
London Borough of Sutton,01/07/2023,50385292,276.79,Dunfield & Mead Ltd,CHILDREN'S SERVICES - RESIDENTIAL,People's Services,Approved Lodgings,A61000
London Borough of Sutton,01/07/2023,50385292,"3,653.56",Dunfield & Mead Ltd,CHILDREN'S SERVICES - RESIDENTIAL,People's Services,Approved Lodgings,A61000
London Borough of Sutton,01/07/2023,50385293,276.79,Dunfield & Mead Ltd,CHILDREN'S SERVICES - RESIDENTIAL,People's Services,Accommodation - Supported Living,A62001
London Borough of Sutton,01/07/2023,50385293,"3,846.41",Dunfield & Mead Ltd,CHILDREN'S SERVICES - RESIDENTIAL,People's Services,Accommodation - Supported Living,A62001
London Borough of Sutton,31/07/2023,20055114,"5,187.85",Dunheved Hotel Ltd,ACCOMMODATION BED & BREAKFAST,Environment Housing and Neighbourhoods,Bed & Breakfast,A56000
London Borough of Sutton,04/08/2023,50385488,"3,016.00",Dunheved Lodge,SOCIAL SERVICES RESIDENTIAL,People's Services,One to One Care,A56108
London Borough of Sutton,04/08/2023,50385488,"3,187.44",Dunheved Lodge,SOCIAL SERVICES RESIDENTIAL,People's Services,Residential Care - Ext Provider,A56114
London Borough of Sutton,24/07/2023,50383763,"1,830.00",DWT Windows & Doors,CONSTRUCTION INDUSTRY,HRA,Payments to Contractors,C14000
London Borough of Sutton,25/07/2023,50383764,"1,050.00",DWT Windows & Doors,CONSTRUCTION INDUSTRY,HRA,Payments to Contractors,C14000
London Borough of Sutton,20/07/2023,50383772,"7,800.00",DWT Windows & Doors,CONSTRUCTION INDUSTRY,HRA,Payments to Contractors,C14000
London Borough of Sutton,05/08/2023,50387878,"1,050.00",DWT Windows & Doors,CONSTRUCTION INDUSTRY,HRA,Payments to Contractors,C14000
London Borough of Sutton,05/08/2023,50387879,"1,440.00",DWT Windows & Doors,CONSTRUCTION INDUSTRY,HRA,Payments to Contractors,C14000
London Borough of Sutton,05/08/2023,50387880,"1,050.00",DWT Windows & Doors,CONSTRUCTION INDUSTRY,HRA,Payments to Contractors,C14000
London Borough of Sutton,05/08/2023,50387881,"1,050.00",DWT Windows & Doors,CONSTRUCTION INDUSTRY,HRA,Payments to Contractors,C14000
London Borough of Sutton,05/08/2023,50387882,"1,050.00",DWT Windows & Doors,CONSTRUCTION INDUSTRY,HRA,Payments to Contractors,C14000
London Borough of Sutton,05/08/2023,50387883,"1,050.00",DWT Windows & Doors,CONSTRUCTION INDUSTRY,HRA,Payments to Contractors,C14000
London Borough of Sutton,07/08/2023,50387884,"1,050.00",DWT Windows & Doors,CONSTRUCTION INDUSTRY,HRA,Payments to Contractors,C14000
London Borough of Sutton,08/08/2023,50387885,"1,050.00",DWT Windows & Doors,CONSTRUCTION INDUSTRY,HRA,Payments to Contractors,C14000
London Borough of Sutton,08/08/2023,50387886,"1,050.00",DWT Windows & Doors,CONSTRUCTION INDUSTRY,HRA,Payments to Contractors,C14000
London Borough of Sutton,05/08/2023,50387888,"1,050.00",DWT Windows & Doors,CONSTRUCTION INDUSTRY,HRA,Payments to Contractors,C14000
London Borough of Sutton,09/08/2023,50387940,"1,050.00",DWT Windows & Doors,CONSTRUCTION INDUSTRY,HRA,Payments to Contractors,C14000
London Borough of Sutton,11/08/2023,50387941,"4,380.00",DWT Windows & Doors,CONSTRUCTION INDUSTRY,HRA,Payments to Contractors,C14000
London Borough of Sutton,16/08/2023,50390737,780.00,DWT Windows & Doors,CONSTRUCTION INDUSTRY,HRA,Payments to Contractors,C14000
London Borough of Sutton,31/07/2023,50385265,987.50,Dynamic Care Ltd,SOCIAL SERVICES RESIDENTIAL,People's Services,Approved Lodgings,A61000
London Borough of Sutton,31/07/2023,50385266,276.79,Dynamic Care Ltd,SOCIAL SERVICES RESIDENTIAL,People's Services,Approved Lodgings,A61000
London Borough of Sutton,31/07/2023,50385266,"5,203.56",Dynamic Care Ltd,SOCIAL SERVICES RESIDENTIAL,People's Services,Accommodation - Supported Living,A62001
London Borough of Sutton,31/07/2023,20055129,"1,560.00",E Homes And Shelters,ACCOMMODATION BED & BREAKFAST,People's Services,Approved Lodgings,A61000
London Borough of Sutton,31/07/2023,20056389,"23,684.00",E Homes And Shelters,ACCOMMODATION BED & BREAKFAST,Environment Housing and Neighbourhoods,Bed & Breakfast,A56000
London Borough of Sutton,04/08/2023,50385527,"4,096.12",Eastcroft Nursing Home,SOCIAL SERVICES RESIDENTIAL,People's Services,Nursing Care - Ext Provider,A56025
London Borough of Sutton,04/08/2023,50385527,-878.84,Eastcroft Nursing Home,SOCIAL SERVICES RESIDENTIAL,People's Services,Nursing Care - 3rd party top up payment,A56023
London Borough of Sutton,04/08/2023,50385528,"3,821.24",Eastcroft Nursing Home,SOCIAL SERVICES RESIDENTIAL,People's Services,Respite Care,A56116
London Borough of Sutton,04/08/2023,50385528,-836.76,Eastcroft Nursing Home,SOCIAL SERVICES RESIDENTIAL,People's Services,Nursing Care - 3rd party top up payment,A56023
London Borough of Sutton,04/08/2023,50385579,-878.84,Eastcroft Nursing Home,SOCIAL SERVICES RESIDENTIAL,People's Services,Nursing Care - 3rd party top up payment,A56023
London Borough of Sutton,04/08/2023,50385579,"4,096.12",Eastcroft Nursing Home,SOCIAL SERVICES RESIDENTIAL,People's Services,Nursing Care - Ext Provider,A56025
London Borough of Sutton,04/08/2023,50385707,"3,821.24",Eastcroft Nursing Home,SOCIAL SERVICES RESIDENTIAL,People's Services,Nursing Care Short Term,A56026
London Borough of Sutton,04/08/2023,50385832,-836.76,Eastcroft Nursing Home,SOCIAL SERVICES RESIDENTIAL,People's Services,Nursing Care - 3rd party top up payment,A56023
London Borough of Sutton,04/08/2023,50385832,"3,821.24",Eastcroft Nursing Home,SOCIAL SERVICES RESIDENTIAL,People's Services,Nursing Care Short Term,A56026
London Borough of Sutton,01/08/2023,20055435,928.44,EDF Energy,UTILITIES,Environment Housing and Neighbourhoods,Electricity,A21000
London Borough of Sutton,03/08/2023,20056151,"5,837.63",EDF Energy,UTILITIES,Resources,Electricity,A21000
London Borough of Sutton,03/08/2023,20056220,"7,153.04",EDF Energy,UTILITIES,Resources,Electricity,A21000
London Borough of Sutton,23/08/2023,50391103,552.90,REDACTED - PERSONAL DATA,SUNDRY SUPPLIER - EDUCATION,People's Services,Miscellaneous Expenses,A49000
London Borough of Sutton,23/08/2023,50391071,982.80,REDACTED - PERSONAL DATA,SUNDRY SUPPLIER - EDUCATION,People's Services,Miscellaneous Expenses,A49000
London Borough of Sutton,06/08/2023,50393096,819.00,Elite CarePlus Ltd,SOCIAL SERVICES DAY CARE,People's Services,Home Care Services,A56019
London Borough of Sutton,25/06/2023,50393097,682.50,Elite CarePlus Ltd,SOCIAL SERVICES DAY CARE,People's Services,Home Care Services,A56019
London Borough of Sutton,25/06/2023,50393097,117.00,Elite CarePlus Ltd,SOCIAL SERVICES DAY CARE,People's Services,Home Care Services,A56019
London Borough of Sutton,02/07/2023,50393098,682.50,Elite CarePlus Ltd,SOCIAL SERVICES DAY CARE,People's Services,Home Care Services,A56019
London Borough of Sutton,02/07/2023,50393098,117.00,Elite CarePlus Ltd,SOCIAL SERVICES DAY CARE,People's Services,Home Care Services,A56019
London Borough of Sutton,09/07/2023,50393099,682.50,Elite CarePlus Ltd,SOCIAL SERVICES DAY CARE,People's Services,Home Care Services,A56019
London Borough of Sutton,09/07/2023,50393099,117.00,Elite CarePlus Ltd,SOCIAL SERVICES DAY CARE,People's Services,Home Care Services,A56019
London Borough of Sutton,16/07/2023,50393100,682.50,Elite CarePlus Ltd,SOCIAL SERVICES DAY CARE,People's Services,Home Care Services,A56019
London Borough of Sutton,16/07/2023,50393100,117.00,Elite CarePlus Ltd,SOCIAL SERVICES DAY CARE,People's Services,Home Care Services,A56019
London Borough of Sutton,23/07/2023,50393101,682.50,Elite CarePlus Ltd,SOCIAL SERVICES DAY CARE,People's Services,Home Care Services,A56019
London Borough of Sutton,23/07/2023,50393101,117.00,Elite CarePlus Ltd,SOCIAL SERVICES DAY CARE,People's Services,Home Care Services,A56019
London Borough of Sutton,30/07/2023,50393102,682.50,Elite CarePlus Ltd,SOCIAL SERVICES DAY CARE,People's Services,Home Care Services,A56019
London Borough of Sutton,30/07/2023,50393102,117.00,Elite CarePlus Ltd,SOCIAL SERVICES DAY CARE,People's Services,Home Care Services,A56019
London Borough of Sutton,13/08/2023,50393103,682.50,Elite CarePlus Ltd,SOCIAL SERVICES DAY CARE,People's Services,Home Care Services,A56019
London Borough of Sutton,13/08/2023,50393103,117.00,Elite CarePlus Ltd,SOCIAL SERVICES DAY CARE,People's Services,Home Care Services,A56019
London Borough of Sutton,06/08/2023,50393104,682.50,Elite CarePlus Ltd,SOCIAL SERVICES DAY CARE,People's Services,Home Care Services,A56019
London Borough of Sutton,06/08/2023,50393104,117.00,Elite CarePlus Ltd,SOCIAL SERVICES DAY CARE,People's Services,Home Care Services,A56019
London Borough of Sutton,25/06/2023,50393129,750.75,Elite CarePlus Ltd,SOCIAL SERVICES DAY CARE,People's Services,Home Care Services,A56019
London Borough of Sutton,02/07/2023,50393130,750.75,Elite CarePlus Ltd,SOCIAL SERVICES DAY CARE,People's Services,Home Care Services,A56019
London Borough of Sutton,09/07/2023,50393131,750.75,Elite CarePlus Ltd,SOCIAL SERVICES DAY CARE,People's Services,Home Care Services,A56019
London Borough of Sutton,16/07/2023,50393132,750.75,Elite CarePlus Ltd,SOCIAL SERVICES DAY CARE,People's Services,Home Care Services,A56019
London Borough of Sutton,23/07/2023,50393133,750.75,Elite CarePlus Ltd,SOCIAL SERVICES DAY CARE,People's Services,Home Care Services,A56019
London Borough of Sutton,30/07/2023,50393134,750.75,Elite CarePlus Ltd,SOCIAL SERVICES DAY CARE,People's Services,Home Care Services,A56019
London Borough of Sutton,13/08/2023,50393135,750.75,Elite CarePlus Ltd,SOCIAL SERVICES DAY CARE,People's Services,Home Care Services,A56019
London Borough of Sutton,06/08/2023,50393136,750.75,Elite CarePlus Ltd,SOCIAL SERVICES DAY CARE,People's Services,Home Care Services,A56019
London Borough of Sutton,16/07/2023,50393157,614.25,Elite CarePlus Ltd,SOCIAL SERVICES DAY CARE,People's Services,Home Care Services,A56019
London Borough of Sutton,25/06/2023,50393158,614.25,Elite CarePlus Ltd,SOCIAL SERVICES DAY CARE,People's Services,Home Care Services,A56019
London Borough of Sutton,02/07/2023,50393159,614.25,Elite CarePlus Ltd,SOCIAL SERVICES DAY CARE,People's Services,Home Care Services,A56019
London Borough of Sutton,09/07/2023,50393160,614.25,Elite CarePlus Ltd,SOCIAL SERVICES DAY CARE,People's Services,Home Care Services,A56019
London Borough of Sutton,23/07/2023,50393161,614.25,Elite CarePlus Ltd,SOCIAL SERVICES DAY CARE,People's Services,Home Care Services,A56019
London Borough of Sutton,30/07/2023,50393162,614.25,Elite CarePlus Ltd,SOCIAL SERVICES DAY CARE,People's Services,Home Care Services,A56019
London Borough of Sutton,13/08/2023,50393163,614.25,Elite CarePlus Ltd,SOCIAL SERVICES DAY CARE,People's Services,Home Care Services,A56019
London Borough of Sutton,06/08/2023,50393164,614.25,Elite CarePlus Ltd,SOCIAL SERVICES DAY CARE,People's Services,Home Care Services,A56019
London Borough of Sutton,16/07/2023,50393165,614.25,Elite CarePlus Ltd,SOCIAL SERVICES DAY CARE,People's Services,Home Care Services,A56019
London Borough of Sutton,25/06/2023,50393166,614.25,Elite CarePlus Ltd,SOCIAL SERVICES DAY CARE,People's Services,Home Care Services,A56019
London Borough of Sutton,02/07/2023,50393167,614.25,Elite CarePlus Ltd,SOCIAL SERVICES DAY CARE,People's Services,Home Care Services,A56019
London Borough of Sutton,09/07/2023,50393168,614.25,Elite CarePlus Ltd,SOCIAL SERVICES DAY CARE,People's Services,Home Care Services,A56019
London Borough of Sutton,23/07/2023,50393169,614.25,Elite CarePlus Ltd,SOCIAL SERVICES DAY CARE,People's Services,Home Care Services,A56019
London Borough of Sutton,30/07/2023,50393170,614.25,Elite CarePlus Ltd,SOCIAL SERVICES DAY CARE,People's Services,Home Care Services,A56019
London Borough of Sutton,13/08/2023,50393171,614.25,Elite CarePlus Ltd,SOCIAL SERVICES DAY CARE,People's Services,Home Care Services,A56019
London Borough of Sutton,06/08/2023,50393172,614.25,Elite CarePlus Ltd,SOCIAL SERVICES DAY CARE,People's Services,Home Care Services,A56019
London Borough of Sutton,23/07/2023,50393206,614.25,Elite CarePlus Ltd,SOCIAL SERVICES DAY CARE,People's Services,Home Care Services,A56019
London Borough of Sutton,02/07/2023,50393209,614.25,Elite CarePlus Ltd,SOCIAL SERVICES DAY CARE,People's Services,Home Care Services,A56019
London Borough of Sutton,09/07/2023,50393210,614.25,Elite CarePlus Ltd,SOCIAL SERVICES DAY CARE,People's Services,Home Care Services,A56019
London Borough of Sutton,16/07/2023,50393211,614.25,Elite CarePlus Ltd,SOCIAL SERVICES DAY CARE,People's Services,Home Care Services,A56019
London Borough of Sutton,30/07/2023,50393212,614.25,Elite CarePlus Ltd,SOCIAL SERVICES DAY CARE,People's Services,Home Care Services,A56019
London Borough of Sutton,13/08/2023,50393213,614.25,Elite CarePlus Ltd,SOCIAL SERVICES DAY CARE,People's Services,Home Care Services,A56019
London Borough of Sutton,06/08/2023,50393214,614.25,Elite CarePlus Ltd,SOCIAL SERVICES DAY CARE,People's Services,Home Care Services,A56019
London Borough of Sutton,25/06/2023,50393264,975.00,Elite CarePlus Ltd,SOCIAL SERVICES DAY CARE,People's Services,Home Care Services,A56019
London Borough of Sutton,02/07/2023,50393265,975.00,Elite CarePlus Ltd,SOCIAL SERVICES DAY CARE,People's Services,Home Care Services,A56019
London Borough of Sutton,09/07/2023,50393266,975.00,Elite CarePlus Ltd,SOCIAL SERVICES DAY CARE,People's Services,Home Care Services,A56019
London Borough of Sutton,16/07/2023,50393267,975.00,Elite CarePlus Ltd,SOCIAL SERVICES DAY CARE,People's Services,Home Care Services,A56019
